Council Name,Date,TransNo,Amount � (Excl VAT),Supplier name,Supplier Category,Expense Area,Expense Type,Expense Code
London Borough of Sutton,30/09/2021,50062980,"16,028.40",4D Care Ltd,SOCIAL SERVICES RESIDENTIAL,Peoples Services,Residential Care-Children,A56115
London Borough of Sutton,04/10/2021,20010481,"1,206.43",REDACTED - PERSONAL DATA,SUNDRY SUPPLIER - EDUCATION,Peoples Services,Equipment,A61013
London Borough of Sutton,04/10/2021,50062934,"9,166.90",A Step Beyond Ltd,SOCIAL SERVICES - OTHER,Peoples Services,Approved Lodgings,A61000
London Borough of Sutton,01/09/2021,50062928,"3,400.00",A Wilderness Way Ltd,CHILDREN'S SERVICES - FOSTERING & ADOPTION SERVICES,Peoples Services,Residential Care-Children,A56115
London Borough of Sutton,01/09/2021,50062929,"29,100.00",A Wilderness Way Ltd,CHILDREN'S SERVICES - FOSTERING & ADOPTION SERVICES,Peoples Services,Residential Care-Children,A56115
London Borough of Sutton,01/09/2021,50062973,"29,100.00",A Wilderness Way Ltd,CHILDREN'S SERVICES - FOSTERING & ADOPTION SERVICES,Peoples Services,Residential Care-Children,A56115
London Borough of Sutton,16/09/2021,50063009,"22,478.55",A Wilderness Way Ltd,CHILDREN'S SERVICES - FOSTERING & ADOPTION SERVICES,Peoples Services,Residential Care-Children,A56115
London Borough of Sutton,01/10/2021,50061011,-750.4,Abbey Care Centre ,SOCIAL SERVICES RESIDENTIAL,Peoples Services,Nursing Care - 3rd party top up payment,A56023
London Borough of Sutton,01/10/2021,50061011,"3,626.72",Abbey Care Centre ,SOCIAL SERVICES RESIDENTIAL,Peoples Services,Nursing Care Short Term,A56026
London Borough of Sutton,20/08/2021,20009987,473,Abbott Toxicology Plc,CHILDREN'S SERVICE - OTHER,Peoples Services,Client Related Assessments,A56017
London Borough of Sutton,04/10/2021,50062320,700,ABC Pre-School Beddington LLP,GRANTS & EX GRATIA PAYMENTS,Peoples Services,SEND Inclusion funding,A60038
London Borough of Sutton,12/10/2021,50062345,"1,056.72",ABC Pre-School Beddington LLP,GRANTS & EX GRATIA PAYMENTS,Peoples Services,Place Funding,A56110
London Borough of Sutton,12/10/2021,50062406,"1,697.85",ABC Pre-School Beddington LLP,GRANTS & EX GRATIA PAYMENTS,Peoples Services,Place Funding,A56110
London Borough of Sutton,24/09/2021,20009879,"2,608.56",Ability Housing Association,SOCIAL SERVICES RESIDENTIAL,Peoples Services,Building Rents,A22005
London Borough of Sutton,21/12/2020,20010512,"3,111.00",Abslett Properties Ltd,ACCOMMODATION BED & BREAKFAST,Environment Housing and Neighbourhoods,Bed & Breakfast,A56000
London Borough of Sutton,07/06/2021,20010514,"3,128.00",Abslett Properties Ltd,ACCOMMODATION BED & BREAKFAST,Environment Housing and Neighbourhoods,Bed & Breakfast,A56000
London Borough of Sutton,04/01/2021,20010515,"1,054.00",Abslett Properties Ltd,ACCOMMODATION BED & BREAKFAST,Environment Housing and Neighbourhoods,Bed & Breakfast,A56000
London Borough of Sutton,03/09/2021,20010517,"4,692.00",Abslett Properties Ltd,ACCOMMODATION BED & BREAKFAST,Environment Housing and Neighbourhoods,Bed & Breakfast,A56000
London Borough of Sutton,07/06/2021,20010518,"7,701.00",Abslett Properties Ltd,ACCOMMODATION BED & BREAKFAST,Environment Housing and Neighbourhoods,Bed & Breakfast,A56000
London Borough of Sutton,27/09/2021,20009916,"5,348.23",Absolute Care Services Ltd,SOCIAL SERVICES DAY CARE,Peoples Services,Homecare Core Services,A56020
London Borough of Sutton,27/09/2021,20009917,"6,357.91",Absolute Care Services Ltd,SOCIAL SERVICES DAY CARE,Peoples Services,Homecare Core Services,A56020
London Borough of Sutton,04/10/2021,20010415,"5,348.23",Absolute Care Services Ltd,SOCIAL SERVICES DAY CARE,Peoples Services,Homecare Core Services,A56020
London Borough of Sutton,04/10/2021,20010416,"6,357.91",Absolute Care Services Ltd,SOCIAL SERVICES DAY CARE,Peoples Services,Homecare Core Services,A56020
London Borough of Sutton,04/10/2021,20010417,"5,589.89",Absolute Care Services Ltd,SOCIAL SERVICES DAY CARE,Peoples Services,Homecare Core Services,A56020
London Borough of Sutton,11/10/2021,20010921,"6,357.91",Absolute Care Services Ltd,SOCIAL SERVICES DAY CARE,Peoples Services,Homecare Core Services,A56020
London Borough of Sutton,11/10/2021,20010922,"5,589.89",Absolute Care Services Ltd,SOCIAL SERVICES DAY CARE,Peoples Services,Homecare Core Services,A56020
London Borough of Sutton,11/10/2021,20010923,"5,348.23",Absolute Care Services Ltd,SOCIAL SERVICES DAY CARE,Peoples Services,Homecare Core Services,A56020
London Borough of Sutton,18/10/2021,20011325,"6,357.91",Absolute Care Services Ltd,SOCIAL SERVICES DAY CARE,Peoples Services,Homecare Core Services,A56020
London Borough of Sutton,18/10/2021,20011326,"5,589.89",Absolute Care Services Ltd,SOCIAL SERVICES DAY CARE,Peoples Services,Homecare Core Services,A56020
London Borough of Sutton,18/10/2021,20011328,"5,348.23",Absolute Care Services Ltd,SOCIAL SERVICES DAY CARE,Peoples Services,Homecare Core Services,A56020
London Borough of Sutton,22/11/2020,50061761,734.58,Absolute Care Services Ltd,SOCIAL SERVICES DAY CARE,Peoples Services,Home Care Services,A56019
London Borough of Sutton,22/11/2020,50061776,736.82,Absolute Care Services Ltd,SOCIAL SERVICES DAY CARE,Peoples Services,Home Care Services,A56019
London Borough of Sutton,22/11/2020,50061776,24,Absolute Care Services Ltd,SOCIAL SERVICES DAY CARE,Peoples Services,Home Care Services,A56019
London Borough of Sutton,22/11/2020,50061794,550.94,Absolute Care Services Ltd,SOCIAL SERVICES DAY CARE,Peoples Services,Home Care Services,A56019
London Borough of Sutton,22/11/2020,50061795,664.62,Absolute Care Services Ltd,SOCIAL SERVICES DAY CARE,Peoples Services,Home Care Services,A56019
London Borough of Sutton,06/12/2020,50066901,550.94,Absolute Care Services Ltd,SOCIAL SERVICES DAY CARE,Peoples Services,Home Care Services,A56019
London Borough of Sutton,13/12/2020,50066902,550.94,Absolute Care Services Ltd,SOCIAL SERVICES DAY CARE,Peoples Services,Home Care Services,A56019
London Borough of Sutton,20/12/2020,50066903,550.94,Absolute Care Services Ltd,SOCIAL SERVICES DAY CARE,Peoples Services,Home Care Services,A56019
London Borough of Sutton,08/11/2020,50066904,550.94,Absolute Care Services Ltd,SOCIAL SERVICES DAY CARE,Peoples Services,Home Care Services,A56019
London Borough of Sutton,29/11/2020,50066905,550.94,Absolute Care Services Ltd,SOCIAL SERVICES DAY CARE,Peoples Services,Home Care Services,A56019
London Borough of Sutton,15/11/2020,50066906,550.94,Absolute Care Services Ltd,SOCIAL SERVICES DAY CARE,Peoples Services,Home Care Services,A56019
London Borough of Sutton,03/01/2021,50066907,550.94,Absolute Care Services Ltd,SOCIAL SERVICES DAY CARE,Peoples Services,Home Care Services,A56019
London Borough of Sutton,10/01/2021,50066908,550.94,Absolute Care Services Ltd,SOCIAL SERVICES DAY CARE,Peoples Services,Home Care Services,A56019
London Borough of Sutton,02/05/2021,50066910,249.11,Absolute Care Services Ltd,SOCIAL SERVICES DAY CARE,Peoples Services,Home Care Services,A56019
London Borough of Sutton,02/05/2021,50066910,275.59,Absolute Care Services Ltd,SOCIAL SERVICES DAY CARE,Peoples Services,Home Care Services,A56019
London Borough of Sutton,09/05/2021,50066911,275.35,Absolute Care Services Ltd,SOCIAL SERVICES DAY CARE,Peoples Services,Home Care Services,A56019
London Borough of Sutton,09/05/2021,50066911,275.59,Absolute Care Services Ltd,SOCIAL SERVICES DAY CARE,Peoples Services,Home Care Services,A56019
London Borough of Sutton,27/12/2020,50066916,550.94,Absolute Care Services Ltd,SOCIAL SERVICES DAY CARE,Peoples Services,Home Care Services,A56019
London Borough of Sutton,17/01/2021,50066917,550.94,Absolute Care Services Ltd,SOCIAL SERVICES DAY CARE,Peoples Services,Home Care Services,A56019
London Borough of Sutton,13/06/2021,50067095,489.69,Absolute Care Services Ltd,SOCIAL SERVICES DAY CARE,Peoples Services,Home Care Services,A56019
London Borough of Sutton,13/06/2021,50067095,61.25,Absolute Care Services Ltd,SOCIAL SERVICES DAY CARE,Peoples Services,Home Care Services,A56019
London Borough of Sutton,27/06/2021,50067096,489.69,Absolute Care Services Ltd,SOCIAL SERVICES DAY CARE,Peoples Services,Home Care Services,A56019
London Borough of Sutton,27/06/2021,50067096,61.25,Absolute Care Services Ltd,SOCIAL SERVICES DAY CARE,Peoples Services,Home Care Services,A56019
London Borough of Sutton,04/07/2021,50067097,489.69,Absolute Care Services Ltd,SOCIAL SERVICES DAY CARE,Peoples Services,Home Care Services,A56019
London Borough of Sutton,04/07/2021,50067097,61.25,Absolute Care Services Ltd,SOCIAL SERVICES DAY CARE,Peoples Services,Home Care Services,A56019
London Borough of Sutton,16/05/2021,50067100,275.35,Absolute Care Services Ltd,SOCIAL SERVICES DAY CARE,Peoples Services,Home Care Services,A56019
London Borough of Sutton,16/05/2021,50067100,275.59,Absolute Care Services Ltd,SOCIAL SERVICES DAY CARE,Peoples Services,Home Care Services,A56019
London Borough of Sutton,23/05/2021,50067101,275.35,Absolute Care Services Ltd,SOCIAL SERVICES DAY CARE,Peoples Services,Home Care Services,A56019
London Borough of Sutton,23/05/2021,50067101,275.59,Absolute Care Services Ltd,SOCIAL SERVICES DAY CARE,Peoples Services,Home Care Services,A56019
London Borough of Sutton,30/05/2021,50067102,275.35,Absolute Care Services Ltd,SOCIAL SERVICES DAY CARE,Peoples Services,Home Care Services,A56019
London Borough of Sutton,30/05/2021,50067102,275.59,Absolute Care Services Ltd,SOCIAL SERVICES DAY CARE,Peoples Services,Home Care Services,A56019
London Borough of Sutton,27/06/2021,50067103,275.35,Absolute Care Services Ltd,SOCIAL SERVICES DAY CARE,Peoples Services,Home Care Services,A56019
London Borough of Sutton,27/06/2021,50067103,275.59,Absolute Care Services Ltd,SOCIAL SERVICES DAY CARE,Peoples Services,Home Care Services,A56019
London Borough of Sutton,04/07/2021,50067104,275.35,Absolute Care Services Ltd,SOCIAL SERVICES DAY CARE,Peoples Services,Home Care Services,A56019
London Borough of Sutton,04/07/2021,50067104,275.59,Absolute Care Services Ltd,SOCIAL SERVICES DAY CARE,Peoples Services,Home Care Services,A56019
London Borough of Sutton,30/09/2021,20010531,564,Access Independent Ltd,MANAGEMENT & TRAINING SERVICES,Health and Wellbeing,Mobility Scheme for the Disabled,A61015
London Borough of Sutton,23/09/2021,50064389,"4,671.40",Accomplish Group Ltd,SOCIAL SERVICES RESIDENTIAL,Peoples Services,Supported Living,A56088
London Borough of Sutton,23/09/2021,50064394,"3,080.00",Accomplish Group Ltd,SOCIAL SERVICES RESIDENTIAL,Peoples Services,Supported Living,A56088
London Borough of Sutton,07/10/2021,50071863,"5,236.07",Accomplish Group Ltd,SOCIAL SERVICES RESIDENTIAL,Peoples Services,Supported Living,A56088
London Borough of Sutton,19/10/2021,50071866,"3,080.00",Accomplish Group Ltd,SOCIAL SERVICES RESIDENTIAL,Peoples Services,Supported Living,A56088
London Borough of Sutton,19/10/2021,50071875,"4,671.40",Accomplish Group Ltd,SOCIAL SERVICES RESIDENTIAL,Peoples Services,Supported Living,A56088
London Borough of Sutton,01/10/2021,50060949,"2,903.20",Acorn Lodge,SOCIAL SERVICES RESIDENTIAL,Peoples Services,Residential Care - Ext Provider,A56114
London Borough of Sutton,01/10/2021,50061031,"3,115.36",Acorn Residential Home,SOCIAL SERVICES RESIDENTIAL,Peoples Services,Residential Care - Ext Provider,A56114
London Borough of Sutton,29/09/2021,20010162,"161,643.99",ADAM HTT LTD,TAXI AND COACH HIRE,Peoples Services,Contract Cleaning,A27010
London Borough of Sutton,06/10/2021,20010721,"159,344.67",ADAM HTT LTD,TAXI AND COACH HIRE,Peoples Services,Contract Cleaning,A27010
London Borough of Sutton,20/10/2021,20011561,"163,121.02",ADAM HTT LTD,TAXI AND COACH HIRE,Peoples Services,Contract Cleaning,A27010
London Borough of Sutton,13/10/2021,20011603,"194,958.22",ADAM HTT LTD,TAXI AND COACH HIRE,Peoples Services,Contract Cleaning,A27010
London Borough of Sutton,27/10/2021,20011954,"140,966.00",ADAM HTT LTD,TAXI AND COACH HIRE,Peoples Services,Contract Cleaning,A27010
London Borough of Sutton,17/09/2021,20011856,"16,280.83",Adapted4 Limited,SUNDRY SUPPLIER - FINANCE,Environment Housing and Neighbourhoods,Grants Given For Capital Purposes,C20004
London Borough of Sutton,01/10/2021,50071870,510.41,Adelfi Homecare Ltd,SOCIAL SERVICES RESIDENTIAL,Peoples Services,Home Care Services,A56019
London Borough of Sutton,20/10/2021,20011608,"1,562.00",ADHD Wise UK,SUNDRY SUPPLIER - FINANCE,Peoples Services,Professional Fees,A44066
London Borough of Sutton,30/09/2021,20010290,"2,916.67",Advocacy For All,LEGAL & PROFESSIONAL SERVICES,Peoples Services,Provider Contract Payments,A44290
London Borough of Sutton,30/09/2021,20010291,"12,916.67",Advocacy For All,LEGAL & PROFESSIONAL SERVICES,Peoples Services,Provider Contract Payments,A44290
London Borough of Sutton,27/09/2021,50062927,"3,210.30",Affinity Fostering Services Ltd,CHILDREN'S SERVICES - FOSTERING & ADOPTION SERVICES,Peoples Services,Foster Parents Support,A44110
London Borough of Sutton,27/09/2021,50062988,"3,381.30",Affinity Fostering Services Ltd,CHILDREN'S SERVICES - FOSTERING & ADOPTION SERVICES,Peoples Services,Foster Parents Support,A44110
London Borough of Sutton,27/09/2021,50062989,"3,381.30",Affinity Fostering Services Ltd,CHILDREN'S SERVICES - FOSTERING & ADOPTION SERVICES,Peoples Services,Foster Parents Support,A44110
London Borough of Sutton,27/09/2021,50062990,"3,210.30",Affinity Fostering Services Ltd,CHILDREN'S SERVICES - FOSTERING & ADOPTION SERVICES,Peoples Services,Foster Parents Support,A44110
London Borough of Sutton,13/10/2021,20011141,"8,247.31",Age UK Sutton,SOCIAL SERVICES - OTHER,Peoples Services,Provider Contract Payments,A44290
London Borough of Sutton,24/09/2021,20010930,"6,986.26",AIMEDIADATA LTD,IT EQUIPMENT MAINTENANCE,Resources,Publicity,A44266
London Borough of Sutton,01/10/2021,50061043,"7,511.00",Leighton House Ltd,SOCIAL SERVICES RESIDENTIAL,Peoples Services,Residential Care - Ext Provider,A56114
London Borough of Sutton,01/10/2021,50061194,"8,400.16",Aitch Care Homes,SOCIAL SERVICES RESIDENTIAL,Peoples Services,Residential Care - Ext Provider,A56114
London Borough of Sutton,07/10/2021,50062317,"1,590.00",All About Homes Ltd,CARE LEAVERS,Peoples Services,Education Allowance,A60008
London Borough of Sutton,12/10/2021,50063612,"154,210.18",All Saints Benhilton C Of E,GRANTS & EX GRATIA PAYMENTS,Peoples Services,Payments to Schools,A51013
London Borough of Sutton,12/10/2021,50063640,"10,914.75",All Saints Benhilton C Of E,GRANTS & EX GRATIA PAYMENTS,Peoples Services,Place Funding,A56110
London Borough of Sutton,12/10/2021,50063693,"18,493.75",All Saints Benhilton C Of E,GRANTS & EX GRATIA PAYMENTS,Peoples Services,Payments to Schools,A51013
London Borough of Sutton,12/10/2021,50063717,"1,758.75",All Saints Benhilton C Of E,GRANTS & EX GRATIA PAYMENTS,Peoples Services,Payments to Schools,A51013
London Borough of Sutton,12/10/2021,50063769,"1,500.00",All Saints Benhilton C Of E,GRANTS & EX GRATIA PAYMENTS,Peoples Services,Pupil Growth,A51014
London Borough of Sutton,12/10/2021,50063906,"1,493.00",All Saints Benhilton C Of E,GRANTS & EX GRATIA PAYMENTS,Peoples Services,Payments to Schools,A51013
London Borough of Sutton,11/10/2021,50065852,"3,212.50",All Saints Benhilton C Of E,GRANTS & EX GRATIA PAYMENTS,Peoples Services,Top-up Funding,A51016
London Borough of Sutton,12/10/2021,50063641,"9,095.63",All Saints Carshalton Primary School,GRANTS & EX GRATIA PAYMENTS,Peoples Services,Place Funding,A56110
London Borough of Sutton,12/10/2021,50063770,"1,500.00",All Saints Carshalton Primary School,GRANTS & EX GRATIA PAYMENTS,Peoples Services,Pupil Growth,A51014
London Borough of Sutton,12/10/2021,50063872,"2,148.00",All Saints Carshalton Primary School,GRANTS & EX GRATIA PAYMENTS,Resources,"Grants, Contributions & Donations",A47005
London Borough of Sutton,12/10/2021,50063910,"1,786.00",All Saints Carshalton Primary School,GRANTS & EX GRATIA PAYMENTS,Peoples Services,Payments to Schools,A51013
London Borough of Sutton,01/10/2021,50060983,"4,454.16",Allied Care (Mhs) Ltd,SOCIAL SERVICES - OTHER,Peoples Services,Residential Care - Ext Provider,A56114
London Borough of Sutton,28/09/2021,20010097,501.31,Allied Publicity Services (Manchester) Ltd,REPROGRAPHICS & PHOTOGRAPHY,Health and Wellbeing,Mobility Scheme for the Disabled,A61015
London Borough of Sutton,01/10/2021,20010388,"1,801.64",Allstar Business Solutions,FUEL AND VEHICLE SUPPLIES,Environment Housing and Neighbourhoods,Vehicles -  Fuel,A30015
London Borough of Sutton,01/10/2021,50060992,"5,202.00",Allswell Care Services Ltd,SOCIAL SERVICES RESIDENTIAL,Peoples Services,Residential Care - Ext Provider,A56114
London Borough of Sutton,01/10/2021,50061030,"5,202.00",Allswell Care Services Ltd,SOCIAL SERVICES RESIDENTIAL,Peoples Services,Residential Care - Ext Provider,A56114
London Borough of Sutton,01/10/2021,50061045,"6,370.00",Allswell Care Services Ltd,SOCIAL SERVICES RESIDENTIAL,Peoples Services,Residential Care - Ext Provider,A56114
London Borough of Sutton,14/06/2021,50061614,"1,087.27",Alpenbest Limited,SOCIAL SERVICES DAY CARE,Peoples Services,Home Care Services,A56019
London Borough of Sutton,01/10/2021,50061129,"4,128.57",ANA Treatment Centres Ltd,SOCIAL SERVICES RESIDENTIAL,Peoples Services,Interim Placements - Ext Provider,A56102
London Borough of Sutton,01/09/2021,50062898,"4,350.00",Anchor Foster Care Services Ltd,CHILDREN'S SERVICES - FOSTERING & ADOPTION SERVICES,Peoples Services,Foster Parents Support,A44110
London Borough of Sutton,01/10/2021,50061280,"2,662.40",Anchor Trust,SOCIAL SERVICES RESIDENTIAL,Peoples Services,Residential Care - Ext Provider,A56114
London Borough of Sutton,01/10/2021,20010508,"1,571.46",Angel Lettings,ACCOMMODATION BED & BREAKFAST,Environment Housing and Neighbourhoods,Temporary Protection - Homeless Persons,A62028
London Borough of Sutton,06/10/2021,50062912,"3,364.28",Ansacare Fostering Agency Ltd,CHILDREN'S SERVICES - FOSTERING & ADOPTION SERVICES,Peoples Services,Foster Parents Support,A44110
London Borough of Sutton,06/10/2021,50062913,"3,364.28",Ansacare Fostering Agency Ltd,CHILDREN'S SERVICES - FOSTERING & ADOPTION SERVICES,Peoples Services,Foster Parents Support,A44110
London Borough of Sutton,30/09/2021,20010507,"9,585.22",Apetito Ltd,FOOD & DRINK,Health and Wellbeing,Provisions,A41006
London Borough of Sutton,31/08/2021,20011132,"7,229.95",Apetito Ltd,FOOD & DRINK,Health and Wellbeing,Provisions,A41006
London Borough of Sutton,31/08/2021,20010430,"6,729.70",Apex Housing Solutions Ltd,SOCIAL SERVICES DAY CARE,Environment Housing and Neighbourhoods,Bed & Breakfast,A56000
London Borough of Sutton,30/09/2021,20011284,"8,061.90",Apex Housing Solutions Ltd,SOCIAL SERVICES DAY CARE,Environment Housing and Neighbourhoods,Bed & Breakfast,A56000
London Borough of Sutton,30/09/2021,20010530,"1,080.00",APL Properties,ACCOMMODATION BED & BREAKFAST,Environment Housing and Neighbourhoods,Bed & Breakfast,A56000
London Borough of Sutton,20/10/2021,20011621,"2,937.00",AS Mentoring,SUNDRY SUPPLIER - FINANCE,Peoples Services,Professional Fees,A44066
London Borough of Sutton,01/10/2021,50060900,"3,994.48",Aspen Place,SOCIAL SERVICES DAY CARE,Peoples Services,Nursing Care - Ext Provider,A56025
London Borough of Sutton,01/10/2021,50061095,"5,492.48",Aspens Charities,SOCIAL SERVICES RESIDENTIAL,Peoples Services,Residential Care - Ext Provider,A56114
London Borough of Sutton,04/10/2021,50062962,"7,982.12",Aspirational Support Ltd,SOCIAL SERVICES - OTHER,Peoples Services,Approved Lodgings,A61000
London Borough of Sutton,30/09/2021,50071856,"2,400.00",Aspirations Care Ltd,SOCIAL SERVICES DAY CARE,Peoples Services,Home Care Services,A56019
London Borough of Sutton,30/09/2021,50071856,"7,119.00",Aspirations Care Ltd,SOCIAL SERVICES DAY CARE,Peoples Services,Home Care Services,A56019
London Borough of Sutton,12/10/2020,20011562,"5,239.00",Astor-Bannerman Ltd,SUNDRY SUPPLIER - FINANCE,Environment Housing and Neighbourhoods,Grants Given For Capital Purposes,C20004
London Borough of Sutton,29/09/2021,20010171,"1,057.50",Athona Ltd,TEMP STAFF & CONSULTANCY,Peoples Services,Agency Staff - Other,A10505
London Borough of Sutton,01/09/2021,50062986,"4,210.71",Audax Supported Living CIC,CHILDREN'S SERVICES - RESIDENTIAL,Peoples Services,Approved Lodgings,A61000
London Borough of Sutton,04/08/2021,50069404,"18,620.00",Aurora Redehall School,CHILDREN'S SERVICES - SEN SERVICES,Peoples Services,Independent School Fees,A56002
London Borough of Sutton,01/10/2021,50060908,"4,580.72",Autism & Aspergers Care Services,SOCIAL SERVICES RESIDENTIAL,Peoples Services,Residential Care - Ext Provider,A56114
London Borough of Sutton,27/09/2021,50062993,"5,236.79",Avance Ltd ,CHILDREN'S SERVICES - FOSTERING & ADOPTION SERVICES,Peoples Services,Approved Lodgings,A61000
London Borough of Sutton,27/09/2021,50062995,"5,067.86",Avance Ltd ,CHILDREN'S SERVICES - FOSTERING & ADOPTION SERVICES,Peoples Services,Approved Lodgings,A61000
London Borough of Sutton,12/10/2021,50063642,"12,558.00",Avenue Primary Acadamy,GRANTS & EX GRATIA PAYMENTS,Peoples Services,Place Funding,A56110
London Borough of Sutton,12/10/2021,50063772,"1,500.00",Avenue Primary Acadamy,GRANTS & EX GRATIA PAYMENTS,Peoples Services,Pupil Growth,A51014
London Borough of Sutton,12/10/2021,50063830,"9,048.00",Avenue Primary Acadamy,GRANTS & EX GRATIA PAYMENTS,Resources,"Grants, Contributions & Donations",A47005
London Borough of Sutton,12/10/2021,50063884,"2,040.00",Avenue Primary Acadamy,GRANTS & EX GRATIA PAYMENTS,Peoples Services,Payments to Schools,A51013
London Borough of Sutton,12/10/2021,50063932,"33,717.00",Avenue Primary Acadamy,GRANTS & EX GRATIA PAYMENTS,Peoples Services,Pupil Growth,A51014
London Borough of Sutton,19/10/2021,50068093,"1,430.00",REDACTED - PERSONAL DATA,SUNDRY SUPPLIER - EDUCATION,Peoples Services,Miscellaneous Expenses,A49000
London Borough of Sutton,19/10/2021,19000364,"-14,136.00",Ayai Care Limited,SOCIAL SERVICES DAY CARE,Peoples Services,Supported Living,A56088
London Borough of Sutton,30/09/2021,20010338,"12,128.61",Ayai Care Limited,SOCIAL SERVICES DAY CARE,Peoples Services,One to One Care,A56108
London Borough of Sutton,30/09/2021,20010339,"2,030.00",Ayai Care Limited,SOCIAL SERVICES DAY CARE,Peoples Services,One to One Care,A56108
London Borough of Sutton,19/10/2021,50067370,"14,136.00",Ayai Care Limited,SOCIAL SERVICES DAY CARE,Peoples Services,Supported Living,A56088
London Borough of Sutton,19/10/2021,50069410,"14,136.00",Ayai Care Limited,SOCIAL SERVICES DAY CARE,Peoples Services,Supported Living,A56088
London Borough of Sutton,04/10/2021,50062941,"1,826.78",Back on Track Housing Ltd,SOCIAL SERVICES - OTHER,Peoples Services,Approved Lodgings,A61000
London Borough of Sutton,17/12/2020,20011472,418,Baily Garner LLP,LEGAL & PROFESSIONAL SERVICES,Environment Housing and Neighbourhoods,Payments to Contractors,C14000
London Borough of Sutton,04/10/2021,20010465,450,Balfe's Bikes Ltd,SUNDRY SUPPLIER - FINANCE,Health and Wellbeing,Arts Programme,A44286
London Borough of Sutton,21/10/2021,20011577,"1,589.76",Balmont Ltd,CONSTRUCTION INDUSTRY,Health and Wellbeing,Provider Contract Payments,A44290
London Borough of Sutton,12/10/2021,50062347,"2,175.60",Bandon Hill Pre-School,GRANTS & EX GRATIA PAYMENTS,Peoples Services,Place Funding,A56110
London Borough of Sutton,12/10/2021,50062410,"2,184.00",Bandon Hill Pre-School,GRANTS & EX GRATIA PAYMENTS,Peoples Services,Place Funding,A56110
London Borough of Sutton,12/10/2021,50063643,"9,828.00",Bandon Hill Primary,GRANTS & EX GRATIA PAYMENTS,Peoples Services,Place Funding,A56110
London Borough of Sutton,12/10/2021,50063681,"51,110.00",Bandon Hill Primary,GRANTS & EX GRATIA PAYMENTS,Peoples Services,Payments to Schools,A51013
London Borough of Sutton,12/10/2021,50063709,"5,862.50",Bandon Hill Primary,GRANTS & EX GRATIA PAYMENTS,Peoples Services,Payments to Schools,A51013
London Borough of Sutton,12/10/2021,50063773,"1,500.00",Bandon Hill Primary,GRANTS & EX GRATIA PAYMENTS,Peoples Services,Pupil Growth,A51014
London Borough of Sutton,12/10/2021,50063828,"14,664.00",Bandon Hill Primary,GRANTS & EX GRATIA PAYMENTS,Resources,"Grants, Contributions & Donations",A47005
London Borough of Sutton,12/10/2021,50063882,"2,668.00",Bandon Hill Primary,GRANTS & EX GRATIA PAYMENTS,Peoples Services,Payments to Schools,A51013
London Borough of Sutton,11/10/2021,50065854,"1,690.00",Bandon Hill Primary,GRANTS & EX GRATIA PAYMENTS,Peoples Services,Top-up Funding,A51016
London Borough of Sutton,11/10/2021,50065875,"1,110.00",Bandon Hill Primary,GRANTS & EX GRATIA PAYMENTS,Peoples Services,Top-up Funding,A51016
London Borough of Sutton,12/10/2021,50065880,"-4,283.33",Bandon Hill Primary,GRANTS & EX GRATIA PAYMENTS,Peoples Services,Top-up Funding,A51016
London Borough of Sutton,27/10/2021,50071762,"390,000.00",Bandon Hill Primary,GRANTS & EX GRATIA PAYMENTS,Peoples Services,Payments to Schools,A51013
London Borough of Sutton,08/08/2021,20009581,"113,000.00",Bandon Hill Primary School,SUNDRY SUPPLIER - EDUCATION,Peoples Services,Payments to Contractors,C14000
London Borough of Sutton,30/09/2021,50062975,"3,446.10",Banya,SOCIAL SERVICES RESIDENTIAL,Peoples Services,Foster Parents Support,A44110
London Borough of Sutton,30/09/2021,50062983,"3,446.10",Banya,SOCIAL SERVICES RESIDENTIAL,Peoples Services,Foster Parents Support,A44110
London Borough of Sutton,30/09/2021,50062984,"5,212.50",Banya,SOCIAL SERVICES RESIDENTIAL,Peoples Services,Foster Parents Support,A44110
London Borough of Sutton,01/10/2021,50060935,-735.68,Barchester Healthcare Homes Ltd,SOCIAL SERVICES RESIDENTIAL,Peoples Services,Nursing Care - 3rd party top up payment,A56023
London Borough of Sutton,01/10/2021,50060935,"5,200.00",Barchester Healthcare Homes Ltd,SOCIAL SERVICES RESIDENTIAL,Peoples Services,Nursing Care - Ext Provider,A56025
London Borough of Sutton,28/09/2021,20010329,"2,511.00",Barnardo's,CHILDREN'S SERVICES - RESIDENTIAL,Peoples Services,Play Groups,A56111
London Borough of Sutton,28/09/2021,50063957,661.5,Barnardo's,CHILDREN'S SERVICES - RESIDENTIAL,Peoples Services,Provider Contract Payments,A44290
London Borough of Sutton,28/09/2021,50063958,803.25,Barnardo's,CHILDREN'S SERVICES - RESIDENTIAL,Peoples Services,Provider Contract Payments,A44290
London Borough of Sutton,28/09/2021,50063959,599.25,Barnardo's,CHILDREN'S SERVICES - RESIDENTIAL,Peoples Services,Provider Contract Payments,A44290
London Borough of Sutton,28/09/2021,50063963,503.5,Barnardo's,CHILDREN'S SERVICES - RESIDENTIAL,Peoples Services,Provider Contract Payments,A44290
London Borough of Sutton,28/09/2021,50063964,686,Barnardo's,CHILDREN'S SERVICES - RESIDENTIAL,Peoples Services,Provider Contract Payments,A44290
London Borough of Sutton,28/09/2021,50063972,"1,041.25",Barnardo's,CHILDREN'S SERVICES - RESIDENTIAL,Peoples Services,Provider Contract Payments,A44290
London Borough of Sutton,28/09/2021,50063974,540.5,Barnardo's,CHILDREN'S SERVICES - RESIDENTIAL,Peoples Services,Provider Contract Payments,A44290
London Borough of Sutton,28/09/2021,50063975,796.25,Barnardo's,CHILDREN'S SERVICES - RESIDENTIAL,Peoples Services,Provider Contract Payments,A44290
London Borough of Sutton,18/08/2021,50071130,661.5,Barnardo's,CHILDREN'S SERVICES - RESIDENTIAL,Peoples Services,Provider Contract Payments,A44290
London Borough of Sutton,18/08/2021,50071142,514.5,Barnardo's,CHILDREN'S SERVICES - RESIDENTIAL,Peoples Services,Provider Contract Payments,A44290
London Borough of Sutton,02/03/2021,50071402,715.5,Barnardo's,CHILDREN'S SERVICES - RESIDENTIAL,Peoples Services,Home Care Services,A56019
London Borough of Sutton,13/05/2021,50071423,715.5,Barnardo's,CHILDREN'S SERVICES - RESIDENTIAL,Peoples Services,Home Care Services,A56019
London Borough of Sutton,05/10/2021,20010558,"15,717.10",Beddington Infants School,GRANTS & EX GRATIA PAYMENTS,Peoples Services,Payments to Contractors,C14000
London Borough of Sutton,07/10/2021,20010817,"7,415.00",Beddington Infants School,GRANTS & EX GRATIA PAYMENTS,Peoples Services,Payments to Contractors,C14000
London Borough of Sutton,12/10/2021,50063606,"100,189.77",Beddington Infants School,GRANTS & EX GRATIA PAYMENTS,Peoples Services,Payments to Schools,A51013
London Borough of Sutton,12/10/2021,50063645,"11,466.00",Beddington Infants School,GRANTS & EX GRATIA PAYMENTS,Peoples Services,Place Funding,A56110
London Borough of Sutton,12/10/2021,50063687,"12,105.00",Beddington Infants School,GRANTS & EX GRATIA PAYMENTS,Peoples Services,Payments to Schools,A51013
London Borough of Sutton,12/10/2021,50063711,586.25,Beddington Infants School,GRANTS & EX GRATIA PAYMENTS,Peoples Services,Payments to Schools,A51013
London Borough of Sutton,12/10/2021,50063775,"1,500.00",Beddington Infants School,GRANTS & EX GRATIA PAYMENTS,Peoples Services,Pupil Growth,A51014
London Borough of Sutton,12/10/2021,50063857,"3,432.00",Beddington Infants School,GRANTS & EX GRATIA PAYMENTS,Resources,"Grants, Contributions & Donations",A47005
London Borough of Sutton,12/10/2021,50063917,"3,578.00",Beddington Infants School,GRANTS & EX GRATIA PAYMENTS,Peoples Services,Payments to Schools,A51013
London Borough of Sutton,12/10/2021,50063646,"8,463.00",Beddington Park Primary Academy,GRANTS & EX GRATIA PAYMENTS,Peoples Services,Place Funding,A56110
London Borough of Sutton,12/10/2021,50063776,"1,500.00",Beddington Park Primary Academy,GRANTS & EX GRATIA PAYMENTS,Peoples Services,Pupil Growth,A51014
London Borough of Sutton,12/10/2021,50063909,"3,531.00",Beddington Park Primary Academy,GRANTS & EX GRATIA PAYMENTS,Peoples Services,Payments to Schools,A51013
London Borough of Sutton,13/09/2021,20010093,"2,457.65",Beeches Tree Care,AGRICULTURAL & ESTATE SERVICES,Environment Housing and Neighbourhoods,Highway Trees - Maintenance,A28005
London Borough of Sutton,07/10/2021,20010799,"2,791.00",Beeches Tree Care,AGRICULTURAL & ESTATE SERVICES,Environment Housing and Neighbourhoods,Maintenance of trees,A28003
London Borough of Sutton,08/10/2021,20010905,"5,725.13",Beeches Tree Care,AGRICULTURAL & ESTATE SERVICES,Environment Housing and Neighbourhoods,Tree Works,A56042
London Borough of Sutton,08/10/2021,20010932,"6,685.02",Beeches Tree Care,AGRICULTURAL & ESTATE SERVICES,Environment Housing and Neighbourhoods,Highway Trees - Maintenance,A28005
London Borough of Sutton,12/10/2021,20011075,"3,080.90",Beeches Tree Care,AGRICULTURAL & ESTATE SERVICES,Environment Housing and Neighbourhoods,Highway Trees - Maintenance,A28005
London Borough of Sutton,15/10/2021,20011312,"1,921.46",Beeches Tree Care,AGRICULTURAL & ESTATE SERVICES,Environment Housing and Neighbourhoods,Highway Trees - Maintenance,A28005
London Borough of Sutton,25/10/2021,20011836,"6,066.78",Beeches Tree Care,AGRICULTURAL & ESTATE SERVICES,Environment Housing and Neighbourhoods,Highway Trees - Maintenance,A28005
London Borough of Sutton,25/10/2021,20011837,"9,320.70",Beeches Tree Care,AGRICULTURAL & ESTATE SERVICES,Environment Housing and Neighbourhoods,Maintenance of trees,A28003
London Borough of Sutton,25/10/2021,20011841,"4,602.45",Beeches Tree Care,AGRICULTURAL & ESTATE SERVICES,Environment Housing and Neighbourhoods,Highway Trees - Maintenance,A28005
London Borough of Sutton,29/10/2021,20012088,477.37,Beeches Tree Care,AGRICULTURAL & ESTATE SERVICES,Environment Housing and Neighbourhoods,Purchases and Repairs Fixtures & Fittings,A25005
London Borough of Sutton,29/10/2021,20012106,"21,314.98",Beeches Tree Care,AGRICULTURAL & ESTATE SERVICES,Environment Housing and Neighbourhoods,Highway Trees - Maintenance,A28005
London Borough of Sutton,12/10/2021,50062411,"4,004.00",Belmont Village Playgroup,GRANTS & EX GRATIA PAYMENTS,Peoples Services,Place Funding,A56110
London Borough of Sutton,04/10/2021,50062599,630,Belmont Village Playgroup,GRANTS & EX GRATIA PAYMENTS,Peoples Services,SEND Inclusion funding,A60038
London Borough of Sutton,30/08/2021,50061636,772,Best at Home Domiciliary Care Services Ltd,SOCIAL SERVICES DAY CARE,Peoples Services,Home Care Services,A56019
London Borough of Sutton,30/08/2021,50061658,800,Best at Home Domiciliary Care Services Ltd,SOCIAL SERVICES DAY CARE,Peoples Services,Home Care Services,A56019
London Borough of Sutton,30/08/2021,50061666,884,Best at Home Domiciliary Care Services Ltd,SOCIAL SERVICES DAY CARE,Peoples Services,Home Care Services,A56019
London Borough of Sutton,30/08/2021,50061670,912,Best at Home Domiciliary Care Services Ltd,SOCIAL SERVICES DAY CARE,Peoples Services,Home Care Services,A56019
London Borough of Sutton,13/09/2021,50070612,772,Best at Home Domiciliary Care Services Ltd,SOCIAL SERVICES DAY CARE,Peoples Services,Home Care Services,A56019
London Borough of Sutton,06/09/2021,50070615,964,Best at Home Domiciliary Care Services Ltd,SOCIAL SERVICES DAY CARE,Peoples Services,Home Care Services,A56019
London Borough of Sutton,06/09/2021,50070630,812,Best at Home Domiciliary Care Services Ltd,SOCIAL SERVICES DAY CARE,Peoples Services,Home Care Services,A56019
London Borough of Sutton,20/09/2021,50070631,772,Best at Home Domiciliary Care Services Ltd,SOCIAL SERVICES DAY CARE,Peoples Services,Home Care Services,A56019
London Borough of Sutton,06/09/2021,50070638,930,Best at Home Domiciliary Care Services Ltd,SOCIAL SERVICES DAY CARE,Peoples Services,Home Care Services,A56019
London Borough of Sutton,13/09/2021,50070641,884,Best at Home Domiciliary Care Services Ltd,SOCIAL SERVICES DAY CARE,Peoples Services,Home Care Services,A56019
London Borough of Sutton,20/09/2021,50070643,884,Best at Home Domiciliary Care Services Ltd,SOCIAL SERVICES DAY CARE,Peoples Services,Home Care Services,A56019
London Borough of Sutton,06/09/2021,50070705,846,Best at Home Domiciliary Care Services Ltd,SOCIAL SERVICES DAY CARE,Peoples Services,Home Care Services,A56019
London Borough of Sutton,20/09/2021,50070706,800,Best at Home Domiciliary Care Services Ltd,SOCIAL SERVICES DAY CARE,Peoples Services,Home Care Services,A56019
London Borough of Sutton,13/09/2021,50070717,800,Best at Home Domiciliary Care Services Ltd,SOCIAL SERVICES DAY CARE,Peoples Services,Home Care Services,A56019
London Borough of Sutton,20/09/2021,50070723,912,Best at Home Domiciliary Care Services Ltd,SOCIAL SERVICES DAY CARE,Peoples Services,Home Care Services,A56019
London Borough of Sutton,13/09/2021,50070745,912,Best at Home Domiciliary Care Services Ltd,SOCIAL SERVICES DAY CARE,Peoples Services,Home Care Services,A56019
London Borough of Sutton,30/09/2021,20010674,"9,694.00",Bestcourt UK Ltd,ACCOMMODATION BED & BREAKFAST,Environment Housing and Neighbourhoods,Bed & Breakfast,A56000
London Borough of Sutton,06/07/2021,20010554,"4,196.50",Bevan Brittan LLP,LEGAL & PROFESSIONAL SERVICES,Resources,Professional Fees,A44066
London Borough of Sutton,12/10/2021,50062500,"5,016.11",Bizzy Bees Day Nursery,GRANTS & EX GRATIA PAYMENTS,Peoples Services,Place Funding,A56110
London Borough of Sutton,12/10/2021,20011078,"19,000.00",Bloom Procurement Services Ltd,TEMP STAFF & CONSULTANCY,Resources,Consultancy Services,A56007
London Borough of Sutton,22/10/2021,20011696,"16,607.00",Bloom Procurement Services Ltd,TEMP STAFF & CONSULTANCY,Resources,Other Supplies & Services,A44291
London Borough of Sutton,12/10/2021,50062480,546,Billy Bears Playdays,GRANTS & EX GRATIA PAYMENTS,Peoples Services,Place Funding,A56110
London Borough of Sutton,01/10/2021,50060914,-735.68,Bondcare (London) Ltd,SOCIAL SERVICES RESIDENTIAL,Peoples Services,Nursing Care - 3rd party top up payment,A56023
London Borough of Sutton,01/10/2021,50060914,"3,612.00",Bondcare (London) Ltd,SOCIAL SERVICES RESIDENTIAL,Peoples Services,Nursing Care - Ext Provider,A56025
London Borough of Sutton,02/10/2021,20010418,"5,500.00",Bournemouth University,ACADEMIC INSTNS - OTHER,Peoples Services,Staff Development And Training,A15022
London Borough of Sutton,29/10/2021,20012148,"11,142.14",Bow Tie Construction Ltd,CONSTRUCTION INDUSTRY,Environment Housing and Neighbourhoods,Payments to Contractors,C14000
London Borough of Sutton,30/09/2021,20010300,"2,975.00",Brand Narrative,TEMP STAFF & CONSULTANCY,Environment Housing and Neighbourhoods,Waste Contractor Payment,A56057
London Borough of Sutton,05/10/2021,20010722,"7,293.63",Breyer Group Plc,CONSTRUCTION INDUSTRY,Environment Housing and Neighbourhoods,Payments to Contractors,C14000
London Borough of Sutton,30/09/2021,20010725,"70,139.67",Breyer Group Plc,CONSTRUCTION INDUSTRY,Environment Housing and Neighbourhoods,Payments to Contractors,C14000
London Borough of Sutton,30/09/2021,20010775,"2,752.92",Breyer Group Plc,CONSTRUCTION INDUSTRY,Environment Housing and Neighbourhoods,Payments to Contractors,C14000
London Borough of Sutton,24/09/2021,20011338,"103,383.67",Breyer Group Plc,CONSTRUCTION INDUSTRY,Environment Housing and Neighbourhoods,Payments to Contractors,C14000
London Borough of Sutton,01/10/2021,50060969,"3,626.72",Bridge House Care Centre,SOCIAL SERVICES RESIDENTIAL,Peoples Services,Nursing Care - Ext Provider,A56025
London Borough of Sutton,01/10/2021,50060969,-750.4,Bridge House Care Centre,SOCIAL SERVICES RESIDENTIAL,Peoples Services,Nursing Care - 3rd party top up payment,A56023
London Borough of Sutton,01/10/2021,50061036,"3,611.68",Bridge House Care Centre,SOCIAL SERVICES RESIDENTIAL,Peoples Services,Nursing Care - Ext Provider,A56025
London Borough of Sutton,01/10/2021,50061036,-735.68,Bridge House Care Centre,SOCIAL SERVICES RESIDENTIAL,Peoples Services,Nursing Care - 3rd party top up payment,A56023
London Borough of Sutton,01/10/2021,50061037,"3,612.00",Bridge House Care Centre,SOCIAL SERVICES RESIDENTIAL,Peoples Services,Nursing Care - Ext Provider,A56025
London Borough of Sutton,01/10/2021,50061037,-735.68,Bridge House Care Centre,SOCIAL SERVICES RESIDENTIAL,Peoples Services,Nursing Care - 3rd party top up payment,A56023
London Borough of Sutton,01/10/2021,50061038,"3,626.72",Bridge House Care Centre,SOCIAL SERVICES RESIDENTIAL,Peoples Services,Nursing Care Short Term,A56026
London Borough of Sutton,01/10/2021,50061038,-750.4,Bridge House Care Centre,SOCIAL SERVICES RESIDENTIAL,Peoples Services,Nursing Care - 3rd party top up payment,A56023
London Borough of Sutton,01/10/2021,50061039,"3,502.24",Bridge House Care Centre,SOCIAL SERVICES RESIDENTIAL,Peoples Services,Nursing Care - Ext Provider,A56025
London Borough of Sutton,01/10/2021,50061039,-662.24,Bridge House Care Centre,SOCIAL SERVICES RESIDENTIAL,Peoples Services,Nursing Care - 3rd party top up payment,A56023
London Borough of Sutton,01/10/2021,50061040,"3,586.28",Bridge House Care Centre,SOCIAL SERVICES RESIDENTIAL,Peoples Services,Nursing Care - Ext Provider,A56025
London Borough of Sutton,01/10/2021,50061040,-662.24,Bridge House Care Centre,SOCIAL SERVICES RESIDENTIAL,Peoples Services,Nursing Care - 3rd party top up payment,A56023
London Borough of Sutton,01/10/2021,50061076,"3,626.72",Bridge House Care Centre,SOCIAL SERVICES RESIDENTIAL,Peoples Services,Nursing Care - Ext Provider,A56025
London Borough of Sutton,01/10/2021,50061076,-750.4,Bridge House Care Centre,SOCIAL SERVICES RESIDENTIAL,Peoples Services,Nursing Care - 3rd party top up payment,A56023
London Borough of Sutton,01/10/2021,50061077,"3,626.72",Bridge House Care Centre,SOCIAL SERVICES RESIDENTIAL,Peoples Services,Nursing Care - Ext Provider,A56025
London Borough of Sutton,01/10/2021,50061078,-735.68,Bridge House Care Centre,SOCIAL SERVICES RESIDENTIAL,Peoples Services,Nursing Care - 3rd party top up payment,A56023
London Borough of Sutton,01/10/2021,50061078,"3,611.68",Bridge House Care Centre,SOCIAL SERVICES RESIDENTIAL,Peoples Services,Nursing Care - Ext Provider,A56025
London Borough of Sutton,01/10/2021,50061123,-750.4,Bridge House Care Centre,SOCIAL SERVICES RESIDENTIAL,Peoples Services,Nursing Care - 3rd party top up payment,A56023
London Borough of Sutton,01/10/2021,50061135,-750.4,Bridge House Care Centre,SOCIAL SERVICES RESIDENTIAL,Peoples Services,Nursing Care - 3rd party top up payment,A56023
London Borough of Sutton,01/10/2021,50061135,"3,626.72",Bridge House Care Centre,SOCIAL SERVICES RESIDENTIAL,Peoples Services,Nursing Care - Ext Provider,A56025
London Borough of Sutton,01/10/2021,50061151,"3,555.32",Bridge House Care Centre,SOCIAL SERVICES RESIDENTIAL,Peoples Services,Nursing Care - Ext Provider,A56025
London Borough of Sutton,01/10/2021,50061151,-632.64,Bridge House Care Centre,SOCIAL SERVICES RESIDENTIAL,Peoples Services,Nursing Care - 3rd party top up payment,A56023
London Borough of Sutton,01/10/2021,50061232,"3,612.00",Bridge House Care Centre,SOCIAL SERVICES RESIDENTIAL,Peoples Services,Nursing Care - Ext Provider,A56025
London Borough of Sutton,01/10/2021,50061232,-735.68,Bridge House Care Centre,SOCIAL SERVICES RESIDENTIAL,Peoples Services,Nursing Care - 3rd party top up payment,A56023
London Borough of Sutton,01/10/2021,50061265,"3,626.72",Bridge House Care Centre,SOCIAL SERVICES RESIDENTIAL,Peoples Services,Nursing Care - Ext Provider,A56025
London Borough of Sutton,01/10/2021,50061265,-750.4,Bridge House Care Centre,SOCIAL SERVICES RESIDENTIAL,Peoples Services,Nursing Care - 3rd party top up payment,A56023
London Borough of Sutton,01/10/2021,50061302,"3,472.64",Bridge House Care Centre,SOCIAL SERVICES RESIDENTIAL,Peoples Services,Nursing Care - Ext Provider,A56025
London Borough of Sutton,01/10/2021,50061302,-632.64,Bridge House Care Centre,SOCIAL SERVICES RESIDENTIAL,Peoples Services,Nursing Care - 3rd party top up payment,A56023
London Borough of Sutton,01/10/2021,50061303,"3,626.72",Bridge House Care Centre,SOCIAL SERVICES RESIDENTIAL,Peoples Services,Nursing Care Short Term,A56026
London Borough of Sutton,01/10/2021,50061303,-750.4,Bridge House Care Centre,SOCIAL SERVICES RESIDENTIAL,Peoples Services,Nursing Care - 3rd party top up payment,A56023
London Borough of Sutton,01/10/2021,50061332,"2,075.08",Bridge House Care Centre,SOCIAL SERVICES RESIDENTIAL,Peoples Services,Nursing Care - Ext Provider,A56025
London Borough of Sutton,01/09/2021,50062890,"3,385.71",Bridging Gaps Limited,CHILDREN'S SERVICES - FOSTERING & ADOPTION SERVICES,Peoples Services,Foster Parents Support,A44110
London Borough of Sutton,01/09/2021,50062950,"20,827.63",Bright Futures Care Ltd,CHILDREN'S SERVICES - FOSTERING & ADOPTION SERVICES,Peoples Services,Residential Care-Children,A56115
London Borough of Sutton,01/09/2021,50062899,"3,214.24",Brighter Futures Foster Care Ltd,CHILDREN'S SERVICES - FOSTERING & ADOPTION SERVICES,Peoples Services,Foster Parents Support,A44110
London Borough of Sutton,01/09/2021,50063008,"3,214.20",Brighter Futures Foster Care Ltd,CHILDREN'S SERVICES - FOSTERING & ADOPTION SERVICES,Peoples Services,Foster Parents Support,A44110
London Borough of Sutton,01/09/2021,50063018,"2,657.10",Brighter Futures Foster Care Ltd,CHILDREN'S SERVICES - FOSTERING & ADOPTION SERVICES,Peoples Services,Foster Parents Support,A44110
London Borough of Sutton,21/09/2021,20009996,500.72,British Gas,UTILITIES,HRA,Electricity,A21000
London Borough of Sutton,05/10/2021,20010831,"1,336.43",British Gas,UTILITIES,Health and Wellbeing,Electricity,A21000
London Borough of Sutton,01/10/2021,50061107,-746,British Home & Hospital For Incurables,SOCIAL SERVICES RESIDENTIAL,Peoples Services,Nursing Care - Client Cont ( Net paymt ),A56024
London Borough of Sutton,01/10/2021,50061107,"2,497.88",British Home & Hospital For Incurables,SOCIAL SERVICES RESIDENTIAL,Peoples Services,Nursing Care - Ext Provider,A56025
London Borough of Sutton,01/10/2021,50061108,"3,752.64",Broadlands Nursing Home,SOCIAL SERVICES RESIDENTIAL,Peoples Services,Nursing Care - Ext Provider,A56025
London Borough of Sutton,01/10/2021,50061108,-632.64,Broadlands Nursing Home,SOCIAL SERVICES RESIDENTIAL,Peoples Services,Nursing Care - 3rd party top up payment,A56023
London Borough of Sutton,01/10/2021,50061201,"3,626.72",Broadlands Nursing Home,SOCIAL SERVICES RESIDENTIAL,Peoples Services,Nursing Care - Ext Provider,A56025
London Borough of Sutton,01/10/2021,50061201,-750.4,Broadlands Nursing Home,SOCIAL SERVICES RESIDENTIAL,Peoples Services,Nursing Care - 3rd party top up payment,A56023
London Borough of Sutton,01/10/2021,50061286,"3,626.72",Broadlands Nursing Home,SOCIAL SERVICES RESIDENTIAL,Peoples Services,Nursing Care - Ext Provider,A56025
London Borough of Sutton,01/10/2021,50061286,-750.4,Broadlands Nursing Home,SOCIAL SERVICES RESIDENTIAL,Peoples Services,Nursing Care - 3rd party top up payment,A56023
London Borough of Sutton,01/10/2021,50061289,"3,586.28",Broadlands Nursing Home,SOCIAL SERVICES RESIDENTIAL,Peoples Services,Nursing Care - Ext Provider,A56025
London Borough of Sutton,01/10/2021,50061289,-662.24,Broadlands Nursing Home,SOCIAL SERVICES RESIDENTIAL,Peoples Services,Nursing Care - 3rd party top up payment,A56023
London Borough of Sutton,01/10/2021,50061340,"3,543.04",Broadlands Nursing Home,SOCIAL SERVICES RESIDENTIAL,Peoples Services,Nursing Care - Ext Provider,A56025
London Borough of Sutton,01/10/2021,50061340,-632.64,Broadlands Nursing Home,SOCIAL SERVICES RESIDENTIAL,Peoples Services,Nursing Care - 3rd party top up payment,A56023
London Borough of Sutton,12/10/2021,50063647,"10,395.00",Brookfield Primary Academy,GRANTS & EX GRATIA PAYMENTS,Peoples Services,Place Funding,A56110
London Borough of Sutton,12/10/2021,50063777,"1,500.00",Brookfield Primary Academy,GRANTS & EX GRATIA PAYMENTS,Peoples Services,Pupil Growth,A51014
London Borough of Sutton,12/10/2021,50063851,"6,318.00",Brookfield Primary Academy,GRANTS & EX GRATIA PAYMENTS,Resources,"Grants, Contributions & Donations",A47005
London Borough of Sutton,12/10/2021,50063904,"5,013.00",Brookfield Primary Academy,GRANTS & EX GRATIA PAYMENTS,Peoples Services,Payments to Schools,A51013
London Borough of Sutton,01/10/2021,20010403,"1,435.00",BSI British Standard Institute,BUILDING MNTCE - SERVICES,Environment Housing and Neighbourhoods,Subscriptions,A47010
London Borough of Sutton,12/10/2021,50062353,"2,486.40",Bumpsa Daisies Nurserys,GRANTS & EX GRATIA PAYMENTS,Peoples Services,Place Funding,A56110
London Borough of Sutton,12/10/2021,50062419,"7,276.50",Bumpsa Daisies Nurserys,GRANTS & EX GRATIA PAYMENTS,Peoples Services,Place Funding,A56110
London Borough of Sutton,01/10/2021,50060944,"3,800.00",Burlington Care (ASC) Ltd,SOCIAL SERVICES RESIDENTIAL,Peoples Services,Residential Care - Ext Provider,A56114
London Borough of Sutton,04/10/2021,50062322,700,Busy Bees Day Nurseries Ltd,GRANTS & EX GRATIA PAYMENTS,Peoples Services,SEND Inclusion funding,A60038
London Borough of Sutton,12/10/2021,50062355,621.6,Busy Bees Day Nurseries Ltd,GRANTS & EX GRATIA PAYMENTS,Peoples Services,Place Funding,A56110
London Borough of Sutton,12/10/2021,50062421,"10,187.10",Busy Bees Day Nurseries Ltd,GRANTS & EX GRATIA PAYMENTS,Peoples Services,Place Funding,A56110
London Borough of Sutton,12/10/2021,50062422,"8,229.38",Busy Bees Day Nurseries Ltd,GRANTS & EX GRATIA PAYMENTS,Peoples Services,Place Funding,A56110
London Borough of Sutton,04/10/2021,50062602,"3,850.00",Busy Bees Day Nurseries Ltd,GRANTS & EX GRATIA PAYMENTS,Peoples Services,SEND Inclusion funding,A60038
London Borough of Sutton,04/10/2021,50062603,"1,750.00",Busy Bees Day Nurseries Ltd,GRANTS & EX GRATIA PAYMENTS,Peoples Services,SEND Inclusion funding,A60038
London Borough of Sutton,01/10/2021,50061082,"7,824.28",Butterfly's Care Homes Ltd,SOCIAL SERVICES RESIDENTIAL,Peoples Services,Residential Care - Ext Provider,A56114
London Borough of Sutton,05/10/2021,20010548,"417,159.00",Buxton Building Contractors Ltd,CONSTRUCTION INDUSTRY,Environment Housing and Neighbourhoods,Payments to Contractors,C14000
London Borough of Sutton,12/10/2021,20010987,"-4,171.59",Buxton Building Contractors Ltd,CONSTRUCTION INDUSTRY,Resources,Fees And Charges (VATable),A92310
London Borough of Sutton,01/10/2021,50062952,"2,879.70",By The Bridge Ltd,CHILDREN'S SERVICES - FOSTERING & ADOPTION SERVICES,Peoples Services,Foster Parents Support,A44110
London Borough of Sutton,01/10/2021,50062953,"2,879.70",By The Bridge Ltd,CHILDREN'S SERVICES - FOSTERING & ADOPTION SERVICES,Peoples Services,Foster Parents Support,A44110
London Borough of Sutton,01/10/2021,50062970,"4,516.50",By The Bridge Ltd,CHILDREN'S SERVICES - FOSTERING & ADOPTION SERVICES,Peoples Services,Foster Parents Support,A44110
London Borough of Sutton,01/10/2021,50062972,"5,702.40",By The Bridge Ltd,CHILDREN'S SERVICES - FOSTERING & ADOPTION SERVICES,Peoples Services,Foster Parents Support,A44110
London Borough of Sutton,01/09/2021,50062981,"6,171.43",Caldecott Fostering Ltd,CHILDREN'S SERVICES - FOSTERING & ADOPTION SERVICES,Peoples Services,Foster Parents Support,A44110
London Borough of Sutton,26/07/2021,20010460,"4,816.80",Candy Pampering & Aesthetics Ltd ,ACADEMIC INSTNS - OTHER,Health and Wellbeing,Professional Fees,A44066
London Borough of Sutton,14/10/2021,20011251,"6,620.00",Candy Pampering & Aesthetics Ltd ,ACADEMIC INSTNS - OTHER,Health and Wellbeing,Hire of Rooms,A22010
London Borough of Sutton,14/10/2021,20011252,"6,620.00",Candy Pampering & Aesthetics Ltd ,ACADEMIC INSTNS - OTHER,Health and Wellbeing,Hire of Rooms,A22010
London Borough of Sutton,30/09/2021,20010312,"8,636.83",Canon (UK) Ltd,REPROGRAPHICS & PHOTOGRAPHY,Resources,IT Hardware Maintenance,A45008
London Borough of Sutton,11/05/2021,50069402,"4,605.23",CANTERBURY CAMPUS,CHILDREN'S SERVICES - SEN SERVICES,Peoples Services,Top-up Funding,A51016
London Borough of Sutton,21/04/2021,50069403,"3,947.37",CANTERBURY CAMPUS,CHILDREN'S SERVICES - SEN SERVICES,Peoples Services,Top-up Funding,A51016
London Borough of Sutton,01/10/2021,50061127,-922.32,Canterbury Oast Trust,SOCIAL SERVICES RESIDENTIAL,Peoples Services,Residential Care - Client Cont ( Net Paymt ),A56113
London Borough of Sutton,01/10/2021,50061127,204.72,Canterbury Oast Trust,SOCIAL SERVICES RESIDENTIAL,Peoples Services,One to One Care,A56108
London Borough of Sutton,01/10/2021,50061127,"3,913.56",Canterbury Oast Trust,SOCIAL SERVICES RESIDENTIAL,Peoples Services,Residential Care - Ext Provider,A56114
London Borough of Sutton,30/09/2021,50062961,"3,510.04",Capstone Foster Care (South East) Ltd,CHILDREN'S SERVICES - FOSTERING & ADOPTION SERVICES,Peoples Services,Foster Parents Support,A44110
London Borough of Sutton,30/09/2021,50062991,"5,511.34",Capstone Foster Care (South East) Ltd,CHILDREN'S SERVICES - FOSTERING & ADOPTION SERVICES,Peoples Services,Foster Parents Support,A44110
London Borough of Sutton,19/10/2021,19000403,"-3,176.04",Care  Support Partners Ltd,SOCIAL SERVICES RESIDENTIAL,Peoples Services,Supported Living,A56088
London Borough of Sutton,19/10/2021,50067409,"3,176.04",Care  Support Partners Ltd,SOCIAL SERVICES RESIDENTIAL,Peoples Services,Supported Living,A56088
London Borough of Sutton,19/10/2021,50069449,"3,176.04",Care  Support Partners Ltd,SOCIAL SERVICES RESIDENTIAL,Peoples Services,Supported Living,A56088
London Borough of Sutton,27/09/2021,50071792,"8,822.14",Care Advocates Ltd,MANAGEMENT & TRAINING SERVICES,Peoples Services,Supported Living,A56088
London Borough of Sutton,27/09/2021,50071793,"6,379.28",Care Advocates Ltd,MANAGEMENT & TRAINING SERVICES,Peoples Services,Supported Living,A56088
London Borough of Sutton,01/10/2021,50061285,"3,200.00",Care Concern Group ,SOCIAL SERVICES RESIDENTIAL,Peoples Services,Residential Care - Ext Provider,A56114
London Borough of Sutton,01/10/2021,50061345,"3,631.80",Care Direct Uk Ltd ,SOCIAL SERVICES RESIDENTIAL,Peoples Services,Residential Care - Ext Provider,A56114
London Borough of Sutton,23/09/2021,19000525,-820,Care More Ltd,SOCIAL SERVICES RESIDENTIAL,Peoples Services,Home Care Services,A56019
London Borough of Sutton,23/09/2021,19000527,-798,Care More Ltd,SOCIAL SERVICES RESIDENTIAL,Peoples Services,Home Care Services,A56019
London Borough of Sutton,23/09/2021,19000530,-960,Care More Ltd,SOCIAL SERVICES RESIDENTIAL,Peoples Services,Home Care Services,A56019
London Borough of Sutton,23/09/2021,19000533,"-1,848.00",Care More Ltd,SOCIAL SERVICES RESIDENTIAL,Peoples Services,Home Care Services,A56019
London Borough of Sutton,23/09/2021,19000554,"-1,400.00",Care More Ltd,SOCIAL SERVICES RESIDENTIAL,Peoples Services,Home Care Services,A56019
London Borough of Sutton,23/09/2021,19000556,"-1,484.00",Care More Ltd,SOCIAL SERVICES RESIDENTIAL,Peoples Services,Home Care Services,A56019
London Borough of Sutton,23/09/2021,19000557,-567,Care More Ltd,SOCIAL SERVICES RESIDENTIAL,Peoples Services,Home Care Services,A56019
London Borough of Sutton,23/09/2021,19000560,"-1,134.00",Care More Ltd,SOCIAL SERVICES RESIDENTIAL,Peoples Services,Home Care Services,A56019
London Borough of Sutton,23/09/2021,19000562,"-1,652.00",Care More Ltd,SOCIAL SERVICES RESIDENTIAL,Peoples Services,Home Care Services,A56019
London Borough of Sutton,23/09/2021,19000563,-567,Care More Ltd,SOCIAL SERVICES RESIDENTIAL,Peoples Services,Home Care Services,A56019
London Borough of Sutton,23/09/2021,19000564,"-1,134.00",Care More Ltd,SOCIAL SERVICES RESIDENTIAL,Peoples Services,Home Care Services,A56019
London Borough of Sutton,23/09/2021,19000566,-506,Care More Ltd,SOCIAL SERVICES RESIDENTIAL,Peoples Services,Home Care Services,A56019
London Borough of Sutton,23/09/2021,19000569,-704.5,Care More Ltd,SOCIAL SERVICES RESIDENTIAL,Peoples Services,Home Care Services,A56019
London Borough of Sutton,23/09/2021,19000571,"-1,484.00",Care More Ltd,SOCIAL SERVICES RESIDENTIAL,Peoples Services,Home Care Services,A56019
London Borough of Sutton,23/09/2021,19000577,"-1,218.00",Care More Ltd,SOCIAL SERVICES RESIDENTIAL,Peoples Services,Home Care Services,A56019
London Borough of Sutton,23/09/2021,19000579,-742,Care More Ltd,SOCIAL SERVICES RESIDENTIAL,Peoples Services,Home Care Services,A56019
London Borough of Sutton,23/09/2021,19000590,-684,Care More Ltd,SOCIAL SERVICES RESIDENTIAL,Peoples Services,Home Care Services,A56019
London Borough of Sutton,23/09/2021,19000592,-567,Care More Ltd,SOCIAL SERVICES RESIDENTIAL,Peoples Services,Home Care Services,A56019
London Borough of Sutton,23/09/2021,19000595,"-1,848.00",Care More Ltd,SOCIAL SERVICES RESIDENTIAL,Peoples Services,Home Care Services,A56019
London Borough of Sutton,23/09/2021,19000595,-117,Care More Ltd,SOCIAL SERVICES RESIDENTIAL,Peoples Services,Home Care Services,A56019
London Borough of Sutton,23/09/2021,19000598,"-1,400.00",Care More Ltd,SOCIAL SERVICES RESIDENTIAL,Peoples Services,Home Care Services,A56019
London Borough of Sutton,23/09/2021,19000599,-800.5,Care More Ltd,SOCIAL SERVICES RESIDENTIAL,Peoples Services,Home Care Services,A56019
London Borough of Sutton,23/09/2021,19000601,-722,Care More Ltd,SOCIAL SERVICES RESIDENTIAL,Peoples Services,Home Care Services,A56019
London Borough of Sutton,23/09/2021,19000602,-39,Care More Ltd,SOCIAL SERVICES RESIDENTIAL,Peoples Services,Home Care Services,A56019
London Borough of Sutton,23/09/2021,19000602,"-1,773.75",Care More Ltd,SOCIAL SERVICES RESIDENTIAL,Peoples Services,Home Care Services,A56019
London Borough of Sutton,23/09/2021,19000616,"-1,400.00",Care More Ltd,SOCIAL SERVICES RESIDENTIAL,Peoples Services,Home Care Services,A56019
London Borough of Sutton,23/09/2021,19000619,-859,Care More Ltd,SOCIAL SERVICES RESIDENTIAL,Peoples Services,Home Care Services,A56019
London Borough of Sutton,23/09/2021,19000626,-974,Care More Ltd,SOCIAL SERVICES RESIDENTIAL,Peoples Services,Home Care Services,A56019
London Borough of Sutton,23/09/2021,19000627,-685,Care More Ltd,SOCIAL SERVICES RESIDENTIAL,Peoples Services,Home Care Services,A56019
London Borough of Sutton,14/07/2021,50061571,915.56,Care More Ltd,SOCIAL SERVICES RESIDENTIAL,Peoples Services,Home Care Services,A56019
London Borough of Sutton,06/09/2021,50065988,974,Care More Ltd,SOCIAL SERVICES RESIDENTIAL,Peoples Services,Home Care Services,A56019
London Borough of Sutton,06/09/2021,50065989,820,Care More Ltd,SOCIAL SERVICES RESIDENTIAL,Peoples Services,Home Care Services,A56019
London Borough of Sutton,06/09/2021,50065993,"1,848.00",Care More Ltd,SOCIAL SERVICES RESIDENTIAL,Peoples Services,Home Care Services,A56019
London Borough of Sutton,06/09/2021,50065997,"1,400.00",Care More Ltd,SOCIAL SERVICES RESIDENTIAL,Peoples Services,Home Care Services,A56019
London Borough of Sutton,06/09/2021,50066001,684,Care More Ltd,SOCIAL SERVICES RESIDENTIAL,Peoples Services,Home Care Services,A56019
London Borough of Sutton,06/09/2021,50066002,"1,134.00",Care More Ltd,SOCIAL SERVICES RESIDENTIAL,Peoples Services,Home Care Services,A56019
London Borough of Sutton,06/09/2021,50066004,798,Care More Ltd,SOCIAL SERVICES RESIDENTIAL,Peoples Services,Home Care Services,A56019
London Borough of Sutton,06/09/2021,50066008,884.5,Care More Ltd,SOCIAL SERVICES RESIDENTIAL,Peoples Services,Home Care Services,A56019
London Borough of Sutton,06/09/2021,50066009,859,Care More Ltd,SOCIAL SERVICES RESIDENTIAL,Peoples Services,Home Care Services,A56019
London Borough of Sutton,06/09/2021,50066017,"1,218.00",Care More Ltd,SOCIAL SERVICES RESIDENTIAL,Peoples Services,Home Care Services,A56019
London Borough of Sutton,06/09/2021,50066019,742,Care More Ltd,SOCIAL SERVICES RESIDENTIAL,Peoples Services,Home Care Services,A56019
London Borough of Sutton,06/09/2021,50066020,"1,484.00",Care More Ltd,SOCIAL SERVICES RESIDENTIAL,Peoples Services,Home Care Services,A56019
London Borough of Sutton,06/09/2021,50066021,542,Care More Ltd,SOCIAL SERVICES RESIDENTIAL,Peoples Services,Home Care Services,A56019
London Borough of Sutton,06/09/2021,50066022,567,Care More Ltd,SOCIAL SERVICES RESIDENTIAL,Peoples Services,Home Care Services,A56019
London Borough of Sutton,06/09/2021,50066026,"1,848.00",Care More Ltd,SOCIAL SERVICES RESIDENTIAL,Peoples Services,Home Care Services,A56019
London Borough of Sutton,06/09/2021,50066026,117,Care More Ltd,SOCIAL SERVICES RESIDENTIAL,Peoples Services,Home Care Services,A56019
London Borough of Sutton,06/09/2021,50066027,622.5,Care More Ltd,SOCIAL SERVICES RESIDENTIAL,Peoples Services,Home Care Services,A56019
London Borough of Sutton,06/09/2021,50066029,"1,400.00",Care More Ltd,SOCIAL SERVICES RESIDENTIAL,Peoples Services,Home Care Services,A56019
London Borough of Sutton,06/09/2021,50066030,560.5,Care More Ltd,SOCIAL SERVICES RESIDENTIAL,Peoples Services,Home Care Services,A56019
London Borough of Sutton,06/09/2021,50066033,"1,400.00",Care More Ltd,SOCIAL SERVICES RESIDENTIAL,Peoples Services,Home Care Services,A56019
London Borough of Sutton,06/09/2021,50066034,960,Care More Ltd,SOCIAL SERVICES RESIDENTIAL,Peoples Services,Home Care Services,A56019
London Borough of Sutton,06/09/2021,50066035,800.5,Care More Ltd,SOCIAL SERVICES RESIDENTIAL,Peoples Services,Home Care Services,A56019
London Borough of Sutton,06/09/2021,50066037,51.5,Care More Ltd,SOCIAL SERVICES RESIDENTIAL,Peoples Services,Home Care Services,A56019
London Borough of Sutton,06/09/2021,50066037,"1,761.25",Care More Ltd,SOCIAL SERVICES RESIDENTIAL,Peoples Services,Home Care Services,A56019
London Borough of Sutton,06/09/2021,50066041,506,Care More Ltd,SOCIAL SERVICES RESIDENTIAL,Peoples Services,Home Care Services,A56019
London Borough of Sutton,06/09/2021,50066044,729.5,Care More Ltd,SOCIAL SERVICES RESIDENTIAL,Peoples Services,Home Care Services,A56019
London Borough of Sutton,06/09/2021,50066046,"1,484.00",Care More Ltd,SOCIAL SERVICES RESIDENTIAL,Peoples Services,Home Care Services,A56019
London Borough of Sutton,06/09/2021,50066049,"1,652.00",Care More Ltd,SOCIAL SERVICES RESIDENTIAL,Peoples Services,Home Care Services,A56019
London Borough of Sutton,06/09/2021,50066050,567,Care More Ltd,SOCIAL SERVICES RESIDENTIAL,Peoples Services,Home Care Services,A56019
London Borough of Sutton,06/09/2021,50066051,"1,134.00",Care More Ltd,SOCIAL SERVICES RESIDENTIAL,Peoples Services,Home Care Services,A56019
London Borough of Sutton,23/09/2021,50067531,820,Care More Ltd,SOCIAL SERVICES RESIDENTIAL,Peoples Services,Home Care Services,A56019
London Borough of Sutton,23/09/2021,50067533,798,Care More Ltd,SOCIAL SERVICES RESIDENTIAL,Peoples Services,Home Care Services,A56019
London Borough of Sutton,23/09/2021,50067536,960,Care More Ltd,SOCIAL SERVICES RESIDENTIAL,Peoples Services,Home Care Services,A56019
London Borough of Sutton,23/09/2021,50067539,"1,848.00",Care More Ltd,SOCIAL SERVICES RESIDENTIAL,Peoples Services,Home Care Services,A56019
London Borough of Sutton,23/09/2021,50067560,"1,400.00",Care More Ltd,SOCIAL SERVICES RESIDENTIAL,Peoples Services,Home Care Services,A56019
London Borough of Sutton,23/09/2021,50067562,"1,484.00",Care More Ltd,SOCIAL SERVICES RESIDENTIAL,Peoples Services,Home Care Services,A56019
London Borough of Sutton,23/09/2021,50067563,567,Care More Ltd,SOCIAL SERVICES RESIDENTIAL,Peoples Services,Home Care Services,A56019
London Borough of Sutton,23/09/2021,50067566,"1,134.00",Care More Ltd,SOCIAL SERVICES RESIDENTIAL,Peoples Services,Home Care Services,A56019
London Borough of Sutton,23/09/2021,50067568,"1,652.00",Care More Ltd,SOCIAL SERVICES RESIDENTIAL,Peoples Services,Home Care Services,A56019
London Borough of Sutton,23/09/2021,50067569,567,Care More Ltd,SOCIAL SERVICES RESIDENTIAL,Peoples Services,Home Care Services,A56019
London Borough of Sutton,23/09/2021,50067570,"1,134.00",Care More Ltd,SOCIAL SERVICES RESIDENTIAL,Peoples Services,Home Care Services,A56019
London Borough of Sutton,23/09/2021,50067572,506,Care More Ltd,SOCIAL SERVICES RESIDENTIAL,Peoples Services,Home Care Services,A56019
London Borough of Sutton,23/09/2021,50067575,704.5,Care More Ltd,SOCIAL SERVICES RESIDENTIAL,Peoples Services,Home Care Services,A56019
London Borough of Sutton,23/09/2021,50067577,"1,484.00",Care More Ltd,SOCIAL SERVICES RESIDENTIAL,Peoples Services,Home Care Services,A56019
London Borough of Sutton,23/09/2021,50067583,"1,218.00",Care More Ltd,SOCIAL SERVICES RESIDENTIAL,Peoples Services,Home Care Services,A56019
London Borough of Sutton,23/09/2021,50067585,742,Care More Ltd,SOCIAL SERVICES RESIDENTIAL,Peoples Services,Home Care Services,A56019
London Borough of Sutton,23/09/2021,50067596,684,Care More Ltd,SOCIAL SERVICES RESIDENTIAL,Peoples Services,Home Care Services,A56019
London Borough of Sutton,23/09/2021,50067598,567,Care More Ltd,SOCIAL SERVICES RESIDENTIAL,Peoples Services,Home Care Services,A56019
London Borough of Sutton,23/09/2021,50067601,"1,848.00",Care More Ltd,SOCIAL SERVICES RESIDENTIAL,Peoples Services,Home Care Services,A56019
London Borough of Sutton,23/09/2021,50067601,117,Care More Ltd,SOCIAL SERVICES RESIDENTIAL,Peoples Services,Home Care Services,A56019
London Borough of Sutton,23/09/2021,50067604,"1,400.00",Care More Ltd,SOCIAL SERVICES RESIDENTIAL,Peoples Services,Home Care Services,A56019
London Borough of Sutton,23/09/2021,50067605,800.5,Care More Ltd,SOCIAL SERVICES RESIDENTIAL,Peoples Services,Home Care Services,A56019
London Borough of Sutton,23/09/2021,50067607,722,Care More Ltd,SOCIAL SERVICES RESIDENTIAL,Peoples Services,Home Care Services,A56019
London Borough of Sutton,23/09/2021,50067608,39,Care More Ltd,SOCIAL SERVICES RESIDENTIAL,Peoples Services,Home Care Services,A56019
London Borough of Sutton,23/09/2021,50067608,"1,773.75",Care More Ltd,SOCIAL SERVICES RESIDENTIAL,Peoples Services,Home Care Services,A56019
London Borough of Sutton,23/09/2021,50067622,"1,400.00",Care More Ltd,SOCIAL SERVICES RESIDENTIAL,Peoples Services,Home Care Services,A56019
London Borough of Sutton,23/09/2021,50067625,859,Care More Ltd,SOCIAL SERVICES RESIDENTIAL,Peoples Services,Home Care Services,A56019
London Borough of Sutton,23/09/2021,50067632,974,Care More Ltd,SOCIAL SERVICES RESIDENTIAL,Peoples Services,Home Care Services,A56019
London Borough of Sutton,23/09/2021,50067633,685,Care More Ltd,SOCIAL SERVICES RESIDENTIAL,Peoples Services,Home Care Services,A56019
London Borough of Sutton,23/09/2021,50069571,820,Care More Ltd,SOCIAL SERVICES RESIDENTIAL,Peoples Services,Home Care Services,A56019
London Borough of Sutton,23/09/2021,50069573,798,Care More Ltd,SOCIAL SERVICES RESIDENTIAL,Peoples Services,Home Care Services,A56019
London Borough of Sutton,23/09/2021,50069576,960,Care More Ltd,SOCIAL SERVICES RESIDENTIAL,Peoples Services,Home Care Services,A56019
London Borough of Sutton,23/09/2021,50069579,"1,848.00",Care More Ltd,SOCIAL SERVICES RESIDENTIAL,Peoples Services,Home Care Services,A56019
London Borough of Sutton,23/09/2021,50069600,"1,400.00",Care More Ltd,SOCIAL SERVICES RESIDENTIAL,Peoples Services,Home Care Services,A56019
London Borough of Sutton,23/09/2021,50069602,"1,484.00",Care More Ltd,SOCIAL SERVICES RESIDENTIAL,Peoples Services,Home Care Services,A56019
London Borough of Sutton,23/09/2021,50069603,567,Care More Ltd,SOCIAL SERVICES RESIDENTIAL,Peoples Services,Home Care Services,A56019
London Borough of Sutton,23/09/2021,50069606,"1,134.00",Care More Ltd,SOCIAL SERVICES RESIDENTIAL,Peoples Services,Home Care Services,A56019
London Borough of Sutton,23/09/2021,50069608,"1,652.00",Care More Ltd,SOCIAL SERVICES RESIDENTIAL,Peoples Services,Home Care Services,A56019
London Borough of Sutton,23/09/2021,50069609,567,Care More Ltd,SOCIAL SERVICES RESIDENTIAL,Peoples Services,Home Care Services,A56019
London Borough of Sutton,23/09/2021,50069610,"1,134.00",Care More Ltd,SOCIAL SERVICES RESIDENTIAL,Peoples Services,Home Care Services,A56019
London Borough of Sutton,23/09/2021,50069612,506,Care More Ltd,SOCIAL SERVICES RESIDENTIAL,Peoples Services,Home Care Services,A56019
London Borough of Sutton,23/09/2021,50069615,704.5,Care More Ltd,SOCIAL SERVICES RESIDENTIAL,Peoples Services,Home Care Services,A56019
London Borough of Sutton,23/09/2021,50069617,"1,484.00",Care More Ltd,SOCIAL SERVICES RESIDENTIAL,Peoples Services,Home Care Services,A56019
London Borough of Sutton,23/09/2021,50069623,"1,218.00",Care More Ltd,SOCIAL SERVICES RESIDENTIAL,Peoples Services,Home Care Services,A56019
London Borough of Sutton,23/09/2021,50069625,742,Care More Ltd,SOCIAL SERVICES RESIDENTIAL,Peoples Services,Home Care Services,A56019
London Borough of Sutton,23/09/2021,50069636,684,Care More Ltd,SOCIAL SERVICES RESIDENTIAL,Peoples Services,Home Care Services,A56019
London Borough of Sutton,23/09/2021,50069638,567,Care More Ltd,SOCIAL SERVICES RESIDENTIAL,Peoples Services,Home Care Services,A56019
London Borough of Sutton,23/09/2021,50069641,"1,848.00",Care More Ltd,SOCIAL SERVICES RESIDENTIAL,Peoples Services,Home Care Services,A56019
London Borough of Sutton,23/09/2021,50069641,117,Care More Ltd,SOCIAL SERVICES RESIDENTIAL,Peoples Services,Home Care Services,A56019
London Borough of Sutton,23/09/2021,50069644,"1,400.00",Care More Ltd,SOCIAL SERVICES RESIDENTIAL,Peoples Services,Home Care Services,A56019
London Borough of Sutton,23/09/2021,50069645,800.5,Care More Ltd,SOCIAL SERVICES RESIDENTIAL,Peoples Services,Home Care Services,A56019
London Borough of Sutton,23/09/2021,50069647,722,Care More Ltd,SOCIAL SERVICES RESIDENTIAL,Peoples Services,Home Care Services,A56019
London Borough of Sutton,23/09/2021,50069648,39,Care More Ltd,SOCIAL SERVICES RESIDENTIAL,Peoples Services,Home Care Services,A56019
London Borough of Sutton,23/09/2021,50069648,"1,773.75",Care More Ltd,SOCIAL SERVICES RESIDENTIAL,Peoples Services,Home Care Services,A56019
London Borough of Sutton,23/09/2021,50069662,"1,400.00",Care More Ltd,SOCIAL SERVICES RESIDENTIAL,Peoples Services,Home Care Services,A56019
London Borough of Sutton,23/09/2021,50069665,859,Care More Ltd,SOCIAL SERVICES RESIDENTIAL,Peoples Services,Home Care Services,A56019
London Borough of Sutton,23/09/2021,50069672,974,Care More Ltd,SOCIAL SERVICES RESIDENTIAL,Peoples Services,Home Care Services,A56019
London Borough of Sutton,23/09/2021,50069673,685,Care More Ltd,SOCIAL SERVICES RESIDENTIAL,Peoples Services,Home Care Services,A56019
London Borough of Sutton,04/10/2021,50071421,"1,791.00",Care More Ltd,SOCIAL SERVICES RESIDENTIAL,Peoples Services,Home Care Services,A56019
London Borough of Sutton,04/10/2021,50071421,174,Care More Ltd,SOCIAL SERVICES RESIDENTIAL,Peoples Services,Home Care Services,A56019
London Borough of Sutton,04/10/2021,50071426,"1,134.00",Care More Ltd,SOCIAL SERVICES RESIDENTIAL,Peoples Services,Home Care Services,A56019
London Borough of Sutton,04/10/2021,50071428,960,Care More Ltd,SOCIAL SERVICES RESIDENTIAL,Peoples Services,Home Care Services,A56019
London Borough of Sutton,04/10/2021,50071436,"1,400.00",Care More Ltd,SOCIAL SERVICES RESIDENTIAL,Peoples Services,Home Care Services,A56019
London Borough of Sutton,04/10/2021,50071437,771.25,Care More Ltd,SOCIAL SERVICES RESIDENTIAL,Peoples Services,Home Care Services,A56019
London Borough of Sutton,04/10/2021,50071439,25,Care More Ltd,SOCIAL SERVICES RESIDENTIAL,Peoples Services,Home Care Services,A56019
London Borough of Sutton,04/10/2021,50071439,"1,778.00",Care More Ltd,SOCIAL SERVICES RESIDENTIAL,Peoples Services,Home Care Services,A56019
London Borough of Sutton,04/10/2021,50071440,"1,134.00",Care More Ltd,SOCIAL SERVICES RESIDENTIAL,Peoples Services,Home Care Services,A56019
London Borough of Sutton,04/10/2021,50071442,679.5,Care More Ltd,SOCIAL SERVICES RESIDENTIAL,Peoples Services,Home Care Services,A56019
London Borough of Sutton,04/10/2021,50071444,"1,848.00",Care More Ltd,SOCIAL SERVICES RESIDENTIAL,Peoples Services,Home Care Services,A56019
London Borough of Sutton,04/10/2021,50071449,"1,218.00",Care More Ltd,SOCIAL SERVICES RESIDENTIAL,Peoples Services,Home Care Services,A56019
London Borough of Sutton,04/10/2021,50071450,742,Care More Ltd,SOCIAL SERVICES RESIDENTIAL,Peoples Services,Home Care Services,A56019
London Borough of Sutton,04/10/2021,50071453,567,Care More Ltd,SOCIAL SERVICES RESIDENTIAL,Peoples Services,Home Care Services,A56019
London Borough of Sutton,04/10/2021,50071455,"1,652.00",Care More Ltd,SOCIAL SERVICES RESIDENTIAL,Peoples Services,Home Care Services,A56019
London Borough of Sutton,04/10/2021,50071458,"1,400.00",Care More Ltd,SOCIAL SERVICES RESIDENTIAL,Peoples Services,Home Care Services,A56019
London Borough of Sutton,04/10/2021,50071460,681,Care More Ltd,SOCIAL SERVICES RESIDENTIAL,Peoples Services,Home Care Services,A56019
London Borough of Sutton,04/10/2021,50071462,654,Care More Ltd,SOCIAL SERVICES RESIDENTIAL,Peoples Services,Home Care Services,A56019
London Borough of Sutton,04/10/2021,50071463,709.5,Care More Ltd,SOCIAL SERVICES RESIDENTIAL,Peoples Services,Home Care Services,A56019
London Borough of Sutton,04/10/2021,50071467,820,Care More Ltd,SOCIAL SERVICES RESIDENTIAL,Peoples Services,Home Care Services,A56019
London Borough of Sutton,04/10/2021,50071468,798,Care More Ltd,SOCIAL SERVICES RESIDENTIAL,Peoples Services,Home Care Services,A56019
London Borough of Sutton,04/10/2021,50071478,"1,400.00",Care More Ltd,SOCIAL SERVICES RESIDENTIAL,Peoples Services,Home Care Services,A56019
London Borough of Sutton,04/10/2021,50071496,"1,484.00",Care More Ltd,SOCIAL SERVICES RESIDENTIAL,Peoples Services,Home Care Services,A56019
London Borough of Sutton,04/10/2021,50071497,742,Care More Ltd,SOCIAL SERVICES RESIDENTIAL,Peoples Services,Home Care Services,A56019
London Borough of Sutton,04/10/2021,50071499,556,Care More Ltd,SOCIAL SERVICES RESIDENTIAL,Peoples Services,Home Care Services,A56019
London Borough of Sutton,04/10/2021,50071524,859,Care More Ltd,SOCIAL SERVICES RESIDENTIAL,Peoples Services,Home Care Services,A56019
London Borough of Sutton,04/10/2021,50071525,567,Care More Ltd,SOCIAL SERVICES RESIDENTIAL,Peoples Services,Home Care Services,A56019
London Borough of Sutton,04/10/2021,50071530,"1,484.00",Care More Ltd,SOCIAL SERVICES RESIDENTIAL,Peoples Services,Home Care Services,A56019
London Borough of Sutton,01/10/2021,50060940,-662.24,Care UK Homecare Ltd,SOCIAL SERVICES RESIDENTIAL,Peoples Services,Nursing Care - 3rd party top up payment,A56023
London Borough of Sutton,01/10/2021,50060940,"3,586.28",Care UK Homecare Ltd,SOCIAL SERVICES RESIDENTIAL,Peoples Services,Nursing Care - Ext Provider,A56025
London Borough of Sutton,01/10/2021,50061189,-425.6,Care UK Homecare Ltd,SOCIAL SERVICES RESIDENTIAL,Peoples Services,Residential Care - Client Cont ( Net Paymt ),A56113
London Borough of Sutton,01/10/2021,50061189,"4,600.00",Care UK Homecare Ltd,SOCIAL SERVICES RESIDENTIAL,Peoples Services,Residential Care - Ext Provider,A56114
London Borough of Sutton,01/10/2021,50060966,"3,626.72",Care Unlimited Group Ltd,SOCIAL SERVICES DAY CARE,Peoples Services,Nursing Care - Ext Provider,A56025
London Borough of Sutton,01/10/2021,50060966,-750.4,Care Unlimited Group Ltd,SOCIAL SERVICES DAY CARE,Peoples Services,Nursing Care - 3rd party top up payment,A56023
London Borough of Sutton,01/10/2021,50061262,"3,612.00",Care Unlimited Group Ltd,SOCIAL SERVICES DAY CARE,Peoples Services,Nursing Care - Ext Provider,A56025
London Borough of Sutton,01/10/2021,50061262,-735.68,Care Unlimited Group Ltd,SOCIAL SERVICES DAY CARE,Peoples Services,Nursing Care - 3rd party top up payment,A56023
London Borough of Sutton,01/10/2021,50061321,-750.4,Care Unlimited Group Ltd,SOCIAL SERVICES DAY CARE,Peoples Services,Nursing Care - 3rd party top up payment,A56023
London Borough of Sutton,01/10/2021,50061321,"3,626.72",Care Unlimited Group Ltd,SOCIAL SERVICES DAY CARE,Peoples Services,Nursing Care - Ext Provider,A56025
London Borough of Sutton,01/10/2021,50061344,"-3,096.24",Care Unlimited Group Ltd,SOCIAL SERVICES DAY CARE,Peoples Services,Nursing Care - 3rd party top up payment,A56023
London Borough of Sutton,01/10/2021,50061344,"6,192.48",Care Unlimited Group Ltd,SOCIAL SERVICES DAY CARE,Peoples Services,Nursing Care - Ext Provider,A56025
London Borough of Sutton,19/09/2021,19000649,-500.54,Caremark (Sutton),SOCIAL SERVICES DAY CARE,Peoples Services,Home Care Services,A56019
London Borough of Sutton,12/09/2021,19000669,-246,Caremark (Sutton),SOCIAL SERVICES DAY CARE,Peoples Services,Home Care Services,A56019
London Borough of Sutton,12/09/2021,19000669,-265.5,Caremark (Sutton),SOCIAL SERVICES DAY CARE,Peoples Services,Home Care Services,A56019
London Borough of Sutton,22/08/2021,19000670,-246,Caremark (Sutton),SOCIAL SERVICES DAY CARE,Peoples Services,Home Care Services,A56019
London Borough of Sutton,22/08/2021,19000670,-265.5,Caremark (Sutton),SOCIAL SERVICES DAY CARE,Peoples Services,Home Care Services,A56019
London Borough of Sutton,29/08/2021,19000671,-276.75,Caremark (Sutton),SOCIAL SERVICES DAY CARE,Peoples Services,Home Care Services,A56019
London Borough of Sutton,29/08/2021,19000671,-265.5,Caremark (Sutton),SOCIAL SERVICES DAY CARE,Peoples Services,Home Care Services,A56019
London Borough of Sutton,05/09/2021,19000672,-258,Caremark (Sutton),SOCIAL SERVICES DAY CARE,Peoples Services,Home Care Services,A56019
London Borough of Sutton,05/09/2021,19000672,-269.1,Caremark (Sutton),SOCIAL SERVICES DAY CARE,Peoples Services,Home Care Services,A56019
London Borough of Sutton,19/09/2021,19000673,-246,Caremark (Sutton),SOCIAL SERVICES DAY CARE,Peoples Services,Home Care Services,A56019
London Borough of Sutton,19/09/2021,19000673,-265.5,Caremark (Sutton),SOCIAL SERVICES DAY CARE,Peoples Services,Home Care Services,A56019
London Borough of Sutton,26/09/2021,19000674,-246,Caremark (Sutton),SOCIAL SERVICES DAY CARE,Peoples Services,Home Care Services,A56019
London Borough of Sutton,26/09/2021,19000674,-265.5,Caremark (Sutton),SOCIAL SERVICES DAY CARE,Peoples Services,Home Care Services,A56019
London Borough of Sutton,12/09/2021,19000676,-767.03,Caremark (Sutton),SOCIAL SERVICES DAY CARE,Peoples Services,Home Care Services,A56019
London Borough of Sutton,12/09/2021,19000676,-30.75,Caremark (Sutton),SOCIAL SERVICES DAY CARE,Peoples Services,Home Care Services,A56019
London Borough of Sutton,22/08/2021,19000677,-767.03,Caremark (Sutton),SOCIAL SERVICES DAY CARE,Peoples Services,Home Care Services,A56019
London Borough of Sutton,22/08/2021,19000677,-30.75,Caremark (Sutton),SOCIAL SERVICES DAY CARE,Peoples Services,Home Care Services,A56019
London Borough of Sutton,29/08/2021,19000678,-767.03,Caremark (Sutton),SOCIAL SERVICES DAY CARE,Peoples Services,Home Care Services,A56019
London Borough of Sutton,29/08/2021,19000678,-30.75,Caremark (Sutton),SOCIAL SERVICES DAY CARE,Peoples Services,Home Care Services,A56019
London Borough of Sutton,05/09/2021,19000679,-777.42,Caremark (Sutton),SOCIAL SERVICES DAY CARE,Peoples Services,Home Care Services,A56019
London Borough of Sutton,05/09/2021,19000679,-30.75,Caremark (Sutton),SOCIAL SERVICES DAY CARE,Peoples Services,Home Care Services,A56019
London Borough of Sutton,19/09/2021,19000680,-767.03,Caremark (Sutton),SOCIAL SERVICES DAY CARE,Peoples Services,Home Care Services,A56019
London Borough of Sutton,19/09/2021,19000680,-30.75,Caremark (Sutton),SOCIAL SERVICES DAY CARE,Peoples Services,Home Care Services,A56019
London Borough of Sutton,26/09/2021,19000681,-767.03,Caremark (Sutton),SOCIAL SERVICES DAY CARE,Peoples Services,Home Care Services,A56019
London Borough of Sutton,26/09/2021,19000681,-30.75,Caremark (Sutton),SOCIAL SERVICES DAY CARE,Peoples Services,Home Care Services,A56019
London Borough of Sutton,03/10/2021,19000682,-767.03,Caremark (Sutton),SOCIAL SERVICES DAY CARE,Peoples Services,Home Care Services,A56019
London Borough of Sutton,03/10/2021,19000682,-30.75,Caremark (Sutton),SOCIAL SERVICES DAY CARE,Peoples Services,Home Care Services,A56019
London Borough of Sutton,12/09/2021,19000683,-767.03,Caremark (Sutton),SOCIAL SERVICES DAY CARE,Peoples Services,Home Care Services,A56019
London Borough of Sutton,12/09/2021,19000683,-61.5,Caremark (Sutton),SOCIAL SERVICES DAY CARE,Peoples Services,Home Care Services,A56019
London Borough of Sutton,22/08/2021,19000684,-767.03,Caremark (Sutton),SOCIAL SERVICES DAY CARE,Peoples Services,Home Care Services,A56019
London Borough of Sutton,22/08/2021,19000684,-61.5,Caremark (Sutton),SOCIAL SERVICES DAY CARE,Peoples Services,Home Care Services,A56019
London Borough of Sutton,29/08/2021,19000685,-767.03,Caremark (Sutton),SOCIAL SERVICES DAY CARE,Peoples Services,Home Care Services,A56019
London Borough of Sutton,29/08/2021,19000685,-61.5,Caremark (Sutton),SOCIAL SERVICES DAY CARE,Peoples Services,Home Care Services,A56019
London Borough of Sutton,05/09/2021,19000686,-773.42,Caremark (Sutton),SOCIAL SERVICES DAY CARE,Peoples Services,Home Care Services,A56019
London Borough of Sutton,05/09/2021,19000686,-65.5,Caremark (Sutton),SOCIAL SERVICES DAY CARE,Peoples Services,Home Care Services,A56019
London Borough of Sutton,19/09/2021,19000687,-767.03,Caremark (Sutton),SOCIAL SERVICES DAY CARE,Peoples Services,Home Care Services,A56019
London Borough of Sutton,19/09/2021,19000687,-61.5,Caremark (Sutton),SOCIAL SERVICES DAY CARE,Peoples Services,Home Care Services,A56019
London Borough of Sutton,26/09/2021,19000688,-767.03,Caremark (Sutton),SOCIAL SERVICES DAY CARE,Peoples Services,Home Care Services,A56019
London Borough of Sutton,26/09/2021,19000688,-61.5,Caremark (Sutton),SOCIAL SERVICES DAY CARE,Peoples Services,Home Care Services,A56019
London Borough of Sutton,03/10/2021,19000689,-767.03,Caremark (Sutton),SOCIAL SERVICES DAY CARE,Peoples Services,Home Care Services,A56019
London Borough of Sutton,03/10/2021,19000689,-61.5,Caremark (Sutton),SOCIAL SERVICES DAY CARE,Peoples Services,Home Care Services,A56019
London Borough of Sutton,12/09/2021,19000695,"-1,833.50",Caremark (Sutton),SOCIAL SERVICES DAY CARE,Peoples Services,Home Care Services,A56019
London Borough of Sutton,22/08/2021,19000696,"-1,833.50",Caremark (Sutton),SOCIAL SERVICES DAY CARE,Peoples Services,Home Care Services,A56019
London Borough of Sutton,29/08/2021,19000697,"-1,833.50",Caremark (Sutton),SOCIAL SERVICES DAY CARE,Peoples Services,Home Care Services,A56019
London Borough of Sutton,05/09/2021,19000698,"-1,857.50",Caremark (Sutton),SOCIAL SERVICES DAY CARE,Peoples Services,Home Care Services,A56019
London Borough of Sutton,19/09/2021,19000699,"-1,833.50",Caremark (Sutton),SOCIAL SERVICES DAY CARE,Peoples Services,Home Care Services,A56019
London Borough of Sutton,26/09/2021,19000700,"-1,882.77",Caremark (Sutton),SOCIAL SERVICES DAY CARE,Peoples Services,Home Care Services,A56019
London Borough of Sutton,03/10/2021,19000701,"-1,833.51",Caremark (Sutton),SOCIAL SERVICES DAY CARE,Peoples Services,Home Care Services,A56019
London Borough of Sutton,12/09/2021,19000716,-949.99,Caremark (Sutton),SOCIAL SERVICES DAY CARE,Peoples Services,Home Care Services,A56019
London Borough of Sutton,12/09/2021,19000716,-140.03,Caremark (Sutton),SOCIAL SERVICES DAY CARE,Peoples Services,Home Care Services,A56019
London Borough of Sutton,22/08/2021,19000717,-949.99,Caremark (Sutton),SOCIAL SERVICES DAY CARE,Peoples Services,Home Care Services,A56019
London Borough of Sutton,22/08/2021,19000717,-140.03,Caremark (Sutton),SOCIAL SERVICES DAY CARE,Peoples Services,Home Care Services,A56019
London Borough of Sutton,29/08/2021,19000718,-949.99,Caremark (Sutton),SOCIAL SERVICES DAY CARE,Peoples Services,Home Care Services,A56019
London Borough of Sutton,29/08/2021,19000718,-140.03,Caremark (Sutton),SOCIAL SERVICES DAY CARE,Peoples Services,Home Care Services,A56019
London Borough of Sutton,05/09/2021,19000719,-961.27,Caremark (Sutton),SOCIAL SERVICES DAY CARE,Peoples Services,Home Care Services,A56019
London Borough of Sutton,05/09/2021,19000719,-141.75,Caremark (Sutton),SOCIAL SERVICES DAY CARE,Peoples Services,Home Care Services,A56019
London Borough of Sutton,19/09/2021,19000720,-949.99,Caremark (Sutton),SOCIAL SERVICES DAY CARE,Peoples Services,Home Care Services,A56019
London Borough of Sutton,19/09/2021,19000720,-140.03,Caremark (Sutton),SOCIAL SERVICES DAY CARE,Peoples Services,Home Care Services,A56019
London Borough of Sutton,26/09/2021,19000721,-949.99,Caremark (Sutton),SOCIAL SERVICES DAY CARE,Peoples Services,Home Care Services,A56019
London Borough of Sutton,26/09/2021,19000721,-140.03,Caremark (Sutton),SOCIAL SERVICES DAY CARE,Peoples Services,Home Care Services,A56019
London Borough of Sutton,03/10/2021,19000722,-949.99,Caremark (Sutton),SOCIAL SERVICES DAY CARE,Peoples Services,Home Care Services,A56019
London Borough of Sutton,03/10/2021,19000722,-140.03,Caremark (Sutton),SOCIAL SERVICES DAY CARE,Peoples Services,Home Care Services,A56019
London Borough of Sutton,19/09/2021,19000758,-533.53,Caremark (Sutton),SOCIAL SERVICES DAY CARE,Peoples Services,Home Care Services,A56019
London Borough of Sutton,22/08/2021,19000764,-256.44,Caremark (Sutton),SOCIAL SERVICES DAY CARE,Peoples Services,Home Care Services,A56019
London Borough of Sutton,22/08/2021,19000764,-413.92,Caremark (Sutton),SOCIAL SERVICES DAY CARE,Peoples Services,Home Care Services,A56019
London Borough of Sutton,29/08/2021,19000765,-533.53,Caremark (Sutton),SOCIAL SERVICES DAY CARE,Peoples Services,Home Care Services,A56019
London Borough of Sutton,05/09/2021,19000766,-543.92,Caremark (Sutton),SOCIAL SERVICES DAY CARE,Peoples Services,Home Care Services,A56019
London Borough of Sutton,12/09/2021,19000767,-537.62,Caremark (Sutton),SOCIAL SERVICES DAY CARE,Peoples Services,Home Care Services,A56019
London Borough of Sutton,26/09/2021,19000768,-533.53,Caremark (Sutton),SOCIAL SERVICES DAY CARE,Peoples Services,Home Care Services,A56019
London Borough of Sutton,03/10/2021,19000769,-533.53,Caremark (Sutton),SOCIAL SERVICES DAY CARE,Peoples Services,Home Care Services,A56019
London Borough of Sutton,06/10/2021,20010866,716,Caremark (Sutton),SOCIAL SERVICES DAY CARE,Peoples Services,One to One Care,A56108
London Borough of Sutton,20/10/2021,20011092,535,Caremark (Sutton),SOCIAL SERVICES DAY CARE,Peoples Services,Home Care Services,A56019
London Borough of Sutton,20/10/2021,20011598,716,Caremark (Sutton),SOCIAL SERVICES DAY CARE,Peoples Services,One to One Care,A56108
London Borough of Sutton,20/10/2021,20012013,"1,098.00",Caremark (Sutton),SOCIAL SERVICES DAY CARE,Peoples Services,Home Care Services,A56019
London Borough of Sutton,06/10/2021,50065884,750,Caremark (Sutton),SOCIAL SERVICES DAY CARE,Peoples Services,Miscellaneous Expenses,A49000
London Borough of Sutton,19/09/2021,50067655,500.54,Caremark (Sutton),SOCIAL SERVICES DAY CARE,Peoples Services,Home Care Services,A56019
London Borough of Sutton,12/09/2021,50067675,246,Caremark (Sutton),SOCIAL SERVICES DAY CARE,Peoples Services,Home Care Services,A56019
London Borough of Sutton,12/09/2021,50067675,265.5,Caremark (Sutton),SOCIAL SERVICES DAY CARE,Peoples Services,Home Care Services,A56019
London Borough of Sutton,22/08/2021,50067676,246,Caremark (Sutton),SOCIAL SERVICES DAY CARE,Peoples Services,Home Care Services,A56019
London Borough of Sutton,22/08/2021,50067676,265.5,Caremark (Sutton),SOCIAL SERVICES DAY CARE,Peoples Services,Home Care Services,A56019
London Borough of Sutton,29/08/2021,50067677,276.75,Caremark (Sutton),SOCIAL SERVICES DAY CARE,Peoples Services,Home Care Services,A56019
London Borough of Sutton,29/08/2021,50067677,265.5,Caremark (Sutton),SOCIAL SERVICES DAY CARE,Peoples Services,Home Care Services,A56019
London Borough of Sutton,05/09/2021,50067678,258,Caremark (Sutton),SOCIAL SERVICES DAY CARE,Peoples Services,Home Care Services,A56019
London Borough of Sutton,05/09/2021,50067678,269.1,Caremark (Sutton),SOCIAL SERVICES DAY CARE,Peoples Services,Home Care Services,A56019
London Borough of Sutton,19/09/2021,50067679,246,Caremark (Sutton),SOCIAL SERVICES DAY CARE,Peoples Services,Home Care Services,A56019
London Borough of Sutton,19/09/2021,50067679,265.5,Caremark (Sutton),SOCIAL SERVICES DAY CARE,Peoples Services,Home Care Services,A56019
London Borough of Sutton,26/09/2021,50067680,246,Caremark (Sutton),SOCIAL SERVICES DAY CARE,Peoples Services,Home Care Services,A56019
London Borough of Sutton,26/09/2021,50067680,265.5,Caremark (Sutton),SOCIAL SERVICES DAY CARE,Peoples Services,Home Care Services,A56019
London Borough of Sutton,12/09/2021,50067682,767.03,Caremark (Sutton),SOCIAL SERVICES DAY CARE,Peoples Services,Home Care Services,A56019
London Borough of Sutton,12/09/2021,50067682,30.75,Caremark (Sutton),SOCIAL SERVICES DAY CARE,Peoples Services,Home Care Services,A56019
London Borough of Sutton,22/08/2021,50067683,767.03,Caremark (Sutton),SOCIAL SERVICES DAY CARE,Peoples Services,Home Care Services,A56019
London Borough of Sutton,22/08/2021,50067683,30.75,Caremark (Sutton),SOCIAL SERVICES DAY CARE,Peoples Services,Home Care Services,A56019
London Borough of Sutton,29/08/2021,50067684,767.03,Caremark (Sutton),SOCIAL SERVICES DAY CARE,Peoples Services,Home Care Services,A56019
London Borough of Sutton,29/08/2021,50067684,30.75,Caremark (Sutton),SOCIAL SERVICES DAY CARE,Peoples Services,Home Care Services,A56019
London Borough of Sutton,05/09/2021,50067685,777.42,Caremark (Sutton),SOCIAL SERVICES DAY CARE,Peoples Services,Home Care Services,A56019
London Borough of Sutton,05/09/2021,50067685,30.75,Caremark (Sutton),SOCIAL SERVICES DAY CARE,Peoples Services,Home Care Services,A56019
London Borough of Sutton,19/09/2021,50067686,767.03,Caremark (Sutton),SOCIAL SERVICES DAY CARE,Peoples Services,Home Care Services,A56019
London Borough of Sutton,19/09/2021,50067686,30.75,Caremark (Sutton),SOCIAL SERVICES DAY CARE,Peoples Services,Home Care Services,A56019
London Borough of Sutton,26/09/2021,50067687,767.03,Caremark (Sutton),SOCIAL SERVICES DAY CARE,Peoples Services,Home Care Services,A56019
London Borough of Sutton,26/09/2021,50067687,30.75,Caremark (Sutton),SOCIAL SERVICES DAY CARE,Peoples Services,Home Care Services,A56019
London Borough of Sutton,03/10/2021,50067688,767.03,Caremark (Sutton),SOCIAL SERVICES DAY CARE,Peoples Services,Home Care Services,A56019
London Borough of Sutton,03/10/2021,50067688,30.75,Caremark (Sutton),SOCIAL SERVICES DAY CARE,Peoples Services,Home Care Services,A56019
London Borough of Sutton,12/09/2021,50067689,767.03,Caremark (Sutton),SOCIAL SERVICES DAY CARE,Peoples Services,Home Care Services,A56019
London Borough of Sutton,12/09/2021,50067689,61.5,Caremark (Sutton),SOCIAL SERVICES DAY CARE,Peoples Services,Home Care Services,A56019
London Borough of Sutton,22/08/2021,50067690,767.03,Caremark (Sutton),SOCIAL SERVICES DAY CARE,Peoples Services,Home Care Services,A56019
London Borough of Sutton,22/08/2021,50067690,61.5,Caremark (Sutton),SOCIAL SERVICES DAY CARE,Peoples Services,Home Care Services,A56019
London Borough of Sutton,29/08/2021,50067691,767.03,Caremark (Sutton),SOCIAL SERVICES DAY CARE,Peoples Services,Home Care Services,A56019
London Borough of Sutton,29/08/2021,50067691,61.5,Caremark (Sutton),SOCIAL SERVICES DAY CARE,Peoples Services,Home Care Services,A56019
London Borough of Sutton,05/09/2021,50067692,773.42,Caremark (Sutton),SOCIAL SERVICES DAY CARE,Peoples Services,Home Care Services,A56019
London Borough of Sutton,05/09/2021,50067692,65.5,Caremark (Sutton),SOCIAL SERVICES DAY CARE,Peoples Services,Home Care Services,A56019
London Borough of Sutton,19/09/2021,50067693,767.03,Caremark (Sutton),SOCIAL SERVICES DAY CARE,Peoples Services,Home Care Services,A56019
London Borough of Sutton,19/09/2021,50067693,61.5,Caremark (Sutton),SOCIAL SERVICES DAY CARE,Peoples Services,Home Care Services,A56019
London Borough of Sutton,26/09/2021,50067694,767.03,Caremark (Sutton),SOCIAL SERVICES DAY CARE,Peoples Services,Home Care Services,A56019
London Borough of Sutton,26/09/2021,50067694,61.5,Caremark (Sutton),SOCIAL SERVICES DAY CARE,Peoples Services,Home Care Services,A56019
London Borough of Sutton,03/10/2021,50067695,767.03,Caremark (Sutton),SOCIAL SERVICES DAY CARE,Peoples Services,Home Care Services,A56019
London Borough of Sutton,03/10/2021,50067695,61.5,Caremark (Sutton),SOCIAL SERVICES DAY CARE,Peoples Services,Home Care Services,A56019
London Borough of Sutton,12/09/2021,50067701,"1,833.50",Caremark (Sutton),SOCIAL SERVICES DAY CARE,Peoples Services,Home Care Services,A56019
London Borough of Sutton,22/08/2021,50067702,"1,833.50",Caremark (Sutton),SOCIAL SERVICES DAY CARE,Peoples Services,Home Care Services,A56019
London Borough of Sutton,29/08/2021,50067703,"1,833.50",Caremark (Sutton),SOCIAL SERVICES DAY CARE,Peoples Services,Home Care Services,A56019
London Borough of Sutton,05/09/2021,50067704,"1,857.50",Caremark (Sutton),SOCIAL SERVICES DAY CARE,Peoples Services,Home Care Services,A56019
London Borough of Sutton,19/09/2021,50067705,"1,833.50",Caremark (Sutton),SOCIAL SERVICES DAY CARE,Peoples Services,Home Care Services,A56019
London Borough of Sutton,26/09/2021,50067706,"1,882.77",Caremark (Sutton),SOCIAL SERVICES DAY CARE,Peoples Services,Home Care Services,A56019
London Borough of Sutton,03/10/2021,50067707,"1,833.51",Caremark (Sutton),SOCIAL SERVICES DAY CARE,Peoples Services,Home Care Services,A56019
London Borough of Sutton,12/09/2021,50067722,949.99,Caremark (Sutton),SOCIAL SERVICES DAY CARE,Peoples Services,Home Care Services,A56019
London Borough of Sutton,12/09/2021,50067722,140.03,Caremark (Sutton),SOCIAL SERVICES DAY CARE,Peoples Services,Home Care Services,A56019
London Borough of Sutton,22/08/2021,50067723,949.99,Caremark (Sutton),SOCIAL SERVICES DAY CARE,Peoples Services,Home Care Services,A56019
London Borough of Sutton,22/08/2021,50067723,140.03,Caremark (Sutton),SOCIAL SERVICES DAY CARE,Peoples Services,Home Care Services,A56019
London Borough of Sutton,29/08/2021,50067724,949.99,Caremark (Sutton),SOCIAL SERVICES DAY CARE,Peoples Services,Home Care Services,A56019
London Borough of Sutton,29/08/2021,50067724,140.03,Caremark (Sutton),SOCIAL SERVICES DAY CARE,Peoples Services,Home Care Services,A56019
London Borough of Sutton,05/09/2021,50067725,961.27,Caremark (Sutton),SOCIAL SERVICES DAY CARE,Peoples Services,Home Care Services,A56019
London Borough of Sutton,05/09/2021,50067725,141.75,Caremark (Sutton),SOCIAL SERVICES DAY CARE,Peoples Services,Home Care Services,A56019
London Borough of Sutton,19/09/2021,50067726,949.99,Caremark (Sutton),SOCIAL SERVICES DAY CARE,Peoples Services,Home Care Services,A56019
London Borough of Sutton,19/09/2021,50067726,140.03,Caremark (Sutton),SOCIAL SERVICES DAY CARE,Peoples Services,Home Care Services,A56019
London Borough of Sutton,26/09/2021,50067727,949.99,Caremark (Sutton),SOCIAL SERVICES DAY CARE,Peoples Services,Home Care Services,A56019
London Borough of Sutton,26/09/2021,50067727,140.03,Caremark (Sutton),SOCIAL SERVICES DAY CARE,Peoples Services,Home Care Services,A56019
London Borough of Sutton,03/10/2021,50067728,949.99,Caremark (Sutton),SOCIAL SERVICES DAY CARE,Peoples Services,Home Care Services,A56019
London Borough of Sutton,03/10/2021,50067728,140.03,Caremark (Sutton),SOCIAL SERVICES DAY CARE,Peoples Services,Home Care Services,A56019
London Borough of Sutton,19/09/2021,50067764,533.53,Caremark (Sutton),SOCIAL SERVICES DAY CARE,Peoples Services,Home Care Services,A56019
London Borough of Sutton,22/08/2021,50067770,256.44,Caremark (Sutton),SOCIAL SERVICES DAY CARE,Peoples Services,Home Care Services,A56019
London Borough of Sutton,22/08/2021,50067770,413.92,Caremark (Sutton),SOCIAL SERVICES DAY CARE,Peoples Services,Home Care Services,A56019
London Borough of Sutton,29/08/2021,50067771,533.53,Caremark (Sutton),SOCIAL SERVICES DAY CARE,Peoples Services,Home Care Services,A56019
London Borough of Sutton,05/09/2021,50067772,543.92,Caremark (Sutton),SOCIAL SERVICES DAY CARE,Peoples Services,Home Care Services,A56019
London Borough of Sutton,12/09/2021,50067773,537.62,Caremark (Sutton),SOCIAL SERVICES DAY CARE,Peoples Services,Home Care Services,A56019
London Borough of Sutton,26/09/2021,50067774,533.53,Caremark (Sutton),SOCIAL SERVICES DAY CARE,Peoples Services,Home Care Services,A56019
London Borough of Sutton,03/10/2021,50067775,533.53,Caremark (Sutton),SOCIAL SERVICES DAY CARE,Peoples Services,Home Care Services,A56019
London Borough of Sutton,19/09/2021,50069695,500.54,Caremark (Sutton),SOCIAL SERVICES DAY CARE,Peoples Services,Home Care Services,A56019
London Borough of Sutton,12/09/2021,50069715,246,Caremark (Sutton),SOCIAL SERVICES DAY CARE,Peoples Services,Home Care Services,A56019
London Borough of Sutton,12/09/2021,50069715,265.5,Caremark (Sutton),SOCIAL SERVICES DAY CARE,Peoples Services,Home Care Services,A56019
London Borough of Sutton,22/08/2021,50069716,246,Caremark (Sutton),SOCIAL SERVICES DAY CARE,Peoples Services,Home Care Services,A56019
London Borough of Sutton,22/08/2021,50069716,265.5,Caremark (Sutton),SOCIAL SERVICES DAY CARE,Peoples Services,Home Care Services,A56019
London Borough of Sutton,29/08/2021,50069717,276.75,Caremark (Sutton),SOCIAL SERVICES DAY CARE,Peoples Services,Home Care Services,A56019
London Borough of Sutton,29/08/2021,50069717,265.5,Caremark (Sutton),SOCIAL SERVICES DAY CARE,Peoples Services,Home Care Services,A56019
London Borough of Sutton,05/09/2021,50069718,258,Caremark (Sutton),SOCIAL SERVICES DAY CARE,Peoples Services,Home Care Services,A56019
London Borough of Sutton,05/09/2021,50069718,269.1,Caremark (Sutton),SOCIAL SERVICES DAY CARE,Peoples Services,Home Care Services,A56019
London Borough of Sutton,19/09/2021,50069719,246,Caremark (Sutton),SOCIAL SERVICES DAY CARE,Peoples Services,Home Care Services,A56019
London Borough of Sutton,19/09/2021,50069719,265.5,Caremark (Sutton),SOCIAL SERVICES DAY CARE,Peoples Services,Home Care Services,A56019
London Borough of Sutton,26/09/2021,50069720,246,Caremark (Sutton),SOCIAL SERVICES DAY CARE,Peoples Services,Home Care Services,A56019
London Borough of Sutton,26/09/2021,50069720,265.5,Caremark (Sutton),SOCIAL SERVICES DAY CARE,Peoples Services,Home Care Services,A56019
London Borough of Sutton,12/09/2021,50069722,767.03,Caremark (Sutton),SOCIAL SERVICES DAY CARE,Peoples Services,Home Care Services,A56019
London Borough of Sutton,12/09/2021,50069722,30.75,Caremark (Sutton),SOCIAL SERVICES DAY CARE,Peoples Services,Home Care Services,A56019
London Borough of Sutton,22/08/2021,50069723,30.75,Caremark (Sutton),SOCIAL SERVICES DAY CARE,Peoples Services,Home Care Services,A56019
London Borough of Sutton,22/08/2021,50069723,767.03,Caremark (Sutton),SOCIAL SERVICES DAY CARE,Peoples Services,Home Care Services,A56019
London Borough of Sutton,29/08/2021,50069724,767.03,Caremark (Sutton),SOCIAL SERVICES DAY CARE,Peoples Services,Home Care Services,A56019
London Borough of Sutton,29/08/2021,50069724,30.75,Caremark (Sutton),SOCIAL SERVICES DAY CARE,Peoples Services,Home Care Services,A56019
London Borough of Sutton,05/09/2021,50069725,777.42,Caremark (Sutton),SOCIAL SERVICES DAY CARE,Peoples Services,Home Care Services,A56019
London Borough of Sutton,05/09/2021,50069725,30.75,Caremark (Sutton),SOCIAL SERVICES DAY CARE,Peoples Services,Home Care Services,A56019
London Borough of Sutton,19/09/2021,50069726,767.03,Caremark (Sutton),SOCIAL SERVICES DAY CARE,Peoples Services,Home Care Services,A56019
London Borough of Sutton,19/09/2021,50069726,30.75,Caremark (Sutton),SOCIAL SERVICES DAY CARE,Peoples Services,Home Care Services,A56019
London Borough of Sutton,26/09/2021,50069727,767.03,Caremark (Sutton),SOCIAL SERVICES DAY CARE,Peoples Services,Home Care Services,A56019
London Borough of Sutton,26/09/2021,50069727,30.75,Caremark (Sutton),SOCIAL SERVICES DAY CARE,Peoples Services,Home Care Services,A56019
London Borough of Sutton,03/10/2021,50069728,767.03,Caremark (Sutton),SOCIAL SERVICES DAY CARE,Peoples Services,Home Care Services,A56019
London Borough of Sutton,03/10/2021,50069728,30.75,Caremark (Sutton),SOCIAL SERVICES DAY CARE,Peoples Services,Home Care Services,A56019
London Borough of Sutton,12/09/2021,50069729,767.03,Caremark (Sutton),SOCIAL SERVICES DAY CARE,Peoples Services,Home Care Services,A56019
London Borough of Sutton,12/09/2021,50069729,61.5,Caremark (Sutton),SOCIAL SERVICES DAY CARE,Peoples Services,Home Care Services,A56019
London Borough of Sutton,22/08/2021,50069730,767.03,Caremark (Sutton),SOCIAL SERVICES DAY CARE,Peoples Services,Home Care Services,A56019
London Borough of Sutton,22/08/2021,50069730,61.5,Caremark (Sutton),SOCIAL SERVICES DAY CARE,Peoples Services,Home Care Services,A56019
London Borough of Sutton,29/08/2021,50069731,767.03,Caremark (Sutton),SOCIAL SERVICES DAY CARE,Peoples Services,Home Care Services,A56019
London Borough of Sutton,29/08/2021,50069731,61.5,Caremark (Sutton),SOCIAL SERVICES DAY CARE,Peoples Services,Home Care Services,A56019
London Borough of Sutton,05/09/2021,50069732,773.42,Caremark (Sutton),SOCIAL SERVICES DAY CARE,Peoples Services,Home Care Services,A56019
London Borough of Sutton,05/09/2021,50069732,65.5,Caremark (Sutton),SOCIAL SERVICES DAY CARE,Peoples Services,Home Care Services,A56019
London Borough of Sutton,19/09/2021,50069733,767.03,Caremark (Sutton),SOCIAL SERVICES DAY CARE,Peoples Services,Home Care Services,A56019
London Borough of Sutton,19/09/2021,50069733,61.5,Caremark (Sutton),SOCIAL SERVICES DAY CARE,Peoples Services,Home Care Services,A56019
London Borough of Sutton,26/09/2021,50069734,767.03,Caremark (Sutton),SOCIAL SERVICES DAY CARE,Peoples Services,Home Care Services,A56019
London Borough of Sutton,26/09/2021,50069734,61.5,Caremark (Sutton),SOCIAL SERVICES DAY CARE,Peoples Services,Home Care Services,A56019
London Borough of Sutton,03/10/2021,50069735,767.03,Caremark (Sutton),SOCIAL SERVICES DAY CARE,Peoples Services,Home Care Services,A56019
London Borough of Sutton,03/10/2021,50069735,61.5,Caremark (Sutton),SOCIAL SERVICES DAY CARE,Peoples Services,Home Care Services,A56019
London Borough of Sutton,12/09/2021,50069741,"1,833.50",Caremark (Sutton),SOCIAL SERVICES DAY CARE,Peoples Services,Home Care Services,A56019
London Borough of Sutton,22/08/2021,50069742,"1,833.50",Caremark (Sutton),SOCIAL SERVICES DAY CARE,Peoples Services,Home Care Services,A56019
London Borough of Sutton,29/08/2021,50069743,"1,833.50",Caremark (Sutton),SOCIAL SERVICES DAY CARE,Peoples Services,Home Care Services,A56019
London Borough of Sutton,05/09/2021,50069744,"1,857.50",Caremark (Sutton),SOCIAL SERVICES DAY CARE,Peoples Services,Home Care Services,A56019
London Borough of Sutton,19/09/2021,50069745,"1,833.50",Caremark (Sutton),SOCIAL SERVICES DAY CARE,Peoples Services,Home Care Services,A56019
London Borough of Sutton,26/09/2021,50069746,"1,882.77",Caremark (Sutton),SOCIAL SERVICES DAY CARE,Peoples Services,Home Care Services,A56019
London Borough of Sutton,03/10/2021,50069747,"1,833.51",Caremark (Sutton),SOCIAL SERVICES DAY CARE,Peoples Services,Home Care Services,A56019
London Borough of Sutton,12/09/2021,50069762,949.99,Caremark (Sutton),SOCIAL SERVICES DAY CARE,Peoples Services,Home Care Services,A56019
London Borough of Sutton,12/09/2021,50069762,140.03,Caremark (Sutton),SOCIAL SERVICES DAY CARE,Peoples Services,Home Care Services,A56019
London Borough of Sutton,22/08/2021,50069763,949.99,Caremark (Sutton),SOCIAL SERVICES DAY CARE,Peoples Services,Home Care Services,A56019
London Borough of Sutton,22/08/2021,50069763,140.03,Caremark (Sutton),SOCIAL SERVICES DAY CARE,Peoples Services,Home Care Services,A56019
London Borough of Sutton,29/08/2021,50069764,949.99,Caremark (Sutton),SOCIAL SERVICES DAY CARE,Peoples Services,Home Care Services,A56019
London Borough of Sutton,29/08/2021,50069764,140.03,Caremark (Sutton),SOCIAL SERVICES DAY CARE,Peoples Services,Home Care Services,A56019
London Borough of Sutton,05/09/2021,50069765,961.27,Caremark (Sutton),SOCIAL SERVICES DAY CARE,Peoples Services,Home Care Services,A56019
London Borough of Sutton,05/09/2021,50069765,141.75,Caremark (Sutton),SOCIAL SERVICES DAY CARE,Peoples Services,Home Care Services,A56019
London Borough of Sutton,19/09/2021,50069766,949.99,Caremark (Sutton),SOCIAL SERVICES DAY CARE,Peoples Services,Home Care Services,A56019
London Borough of Sutton,19/09/2021,50069766,140.03,Caremark (Sutton),SOCIAL SERVICES DAY CARE,Peoples Services,Home Care Services,A56019
London Borough of Sutton,26/09/2021,50069767,949.99,Caremark (Sutton),SOCIAL SERVICES DAY CARE,Peoples Services,Home Care Services,A56019
London Borough of Sutton,26/09/2021,50069767,140.03,Caremark (Sutton),SOCIAL SERVICES DAY CARE,Peoples Services,Home Care Services,A56019
London Borough of Sutton,03/10/2021,50069768,949.99,Caremark (Sutton),SOCIAL SERVICES DAY CARE,Peoples Services,Home Care Services,A56019
London Borough of Sutton,03/10/2021,50069768,140.03,Caremark (Sutton),SOCIAL SERVICES DAY CARE,Peoples Services,Home Care Services,A56019
London Borough of Sutton,19/09/2021,50069804,533.53,Caremark (Sutton),SOCIAL SERVICES DAY CARE,Peoples Services,Home Care Services,A56019
London Borough of Sutton,22/08/2021,50069810,256.44,Caremark (Sutton),SOCIAL SERVICES DAY CARE,Peoples Services,Home Care Services,A56019
London Borough of Sutton,22/08/2021,50069810,413.92,Caremark (Sutton),SOCIAL SERVICES DAY CARE,Peoples Services,Home Care Services,A56019
London Borough of Sutton,29/08/2021,50069811,533.53,Caremark (Sutton),SOCIAL SERVICES DAY CARE,Peoples Services,Home Care Services,A56019
London Borough of Sutton,05/09/2021,50069812,543.92,Caremark (Sutton),SOCIAL SERVICES DAY CARE,Peoples Services,Home Care Services,A56019
London Borough of Sutton,12/09/2021,50069813,537.62,Caremark (Sutton),SOCIAL SERVICES DAY CARE,Peoples Services,Home Care Services,A56019
London Borough of Sutton,26/09/2021,50069814,533.53,Caremark (Sutton),SOCIAL SERVICES DAY CARE,Peoples Services,Home Care Services,A56019
London Borough of Sutton,03/10/2021,50069815,533.53,Caremark (Sutton),SOCIAL SERVICES DAY CARE,Peoples Services,Home Care Services,A56019
London Borough of Sutton,01/10/2021,50060957,"5,531.60",Caretech Community Services Ltd,SOCIAL SERVICES RESIDENTIAL,Peoples Services,Residential Care - Ext Provider,A56114
London Borough of Sutton,01/10/2021,50060963,"5,534.00",Caretech Community Services Ltd,SOCIAL SERVICES RESIDENTIAL,Peoples Services,Residential Care - Ext Provider,A56114
London Borough of Sutton,01/10/2021,50060963,-494.6,Caretech Community Services Ltd,SOCIAL SERVICES RESIDENTIAL,Peoples Services,Residential Care - Client Cont ( Net Paymt ),A56113
London Borough of Sutton,01/10/2021,50061047,"5,534.00",Caretech Community Services Ltd,SOCIAL SERVICES RESIDENTIAL,Peoples Services,Residential Care - Ext Provider,A56114
London Borough of Sutton,01/10/2021,50061047,-425.6,Caretech Community Services Ltd,SOCIAL SERVICES RESIDENTIAL,Peoples Services,Residential Care - Client Cont ( Net Paymt ),A56113
London Borough of Sutton,01/10/2021,50061306,"5,676.16",Caretech Community Services Ltd,SOCIAL SERVICES RESIDENTIAL,Peoples Services,Residential Care - Ext Provider,A56114
London Borough of Sutton,01/10/2021,50061306,-608.8,Caretech Community Services Ltd,SOCIAL SERVICES RESIDENTIAL,Peoples Services,Residential Care - Client Cont ( Net Paymt ),A56113
London Borough of Sutton,12/10/2021,50063875,"7,800.00",Carew Academy,CHILDREN'S SERVICES - RESIDENTIAL,Resources,"Grants, Contributions & Donations",A47005
London Borough of Sutton,25/10/2021,50071113,"25,720.00",Carew Academy,CHILDREN'S SERVICES - RESIDENTIAL,Peoples Services,Payments to Schools,A51013
London Borough of Sutton,25/10/2021,50071120,"81,694.00",Carew Academy,CHILDREN'S SERVICES - RESIDENTIAL,Peoples Services,Payments to Schools,A51013
London Borough of Sutton,31/08/2021,50062901,"6,011.79",Caridon Young Living Ltd,CHILDREN'S SERVICES - RESIDENTIAL,Peoples Services,Approved Lodgings,A61000
London Borough of Sutton,30/09/2021,50062903,"5,817.86",Caridon Young Living Ltd,CHILDREN'S SERVICES - RESIDENTIAL,Peoples Services,Approved Lodgings,A61000
London Borough of Sutton,31/08/2021,50062904,"2,112.86",Caridon Young Living Ltd,CHILDREN'S SERVICES - RESIDENTIAL,Peoples Services,Approved Lodgings,A61000
London Borough of Sutton,30/09/2021,50062905,"4,675.00",Caridon Young Living Ltd,CHILDREN'S SERVICES - RESIDENTIAL,Peoples Services,Approved Lodgings,A61000
London Borough of Sutton,31/08/2021,50062906,"4,351.07",Caridon Young Living Ltd,CHILDREN'S SERVICES - RESIDENTIAL,Peoples Services,Approved Lodgings,A61000
London Borough of Sutton,05/10/2021,50062907,"4,070.36",Caridon Young Living Ltd,CHILDREN'S SERVICES - RESIDENTIAL,Peoples Services,Approved Lodgings,A61000
London Borough of Sutton,01/10/2021,50060978,"5,478.12",Carlene House,SOCIAL SERVICES RESIDENTIAL,Peoples Services,Residential Care - Ext Provider,A56114
London Borough of Sutton,01/10/2021,50060979,"5,478.12",Carlene House,SOCIAL SERVICES RESIDENTIAL,Peoples Services,Residential Care - Ext Provider,A56114
London Borough of Sutton,01/10/2021,50061032,"5,478.12",Carlene House,SOCIAL SERVICES RESIDENTIAL,Peoples Services,Residential Care - Ext Provider,A56114
London Borough of Sutton,01/10/2021,50061120,"5,478.12",Carlene House,SOCIAL SERVICES RESIDENTIAL,Peoples Services,Residential Care - Ext Provider,A56114
London Borough of Sutton,01/10/2021,50061150,"5,478.12",Carlene House,SOCIAL SERVICES RESIDENTIAL,Peoples Services,Residential Care - Ext Provider,A56114
London Borough of Sutton,01/10/2021,50061191,"5,478.12",Carlene House,SOCIAL SERVICES RESIDENTIAL,Peoples Services,Residential Care - Ext Provider,A56114
London Borough of Sutton,01/10/2021,50061192,"5,478.12",Carlene House,SOCIAL SERVICES RESIDENTIAL,Peoples Services,Residential Care - Ext Provider,A56114
London Borough of Sutton,18/05/2021,50061627,"1,020.80",Carlene House,SOCIAL SERVICES RESIDENTIAL,Peoples Services,Supported Living,A56088
London Borough of Sutton,01/06/2021,50061628,"1,020.80",Carlene House,SOCIAL SERVICES RESIDENTIAL,Peoples Services,Supported Living,A56088
London Borough of Sutton,01/07/2021,50061630,"1,020.80",Carlene House,SOCIAL SERVICES RESIDENTIAL,Peoples Services,Supported Living,A56088
London Borough of Sutton,05/08/2021,50061631,"1,276.00",Carlene House,SOCIAL SERVICES RESIDENTIAL,Peoples Services,Supported Living,A56088
London Borough of Sutton,28/06/2021,50061633,"1,382.14",Carlene House,SOCIAL SERVICES RESIDENTIAL,Peoples Services,Supported Living,A56088
London Borough of Sutton,28/06/2021,50061633,-682,Carlene House,SOCIAL SERVICES RESIDENTIAL,Peoples Services,Supported Living,A56088
London Borough of Sutton,01/08/2021,50061634,"1,036.75",Carlene House,SOCIAL SERVICES RESIDENTIAL,Peoples Services,Supported Living,A56088
London Borough of Sutton,05/07/2021,50061635,829.4,Carlene House,SOCIAL SERVICES RESIDENTIAL,Peoples Services,Supported Living,A56088
London Borough of Sutton,04/08/2021,50061813,"3,239.80",Carlene House,SOCIAL SERVICES RESIDENTIAL,Peoples Services,Supported Living,A56088
London Borough of Sutton,05/08/2021,50061814,"4,276.55",Carlene House,SOCIAL SERVICES RESIDENTIAL,Peoples Services,Supported Living,A56088
London Borough of Sutton,03/07/2021,50061815,"2,639.84",Carlene House,SOCIAL SERVICES RESIDENTIAL,Peoples Services,Supported Living,A56088
London Borough of Sutton,01/07/2021,50061816,"4,317.35",Carlene House,SOCIAL SERVICES RESIDENTIAL,Peoples Services,Supported Living,A56088
London Borough of Sutton,03/06/2021,50061817,"2,569.44",Carlene House,SOCIAL SERVICES RESIDENTIAL,Peoples Services,Supported Living,A56088
London Borough of Sutton,19/05/2021,50061818,601.75,Carlene House,SOCIAL SERVICES RESIDENTIAL,Peoples Services,Supported Living,A56088
London Borough of Sutton,19/05/2021,50061818,"2,791.87",Carlene House,SOCIAL SERVICES RESIDENTIAL,Peoples Services,Supported Living,A56088
London Borough of Sutton,18/05/2021,50061819,"2,569.44",Carlene House,SOCIAL SERVICES RESIDENTIAL,Peoples Services,Supported Living,A56088
London Borough of Sutton,01/06/2021,50061820,"3,398.84",Carlene House,SOCIAL SERVICES RESIDENTIAL,Peoples Services,Supported Living,A56088
London Borough of Sutton,01/07/2021,50061822,"2,719.60",Carlene House,SOCIAL SERVICES RESIDENTIAL,Peoples Services,Supported Living,A56088
London Borough of Sutton,01/06/2021,50061823,"2,649.20",Carlene House,SOCIAL SERVICES RESIDENTIAL,Peoples Services,Supported Living,A56088
London Borough of Sutton,24/06/2021,50061824,835.39,Carlene House,SOCIAL SERVICES RESIDENTIAL,Peoples Services,Supported Living,A56088
London Borough of Sutton,04/08/2021,50061825,"3,339.50",Carlene House,SOCIAL SERVICES RESIDENTIAL,Peoples Services,Supported Living,A56088
London Borough of Sutton,18/05/2021,50061826,"2,649.20",Carlene House,SOCIAL SERVICES RESIDENTIAL,Peoples Services,Supported Living,A56088
London Borough of Sutton,01/09/2021,50062130,"3,218.60",Carlene House,SOCIAL SERVICES RESIDENTIAL,Peoples Services,Supported Living,A56088
London Borough of Sutton,01/09/2021,50062132,"1,020.80",Carlene House,SOCIAL SERVICES RESIDENTIAL,Peoples Services,Supported Living,A56088
London Borough of Sutton,01/09/2021,50062133,829.4,Carlene House,SOCIAL SERVICES RESIDENTIAL,Peoples Services,Supported Living,A56088
London Borough of Sutton,18/05/2021,50062149,"3,815.04",Carlene House,SOCIAL SERVICES RESIDENTIAL,Peoples Services,Supported Living,A56088
London Borough of Sutton,24/06/2021,50062150,892.99,Carlene House,SOCIAL SERVICES RESIDENTIAL,Peoples Services,Supported Living,A56088
London Borough of Sutton,24/06/2021,50062150,339.41,Carlene House,SOCIAL SERVICES RESIDENTIAL,Peoples Services,Supported Living,A56088
London Borough of Sutton,03/06/2021,50062151,"3,575.04",Carlene House,SOCIAL SERVICES RESIDENTIAL,Peoples Services,Supported Living,A56088
London Borough of Sutton,01/09/2021,50062152,"1,219.68",Carlene House,SOCIAL SERVICES RESIDENTIAL,Peoples Services,Supported Living,A56088
London Borough of Sutton,01/09/2021,50062153,"4,077.44",Carlene House,SOCIAL SERVICES RESIDENTIAL,Peoples Services,Supported Living,A56088
London Borough of Sutton,03/07/2021,50062154,"3,765.44",Carlene House,SOCIAL SERVICES RESIDENTIAL,Peoples Services,Supported Living,A56088
London Borough of Sutton,09/08/2021,50062155,"5,096.80",Carlene House,SOCIAL SERVICES RESIDENTIAL,Peoples Services,Supported Living,A56088
London Borough of Sutton,21/10/2021,20011677,765,REDACTED - PERSONAL DATA,TEMP STAFF & CONSULTANCY,Health and Wellbeing,Other Supplies & Services,A44291
London Borough of Sutton,12/10/2021,50062352,621.6,REDACTED - PERSONAL DATA,GRANTS & EX GRATIA PAYMENTS,Peoples Services,Place Funding,A56110
London Borough of Sutton,12/10/2021,50062417,819,REDACTED - PERSONAL DATA,GRANTS & EX GRATIA PAYMENTS,Peoples Services,Place Funding,A56110
London Borough of Sutton,12/10/2021,50063778,"1,500.00",Carshalton Boys Sports College Academy,GRANTS & EX GRATIA PAYMENTS,Peoples Services,Pupil Growth,A51014
London Borough of Sutton,12/10/2021,50063823,"23,322.00",Carshalton Boys Sports College Academy,GRANTS & EX GRATIA PAYMENTS,Resources,"Grants, Contributions & Donations",A47005
London Borough of Sutton,12/10/2021,50063923,"17,925.00",Carshalton Boys Sports College Academy,GRANTS & EX GRATIA PAYMENTS,Peoples Services,Payments to Schools,A51013
London Borough of Sutton,12/10/2021,50063779,"1,500.00",Carshalton High School for Girls Academy,GRANTS & EX GRATIA PAYMENTS,Peoples Services,Pupil Growth,A51014
London Borough of Sutton,12/10/2021,50063865,"20,982.00",Carshalton High School for Girls Academy,GRANTS & EX GRATIA PAYMENTS,Resources,"Grants, Contributions & Donations",A47005
London Borough of Sutton,12/10/2021,50063924,"4,928.00",Carshalton High School for Girls Academy,GRANTS & EX GRATIA PAYMENTS,Peoples Services,Payments to Schools,A51013
London Borough of Sutton,11/10/2021,50065873,"2,560.00",Carshalton High School for Girls Academy,GRANTS & EX GRATIA PAYMENTS,Peoples Services,Top-up Funding,A51016
London Borough of Sutton,30/09/2021,20010139,"2,019.90",Caysh Housing Project,SOCIAL SERVICES RESIDENTIAL,Peoples Services,Approved Lodgings,A61000
London Borough of Sutton,30/09/2021,20010140,"1,362.30",Caysh Housing Project,SOCIAL SERVICES RESIDENTIAL,Peoples Services,Approved Lodgings,A61000
London Borough of Sutton,30/09/2021,20010141,"1,441.50",Caysh Housing Project,SOCIAL SERVICES RESIDENTIAL,Peoples Services,Approved Lodgings,A61000
London Borough of Sutton,30/09/2021,20010142,"1,342.80",Caysh Housing Project,SOCIAL SERVICES RESIDENTIAL,Peoples Services,Approved Lodgings,A61000
London Borough of Sutton,30/09/2021,20010143,"1,264.20",Caysh Housing Project,SOCIAL SERVICES RESIDENTIAL,Peoples Services,Approved Lodgings,A61000
London Borough of Sutton,14/10/2021,20011669,"30,833.33",Caysh Housing Project,SOCIAL SERVICES RESIDENTIAL,Peoples Services,Approved Lodgings,A61000
London Borough of Sutton,23/09/2021,20011715,"3,294.82",Central & North West London Nhs Foundation Trust,SOCIAL SERVICES - OTHER,Health and Wellbeing,Provider Contract Payments,A44290
London Borough of Sutton,24/09/2021,20010323,"7,284.06",Central London Community Healthcare NHS Trust,SOCIAL SERVICES - OTHER,Health and Wellbeing,Provider Contract Payments,A44290
London Borough of Sutton,24/09/2021,20010328,"-1,517.64",Central London Community Healthcare NHS Trust,SOCIAL SERVICES - OTHER,Health and Wellbeing,Provider Contract Payments,A44290
London Borough of Sutton,01/09/2021,50062910,"5,617.20",Channels & Choices Theraputic Fostering Ltd,CHILDREN'S SERVICES - FOSTERING & ADOPTION SERVICES,Peoples Services,Foster Parents Support,A44110
London Borough of Sutton,01/10/2021,50060942,"3,586.28",Charlton Park Care Home ,SOCIAL SERVICES RESIDENTIAL,Peoples Services,Nursing Care - Ext Provider,A56025
London Borough of Sutton,01/10/2021,50060942,-662.24,Charlton Park Care Home ,SOCIAL SERVICES RESIDENTIAL,Peoples Services,Nursing Care - 3rd party top up payment,A56023
London Borough of Sutton,12/10/2021,50062426,"4,542.72",Cheam Baptist Church Pre-School,GRANTS & EX GRATIA PAYMENTS,Peoples Services,Place Funding,A56110
London Borough of Sutton,04/10/2021,50062604,700,Cheam Baptist Church Pre-School,GRANTS & EX GRATIA PAYMENTS,Peoples Services,SEND Inclusion funding,A60038
London Borough of Sutton,12/10/2021,50063648,"28,392.00",Cheam Common Infants School Academy,GRANTS & EX GRATIA PAYMENTS,Peoples Services,Place Funding,A56110
London Borough of Sutton,12/10/2021,50063780,"1,500.00",Cheam Common Infants School Academy,GRANTS & EX GRATIA PAYMENTS,Peoples Services,Pupil Growth,A51014
London Borough of Sutton,12/10/2021,50063852,"2,340.00",Cheam Common Infants School Academy,GRANTS & EX GRATIA PAYMENTS,Resources,"Grants, Contributions & Donations",A47005
London Borough of Sutton,12/10/2021,50063916,"1,602.00",Cheam Common Infants School Academy,GRANTS & EX GRATIA PAYMENTS,Peoples Services,Payments to Schools,A51013
London Borough of Sutton,11/10/2021,50065840,"2,833.33",Cheam Common Infants School Academy,GRANTS & EX GRATIA PAYMENTS,Peoples Services,Top-up Funding,A51016
London Borough of Sutton,23/09/2021,50060644,816,Cheam Common Junior Academy,GRANTS & EX GRATIA PAYMENTS,Peoples Services,Provider Contract Payments,A44290
London Borough of Sutton,23/09/2021,50060644,180,Cheam Common Junior Academy,GRANTS & EX GRATIA PAYMENTS,Peoples Services,Provider Contract Payments,A44290
London Borough of Sutton,12/10/2021,50063781,"1,500.00",Cheam Common Junior Academy,GRANTS & EX GRATIA PAYMENTS,Peoples Services,Pupil Growth,A51014
London Borough of Sutton,12/10/2021,50063853,"3,822.00",Cheam Common Junior Academy,GRANTS & EX GRATIA PAYMENTS,Resources,"Grants, Contributions & Donations",A47005
London Borough of Sutton,12/10/2021,50063901,"1,517.00",Cheam Common Junior Academy,GRANTS & EX GRATIA PAYMENTS,Peoples Services,Payments to Schools,A51013
London Borough of Sutton,12/10/2021,50063649,"9,500.40",Cheam Fields,GRANTS & EX GRATIA PAYMENTS,Peoples Services,Place Funding,A56110
London Borough of Sutton,12/10/2021,50063782,"1,500.00",Cheam Fields,GRANTS & EX GRATIA PAYMENTS,Peoples Services,Pupil Growth,A51014
London Borough of Sutton,12/10/2021,50063854,"3,042.00",Cheam Fields,GRANTS & EX GRATIA PAYMENTS,Resources,"Grants, Contributions & Donations",A47005
London Borough of Sutton,12/10/2021,50063907,"1,853.00",Cheam Fields,GRANTS & EX GRATIA PAYMENTS,Peoples Services,Payments to Schools,A51013
London Borough of Sutton,01/10/2021,20010385,"80,962.96",Cheam High School Academy,GRANTS & EX GRATIA PAYMENTS,Peoples Services,Payments to Contractors,C14000
London Borough of Sutton,12/10/2021,50063760,"3,211.00",Cheam High School Academy,GRANTS & EX GRATIA PAYMENTS,Peoples Services,Pupil Growth,A51014
London Borough of Sutton,12/10/2021,50063783,"1,500.00",Cheam High School Academy,GRANTS & EX GRATIA PAYMENTS,Peoples Services,Pupil Growth,A51014
London Borough of Sutton,12/10/2021,50063834,"15,678.00",Cheam High School Academy,GRANTS & EX GRATIA PAYMENTS,Resources,"Grants, Contributions & Donations",A47005
London Borough of Sutton,12/10/2021,50063928,"4,997.00",Cheam High School Academy,GRANTS & EX GRATIA PAYMENTS,Peoples Services,Payments to Schools,A51013
London Borough of Sutton,11/10/2021,50065851,"2,560.00",Cheam High School Academy,GRANTS & EX GRATIA PAYMENTS,Peoples Services,Top-up Funding,A51016
London Borough of Sutton,04/10/2021,50062333,700,Cheam Nursery,GRANTS & EX GRATIA PAYMENTS,Peoples Services,SEND Inclusion funding,A60038
London Borough of Sutton,12/10/2021,50062471,"13,104.00",Cheam Nursery,GRANTS & EX GRATIA PAYMENTS,Peoples Services,Place Funding,A56110
London Borough of Sutton,04/10/2021,50062616,700,Cheam Nursery,GRANTS & EX GRATIA PAYMENTS,Peoples Services,SEND Inclusion funding,A60038
London Borough of Sutton,12/10/2021,50063650,"12,612.60",Cheam Park Farm Primary School ,GRANTS & EX GRATIA PAYMENTS,Peoples Services,Place Funding,A56110
London Borough of Sutton,12/10/2021,50063784,"1,500.00",Cheam Park Farm Primary School ,GRANTS & EX GRATIA PAYMENTS,Peoples Services,Pupil Growth,A51014
London Borough of Sutton,12/10/2021,50063855,"4,290.00",Cheam Park Farm Primary School ,GRANTS & EX GRATIA PAYMENTS,Resources,"Grants, Contributions & Donations",A47005
London Borough of Sutton,12/10/2021,50063894,"2,147.00",Cheam Park Farm Primary School ,GRANTS & EX GRATIA PAYMENTS,Peoples Services,Payments to Schools,A51013
London Borough of Sutton,01/10/2021,50060961,"3,575.68",Chegworth Nursing Home Bayswift Ltd,SOCIAL SERVICES RESIDENTIAL,Peoples Services,Nursing Care - Ext Provider,A56025
London Borough of Sutton,01/10/2021,50060961,-735.68,Chegworth Nursing Home Bayswift Ltd,SOCIAL SERVICES RESIDENTIAL,Peoples Services,Nursing Care - 3rd party top up payment,A56023
London Borough of Sutton,01/10/2021,50061016,-662.24,Chegworth Nursing Home Bayswift Ltd,SOCIAL SERVICES RESIDENTIAL,Peoples Services,Nursing Care - 3rd party top up payment,A56023
London Borough of Sutton,01/10/2021,50061016,"4,800.00",Chegworth Nursing Home Bayswift Ltd,SOCIAL SERVICES RESIDENTIAL,Peoples Services,Nursing Care Short Term,A56026
London Borough of Sutton,01/10/2021,50061063,"3,643.84",Chegworth Nursing Home Bayswift Ltd,SOCIAL SERVICES RESIDENTIAL,Peoples Services,Nursing Care - Ext Provider,A56025
London Borough of Sutton,01/10/2021,50061063,-735.68,Chegworth Nursing Home Bayswift Ltd,SOCIAL SERVICES RESIDENTIAL,Peoples Services,Nursing Care - 3rd party top up payment,A56023
London Borough of Sutton,01/10/2021,50061109,"3,612.00",Chegworth Nursing Home Bayswift Ltd,SOCIAL SERVICES RESIDENTIAL,Peoples Services,Nursing Care - Ext Provider,A56025
London Borough of Sutton,01/10/2021,50061109,-735.68,Chegworth Nursing Home Bayswift Ltd,SOCIAL SERVICES RESIDENTIAL,Peoples Services,Nursing Care - 3rd party top up payment,A56023
London Borough of Sutton,01/10/2021,50061131,-632.64,Chegworth Nursing Home Bayswift Ltd,SOCIAL SERVICES RESIDENTIAL,Peoples Services,Nursing Care - 3rd party top up payment,A56023
London Borough of Sutton,01/10/2021,50061131,"3,800.00",Chegworth Nursing Home Bayswift Ltd,SOCIAL SERVICES RESIDENTIAL,Peoples Services,Nursing Care - Ext Provider,A56025
London Borough of Sutton,01/10/2021,50061132,"3,638.43",Chegworth Nursing Home Bayswift Ltd,SOCIAL SERVICES RESIDENTIAL,Peoples Services,Nursing Care - Ext Provider,A56025
London Borough of Sutton,01/10/2021,50061132,-830.8,Chegworth Nursing Home Bayswift Ltd,SOCIAL SERVICES RESIDENTIAL,Peoples Services,Nursing Care - 3rd party top up payment,A56023
London Borough of Sutton,01/10/2021,50061147,"2,800.00",Chegworth Nursing Home Bayswift Ltd,SOCIAL SERVICES RESIDENTIAL,Peoples Services,Nursing Care Short Term,A56026
London Borough of Sutton,01/10/2021,50061165,"3,555.32",Chegworth Nursing Home Bayswift Ltd,SOCIAL SERVICES RESIDENTIAL,Peoples Services,Nursing Care - Ext Provider,A56025
London Borough of Sutton,01/10/2021,50061165,-632.64,Chegworth Nursing Home Bayswift Ltd,SOCIAL SERVICES RESIDENTIAL,Peoples Services,Nursing Care - 3rd party top up payment,A56023
London Borough of Sutton,01/10/2021,50061218,"4,026.72",Chegworth Nursing Home Bayswift Ltd,SOCIAL SERVICES RESIDENTIAL,Peoples Services,Nursing Care - Ext Provider,A56025
London Borough of Sutton,01/10/2021,50061218,-750.4,Chegworth Nursing Home Bayswift Ltd,SOCIAL SERVICES RESIDENTIAL,Peoples Services,Nursing Care - 3rd party top up payment,A56023
London Borough of Sutton,01/10/2021,50061251,"3,555.32",Chegworth Nursing Home Bayswift Ltd,SOCIAL SERVICES RESIDENTIAL,Peoples Services,Nursing Care - Ext Provider,A56025
London Borough of Sutton,01/10/2021,50061251,-632.64,Chegworth Nursing Home Bayswift Ltd,SOCIAL SERVICES RESIDENTIAL,Peoples Services,Nursing Care - 3rd party top up payment,A56023
London Borough of Sutton,01/10/2021,50061341,-750.4,Chegworth Nursing Home Bayswift Ltd,SOCIAL SERVICES RESIDENTIAL,Peoples Services,Nursing Care - 3rd party top up payment,A56023
London Borough of Sutton,01/10/2021,50061341,"4,000.00",Chegworth Nursing Home Bayswift Ltd,SOCIAL SERVICES RESIDENTIAL,Peoples Services,Nursing Care - Ext Provider,A56025
London Borough of Sutton,01/10/2021,50061347,-735.68,Chegworth Nursing Home Bayswift Ltd,SOCIAL SERVICES RESIDENTIAL,Peoples Services,Nursing Care - 3rd party top up payment,A56023
London Borough of Sutton,01/10/2021,50061347,"3,612.00",Chegworth Nursing Home Bayswift Ltd,SOCIAL SERVICES RESIDENTIAL,Peoples Services,Nursing Care - Ext Provider,A56025
London Borough of Sutton,30/09/2021,20010195,"6,028.78",Chelsea and Westminster NHS Trust,SOCIAL SERVICES - OTHER,Health and Wellbeing,Provider Contract Payments,A44290
London Borough of Sutton,01/10/2021,50060993,"2,790.40",Cherry Lodge,SOCIAL SERVICES RESIDENTIAL,Peoples Services,Residential Care - Ext Provider,A56114
London Borough of Sutton,01/10/2021,50060993,-462.28,Cherry Lodge,SOCIAL SERVICES RESIDENTIAL,Peoples Services,Residential Care - Client Cont ( Net Paymt ),A56113
London Borough of Sutton,01/10/2021,50060997,"3,360.00",Cherry Lodge,SOCIAL SERVICES RESIDENTIAL,Peoples Services,Residential Care - Ext Provider,A56114
London Borough of Sutton,11/10/2021,20011054,"9,035.63",Chessington Hotel,SUNDRY SUPPLIER - EDUCATION,Peoples Services,Equipment And Materials Purchase,A40000
London Borough of Sutton,01/10/2021,50061005,"3,676.72",CHHG Ltd,SOCIAL SERVICES RESIDENTIAL,Peoples Services,Residential Care - Ext Provider,A56114
London Borough of Sutton,01/10/2021,50061178,"4,800.00",CHHG Ltd,SOCIAL SERVICES RESIDENTIAL,Peoples Services,Nursing Care - Ext Provider,A56025
London Borough of Sutton,01/10/2021,50061178,-632.64,CHHG Ltd,SOCIAL SERVICES RESIDENTIAL,Peoples Services,Nursing Care - 3rd party top up payment,A56023
London Borough of Sutton,01/10/2021,50061279,-735.68,CHHG Ltd,SOCIAL SERVICES RESIDENTIAL,Peoples Services,Nursing Care - 3rd party top up payment,A56023
London Borough of Sutton,01/10/2021,50061279,"3,812.00",CHHG Ltd,SOCIAL SERVICES RESIDENTIAL,Peoples Services,Nursing Care - Ext Provider,A56025
London Borough of Sutton,01/07/2021,20011664,889,Childcare and Learning (Cranbrook) Limited,CHILDREN'S SERVICES - DAY CARE,Peoples Services,C.C.A Daycare & Playschemes,A61005
London Borough of Sutton,01/10/2021,20011665,962,Childcare and Learning (Cranbrook) Limited,CHILDREN'S SERVICES - DAY CARE,Peoples Services,C.C.A Daycare & Playschemes,A61005
London Borough of Sutton,01/08/2021,20011666,849,Childcare and Learning (Cranbrook) Limited,CHILDREN'S SERVICES - DAY CARE,Peoples Services,C.C.A Daycare & Playschemes,A61005
London Borough of Sutton,01/09/2021,20011667,890,Childcare and Learning (Cranbrook) Limited,CHILDREN'S SERVICES - DAY CARE,Peoples Services,C.C.A Daycare & Playschemes,A61005
London Borough of Sutton,30/10/2021,20011903,"1,006.00",Childcare and Learning (Cranbrook) Limited,CHILDREN'S SERVICES - DAY CARE,Peoples Services,C.C.A Daycare & Playschemes,A61005
London Borough of Sutton,01/09/2021,50062947,"3,317.14",Children of Colour,CHILDREN'S SERVICES - FOSTERING & ADOPTION SERVICES,Peoples Services,Foster Parents Support,A44110
London Borough of Sutton,01/09/2021,50062948,"3,233.14",Children of Colour,CHILDREN'S SERVICES - FOSTERING & ADOPTION SERVICES,Peoples Services,Foster Parents Support,A44110
London Borough of Sutton,01/09/2021,50063001,"3,401.14",Children of Colour,CHILDREN'S SERVICES - FOSTERING & ADOPTION SERVICES,Peoples Services,Foster Parents Support,A44110
London Borough of Sutton,28/09/2021,20010334,"1,394.00",Children's Trust,CHILDREN'S SERVICES - DAY CARE,Peoples Services,Respite Care,A56116
London Borough of Sutton,06/09/2021,50062935,"15,747.60",Children's Trust,CHILDREN'S SERVICES - DAY CARE,Peoples Services,Residential Care-Children,A56115
London Borough of Sutton,07/10/2021,50065869,"13,180.67",Children's Trust,CHILDREN'S SERVICES - DAY CARE,Peoples Services,Independent School Fees,A56002
London Borough of Sutton,07/10/2021,50065870,"15,707.50",Children's Trust,CHILDREN'S SERVICES - DAY CARE,Peoples Services,Independent School Fees,A56002
London Borough of Sutton,12/10/2021,50062427,"1,911.00",Chiltern Day Nursery,GRANTS & EX GRATIA PAYMENTS,Peoples Services,Place Funding,A56110
London Borough of Sutton,22/10/2021,50071779,700,Chiltern Day Nursery,GRANTS & EX GRATIA PAYMENTS,Peoples Services,SEND Inclusion funding,A60038
London Borough of Sutton,22/10/2021,50071780,700,Chiltern Day Nursery,GRANTS & EX GRATIA PAYMENTS,Peoples Services,SEND Inclusion funding,A60038
London Borough of Sutton,30/09/2021,50065858,"2,200.40",Chipstead Valey Primary Trust ,GRANTS & EX GRATIA PAYMENTS,Peoples Services,Top-up Funding,A51016
London Borough of Sutton,30/09/2021,50065860,"9,499.99",Chipstead Valey Primary Trust ,GRANTS & EX GRATIA PAYMENTS,Peoples Services,Top-up Funding,A51016
London Borough of Sutton,01/10/2021,50060996,"8,368.28",Choice Care Group (Surrey) Ltd,SOCIAL SERVICES RESIDENTIAL,Peoples Services,Residential Care - Ext Provider,A56114
London Borough of Sutton,01/10/2021,50061236,"7,511.00",Choice Care Group (Surrey) Ltd,SOCIAL SERVICES RESIDENTIAL,Peoples Services,Residential Care - Ext Provider,A56114
London Borough of Sutton,01/10/2021,50061236,-356.8,Choice Care Group (Surrey) Ltd,SOCIAL SERVICES RESIDENTIAL,Peoples Services,Residential Care - Client Cont ( Net Paymt ),A56113
London Borough of Sutton,01/10/2021,50061254,"7,240.00",Choice Care Group (Surrey) Ltd,SOCIAL SERVICES RESIDENTIAL,Peoples Services,Residential Care - Ext Provider,A56114
London Borough of Sutton,01/10/2021,50061273,"7,526.32",Choice Care Group (Surrey) Ltd,SOCIAL SERVICES RESIDENTIAL,Peoples Services,Residential Care - Ext Provider,A56114
London Borough of Sutton,19/10/2021,19000360,"-1,688.53",Choice Support,GRANTS & EX GRATIA PAYMENTS,Peoples Services,Supported Living,A56088
London Borough of Sutton,19/10/2021,19000360,"-2,420.13",Choice Support,GRANTS & EX GRATIA PAYMENTS,Peoples Services,Supported Living,A56088
London Borough of Sutton,19/10/2021,19000366,"-1,192.53",Choice Support,GRANTS & EX GRATIA PAYMENTS,Peoples Services,Supported Living,A56088
London Borough of Sutton,19/10/2021,19000366,"-2,946.24",Choice Support,GRANTS & EX GRATIA PAYMENTS,Peoples Services,Supported Living,A56088
London Borough of Sutton,19/10/2021,19000367,"-1,697.83",Choice Support,GRANTS & EX GRATIA PAYMENTS,Peoples Services,Supported Living,A56088
London Borough of Sutton,19/10/2021,19000367,"-2,665.65",Choice Support,GRANTS & EX GRATIA PAYMENTS,Peoples Services,Supported Living,A56088
London Borough of Sutton,19/10/2021,19000368,"-1,697.83",Choice Support,GRANTS & EX GRATIA PAYMENTS,Peoples Services,Supported Living,A56088
London Borough of Sutton,19/10/2021,19000368,"-2,490.27",Choice Support,GRANTS & EX GRATIA PAYMENTS,Peoples Services,Supported Living,A56088
London Borough of Sutton,19/10/2021,19000369,"-1,697.83",Choice Support,GRANTS & EX GRATIA PAYMENTS,Peoples Services,Supported Living,A56088
London Borough of Sutton,19/10/2021,19000369,"-5,190.99",Choice Support,GRANTS & EX GRATIA PAYMENTS,Peoples Services,Supported Living,A56088
London Borough of Sutton,19/10/2021,19000370,-574.87,Choice Support,GRANTS & EX GRATIA PAYMENTS,Peoples Services,Supported Living,A56088
London Borough of Sutton,19/10/2021,19000370,"-3,675.09",Choice Support,GRANTS & EX GRATIA PAYMENTS,Peoples Services,Supported Living,A56088
London Borough of Sutton,19/10/2021,19000374,"-1,697.83",Choice Support,GRANTS & EX GRATIA PAYMENTS,Peoples Services,Supported Living,A56088
London Borough of Sutton,19/10/2021,19000374,"-2,490.27",Choice Support,GRANTS & EX GRATIA PAYMENTS,Peoples Services,Supported Living,A56088
London Borough of Sutton,19/10/2021,19000375,"-1,697.83",Choice Support,GRANTS & EX GRATIA PAYMENTS,Peoples Services,Supported Living,A56088
London Borough of Sutton,19/10/2021,19000375,"-2,735.79",Choice Support,GRANTS & EX GRATIA PAYMENTS,Peoples Services,Supported Living,A56088
London Borough of Sutton,19/10/2021,19000376,-484.53,Choice Support,GRANTS & EX GRATIA PAYMENTS,Peoples Services,Supported Living,A56088
London Borough of Sutton,19/10/2021,19000376,-128.38,Choice Support,GRANTS & EX GRATIA PAYMENTS,Peoples Services,Supported Living,A56088
London Borough of Sutton,19/10/2021,19000376,"-1,651.99",Choice Support,GRANTS & EX GRATIA PAYMENTS,Peoples Services,Supported Living,A56088
London Borough of Sutton,19/10/2021,19000376,"-2,349.98",Choice Support,GRANTS & EX GRATIA PAYMENTS,Peoples Services,Supported Living,A56088
London Borough of Sutton,19/10/2021,19000377,-949.93,Choice Support,GRANTS & EX GRATIA PAYMENTS,Peoples Services,Supported Living,A56088
London Borough of Sutton,19/10/2021,19000377,"-6,281.75",Choice Support,GRANTS & EX GRATIA PAYMENTS,Peoples Services,Supported Living,A56088
London Borough of Sutton,19/10/2021,19000378,-484.53,Choice Support,GRANTS & EX GRATIA PAYMENTS,Peoples Services,Supported Living,A56088
London Borough of Sutton,19/10/2021,19000378,-128.38,Choice Support,GRANTS & EX GRATIA PAYMENTS,Peoples Services,Supported Living,A56088
London Borough of Sutton,19/10/2021,19000378,"-1,616.92",Choice Support,GRANTS & EX GRATIA PAYMENTS,Peoples Services,Supported Living,A56088
London Borough of Sutton,19/10/2021,19000378,"-2,285.45",Choice Support,GRANTS & EX GRATIA PAYMENTS,Peoples Services,Supported Living,A56088
London Borough of Sutton,19/10/2021,19000379,-446.13,Choice Support,GRANTS & EX GRATIA PAYMENTS,Peoples Services,Supported Living,A56088
London Borough of Sutton,19/10/2021,19000379,"-5,728.35",Choice Support,GRANTS & EX GRATIA PAYMENTS,Peoples Services,Supported Living,A56088
London Borough of Sutton,19/10/2021,19000382,"-1,688.53",Choice Support,GRANTS & EX GRATIA PAYMENTS,Peoples Services,Supported Living,A56088
London Borough of Sutton,19/10/2021,19000382,"-4,068.62",Choice Support,GRANTS & EX GRATIA PAYMENTS,Peoples Services,Supported Living,A56088
London Borough of Sutton,19/10/2021,19000383,-872.47,Choice Support,GRANTS & EX GRATIA PAYMENTS,Peoples Services,Supported Living,A56088
London Borough of Sutton,19/10/2021,19000383,"-4,068.62",Choice Support,GRANTS & EX GRATIA PAYMENTS,Peoples Services,Supported Living,A56088
London Borough of Sutton,19/10/2021,19000384,"-3,437.28",Choice Support,GRANTS & EX GRATIA PAYMENTS,Peoples Services,Supported Living,A56088
London Borough of Sutton,19/10/2021,19000387,"-1,697.83",Choice Support,GRANTS & EX GRATIA PAYMENTS,Peoples Services,Supported Living,A56088
London Borough of Sutton,19/10/2021,19000387,"-3,156.69",Choice Support,GRANTS & EX GRATIA PAYMENTS,Peoples Services,Supported Living,A56088
London Borough of Sutton,19/10/2021,19000388,"-1,688.53",Choice Support,GRANTS & EX GRATIA PAYMENTS,Peoples Services,Supported Living,A56088
London Borough of Sutton,19/10/2021,19000388,"-3,402.21",Choice Support,GRANTS & EX GRATIA PAYMENTS,Peoples Services,Supported Living,A56088
London Borough of Sutton,19/10/2021,19000396,"-1,688.53",Choice Support,GRANTS & EX GRATIA PAYMENTS,Peoples Services,Supported Living,A56088
London Borough of Sutton,19/10/2021,19000396,"-2,951.42",Choice Support,GRANTS & EX GRATIA PAYMENTS,Peoples Services,Supported Living,A56088
London Borough of Sutton,19/10/2021,19000397,-484.53,Choice Support,GRANTS & EX GRATIA PAYMENTS,Peoples Services,Supported Living,A56088
London Borough of Sutton,19/10/2021,19000397,-117.89,Choice Support,GRANTS & EX GRATIA PAYMENTS,Peoples Services,Supported Living,A56088
London Borough of Sutton,19/10/2021,19000397,"-2,400.46",Choice Support,GRANTS & EX GRATIA PAYMENTS,Peoples Services,Supported Living,A56088
London Borough of Sutton,19/10/2021,19000397,"-1,830.77",Choice Support,GRANTS & EX GRATIA PAYMENTS,Peoples Services,Supported Living,A56088
London Borough of Sutton,19/10/2021,19000398,-872.47,Choice Support,GRANTS & EX GRATIA PAYMENTS,Peoples Services,Supported Living,A56088
London Borough of Sutton,19/10/2021,19000398,"-1,431.05",Choice Support,GRANTS & EX GRATIA PAYMENTS,Peoples Services,Supported Living,A56088
London Borough of Sutton,19/10/2021,19000398,"-2,791.90",Choice Support,GRANTS & EX GRATIA PAYMENTS,Peoples Services,Supported Living,A56088
London Borough of Sutton,19/10/2021,19000399,-484.53,Choice Support,GRANTS & EX GRATIA PAYMENTS,Peoples Services,Supported Living,A56088
London Borough of Sutton,19/10/2021,19000399,-117.89,Choice Support,GRANTS & EX GRATIA PAYMENTS,Peoples Services,Supported Living,A56088
London Borough of Sutton,19/10/2021,19000399,"-1,881.43",Choice Support,GRANTS & EX GRATIA PAYMENTS,Peoples Services,Supported Living,A56088
London Borough of Sutton,19/10/2021,19000399,"-2,112.43",Choice Support,GRANTS & EX GRATIA PAYMENTS,Peoples Services,Supported Living,A56088
London Borough of Sutton,19/10/2021,19000400,"-1,697.83",Choice Support,GRANTS & EX GRATIA PAYMENTS,Peoples Services,Supported Living,A56088
London Borough of Sutton,19/10/2021,19000400,"-2,665.65",Choice Support,GRANTS & EX GRATIA PAYMENTS,Peoples Services,Supported Living,A56088
London Borough of Sutton,19/10/2021,19000407,-484.53,Choice Support,GRANTS & EX GRATIA PAYMENTS,Peoples Services,Supported Living,A56088
London Borough of Sutton,19/10/2021,19000407,-128.38,Choice Support,GRANTS & EX GRATIA PAYMENTS,Peoples Services,Supported Living,A56088
London Borough of Sutton,19/10/2021,19000407,"-1,626.04",Choice Support,GRANTS & EX GRATIA PAYMENTS,Peoples Services,Supported Living,A56088
London Borough of Sutton,19/10/2021,19000407,"-2,314.90",Choice Support,GRANTS & EX GRATIA PAYMENTS,Peoples Services,Supported Living,A56088
London Borough of Sutton,19/10/2021,19000408,"-1,697.83",Choice Support,GRANTS & EX GRATIA PAYMENTS,Peoples Services,Supported Living,A56088
London Borough of Sutton,19/10/2021,19000408,"-3,156.69",Choice Support,GRANTS & EX GRATIA PAYMENTS,Peoples Services,Supported Living,A56088
London Borough of Sutton,19/10/2021,19000409,-484.53,Choice Support,GRANTS & EX GRATIA PAYMENTS,Peoples Services,Supported Living,A56088
London Borough of Sutton,19/10/2021,19000409,-128.38,Choice Support,GRANTS & EX GRATIA PAYMENTS,Peoples Services,Supported Living,A56088
London Borough of Sutton,19/10/2021,19000409,"-1,599.38",Choice Support,GRANTS & EX GRATIA PAYMENTS,Peoples Services,Supported Living,A56088
London Borough of Sutton,19/10/2021,19000409,"-2,069.38",Choice Support,GRANTS & EX GRATIA PAYMENTS,Peoples Services,Supported Living,A56088
London Borough of Sutton,30/07/2021,20009683,"2,262.44",Choice Support,GRANTS & EX GRATIA PAYMENTS,Peoples Services,Provider Contract Payments,A44290
London Borough of Sutton,30/07/2021,20009684,"1,980.52",Choice Support,GRANTS & EX GRATIA PAYMENTS,Peoples Services,Provider Contract Payments,A44290
London Borough of Sutton,30/07/2021,20009686,"2,262.44",Choice Support,GRANTS & EX GRATIA PAYMENTS,Peoples Services,Provider Contract Payments,A44290
London Borough of Sutton,30/07/2021,20009687,"1,980.52",Choice Support,GRANTS & EX GRATIA PAYMENTS,Peoples Services,Provider Contract Payments,A44290
London Borough of Sutton,01/10/2021,50061142,"5,509.00",Choice Support,GRANTS & EX GRATIA PAYMENTS,Peoples Services,Residential Care - Ext Provider,A56114
London Borough of Sutton,03/09/2021,50061812,"1,633.17",Choice Support,GRANTS & EX GRATIA PAYMENTS,Peoples Services,Supported Living,A56088
London Borough of Sutton,03/09/2021,50061812,"1,705.93",Choice Support,GRANTS & EX GRATIA PAYMENTS,Peoples Services,Supported Living,A56088
London Borough of Sutton,03/09/2021,50061812,235.64,Choice Support,GRANTS & EX GRATIA PAYMENTS,Peoples Services,Supported Living,A56088
London Borough of Sutton,03/09/2021,50061812,633.82,Choice Support,GRANTS & EX GRATIA PAYMENTS,Peoples Services,Supported Living,A56088
London Borough of Sutton,03/09/2021,50065233,"2,710.29",Choice Support,GRANTS & EX GRATIA PAYMENTS,Peoples Services,Supported Living,A56088
London Borough of Sutton,03/09/2021,50065233,"1,560.67",Choice Support,GRANTS & EX GRATIA PAYMENTS,Peoples Services,Supported Living,A56088
London Borough of Sutton,03/09/2021,50065233,235.64,Choice Support,GRANTS & EX GRATIA PAYMENTS,Peoples Services,Supported Living,A56088
London Borough of Sutton,03/09/2021,50065233,633.82,Choice Support,GRANTS & EX GRATIA PAYMENTS,Peoples Services,Supported Living,A56088
London Borough of Sutton,03/09/2021,50065234,"4,801.46",Choice Support,GRANTS & EX GRATIA PAYMENTS,Peoples Services,Supported Living,A56088
London Borough of Sutton,03/09/2021,50065234,887.35,Choice Support,GRANTS & EX GRATIA PAYMENTS,Peoples Services,Supported Living,A56088
London Borough of Sutton,03/09/2021,50065235,"6,097.17",Choice Support,GRANTS & EX GRATIA PAYMENTS,Peoples Services,Supported Living,A56088
London Borough of Sutton,03/09/2021,50065235,235.64,Choice Support,GRANTS & EX GRATIA PAYMENTS,Peoples Services,Supported Living,A56088
London Borough of Sutton,03/09/2021,50065235,633.82,Choice Support,GRANTS & EX GRATIA PAYMENTS,Peoples Services,Supported Living,A56088
London Borough of Sutton,03/09/2021,50065236,"5,621.72",Choice Support,GRANTS & EX GRATIA PAYMENTS,Peoples Services,Supported Living,A56088
London Borough of Sutton,03/09/2021,50065236,887.35,Choice Support,GRANTS & EX GRATIA PAYMENTS,Peoples Services,Supported Living,A56088
London Borough of Sutton,03/09/2021,50065237,"3,448.48",Choice Support,GRANTS & EX GRATIA PAYMENTS,Peoples Services,Supported Living,A56088
London Borough of Sutton,03/09/2021,50065237,"3,019.76",Choice Support,GRANTS & EX GRATIA PAYMENTS,Peoples Services,Supported Living,A56088
London Borough of Sutton,03/09/2021,50065237,235.64,Choice Support,GRANTS & EX GRATIA PAYMENTS,Peoples Services,Supported Living,A56088
London Borough of Sutton,03/09/2021,50065237,633.82,Choice Support,GRANTS & EX GRATIA PAYMENTS,Peoples Services,Supported Living,A56088
London Borough of Sutton,03/09/2021,50065238,"6,637.90",Choice Support,GRANTS & EX GRATIA PAYMENTS,Peoples Services,Supported Living,A56088
London Borough of Sutton,03/09/2021,50065238,887.35,Choice Support,GRANTS & EX GRATIA PAYMENTS,Peoples Services,Supported Living,A56088
London Borough of Sutton,03/09/2021,50065239,"5,600.02",Choice Support,GRANTS & EX GRATIA PAYMENTS,Peoples Services,Supported Living,A56088
London Borough of Sutton,03/09/2021,50065239,887.35,Choice Support,GRANTS & EX GRATIA PAYMENTS,Peoples Services,Supported Living,A56088
London Borough of Sutton,03/09/2021,50065240,"2,250.11",Choice Support,GRANTS & EX GRATIA PAYMENTS,Peoples Services,Supported Living,A56088
London Borough of Sutton,03/09/2021,50065240,"1,451.69",Choice Support,GRANTS & EX GRATIA PAYMENTS,Peoples Services,Supported Living,A56088
London Borough of Sutton,03/09/2021,50065240,235.64,Choice Support,GRANTS & EX GRATIA PAYMENTS,Peoples Services,Supported Living,A56088
London Borough of Sutton,03/09/2021,50065240,633.82,Choice Support,GRANTS & EX GRATIA PAYMENTS,Peoples Services,Supported Living,A56088
London Borough of Sutton,19/10/2021,50067366,"1,688.53",Choice Support,GRANTS & EX GRATIA PAYMENTS,Peoples Services,Supported Living,A56088
London Borough of Sutton,19/10/2021,50067366,"2,420.13",Choice Support,GRANTS & EX GRATIA PAYMENTS,Peoples Services,Supported Living,A56088
London Borough of Sutton,19/10/2021,50067372,"1,192.53",Choice Support,GRANTS & EX GRATIA PAYMENTS,Peoples Services,Supported Living,A56088
London Borough of Sutton,19/10/2021,50067372,"2,946.24",Choice Support,GRANTS & EX GRATIA PAYMENTS,Peoples Services,Supported Living,A56088
London Borough of Sutton,19/10/2021,50067373,"1,697.83",Choice Support,GRANTS & EX GRATIA PAYMENTS,Peoples Services,Supported Living,A56088
London Borough of Sutton,19/10/2021,50067373,"2,665.65",Choice Support,GRANTS & EX GRATIA PAYMENTS,Peoples Services,Supported Living,A56088
London Borough of Sutton,19/10/2021,50067374,"1,697.83",Choice Support,GRANTS & EX GRATIA PAYMENTS,Peoples Services,Supported Living,A56088
London Borough of Sutton,19/10/2021,50067374,"2,490.27",Choice Support,GRANTS & EX GRATIA PAYMENTS,Peoples Services,Supported Living,A56088
London Borough of Sutton,19/10/2021,50067375,"1,697.83",Choice Support,GRANTS & EX GRATIA PAYMENTS,Peoples Services,Supported Living,A56088
London Borough of Sutton,19/10/2021,50067375,"5,190.99",Choice Support,GRANTS & EX GRATIA PAYMENTS,Peoples Services,Supported Living,A56088
London Borough of Sutton,19/10/2021,50067376,574.87,Choice Support,GRANTS & EX GRATIA PAYMENTS,Peoples Services,Supported Living,A56088
London Borough of Sutton,19/10/2021,50067376,"3,675.09",Choice Support,GRANTS & EX GRATIA PAYMENTS,Peoples Services,Supported Living,A56088
London Borough of Sutton,19/10/2021,50067380,"1,697.83",Choice Support,GRANTS & EX GRATIA PAYMENTS,Peoples Services,Supported Living,A56088
London Borough of Sutton,19/10/2021,50067380,"2,490.27",Choice Support,GRANTS & EX GRATIA PAYMENTS,Peoples Services,Supported Living,A56088
London Borough of Sutton,19/10/2021,50067381,"1,697.83",Choice Support,GRANTS & EX GRATIA PAYMENTS,Peoples Services,Supported Living,A56088
London Borough of Sutton,19/10/2021,50067381,"2,735.79",Choice Support,GRANTS & EX GRATIA PAYMENTS,Peoples Services,Supported Living,A56088
London Borough of Sutton,19/10/2021,50067382,484.53,Choice Support,GRANTS & EX GRATIA PAYMENTS,Peoples Services,Supported Living,A56088
London Borough of Sutton,19/10/2021,50067382,128.38,Choice Support,GRANTS & EX GRATIA PAYMENTS,Peoples Services,Supported Living,A56088
London Borough of Sutton,19/10/2021,50067382,"1,651.99",Choice Support,GRANTS & EX GRATIA PAYMENTS,Peoples Services,Supported Living,A56088
London Borough of Sutton,19/10/2021,50067382,"2,349.98",Choice Support,GRANTS & EX GRATIA PAYMENTS,Peoples Services,Supported Living,A56088
London Borough of Sutton,19/10/2021,50067383,949.93,Choice Support,GRANTS & EX GRATIA PAYMENTS,Peoples Services,Supported Living,A56088
London Borough of Sutton,19/10/2021,50067383,"6,281.75",Choice Support,GRANTS & EX GRATIA PAYMENTS,Peoples Services,Supported Living,A56088
London Borough of Sutton,19/10/2021,50067384,484.53,Choice Support,GRANTS & EX GRATIA PAYMENTS,Peoples Services,Supported Living,A56088
London Borough of Sutton,19/10/2021,50067384,128.38,Choice Support,GRANTS & EX GRATIA PAYMENTS,Peoples Services,Supported Living,A56088
London Borough of Sutton,19/10/2021,50067384,"1,616.92",Choice Support,GRANTS & EX GRATIA PAYMENTS,Peoples Services,Supported Living,A56088
London Borough of Sutton,19/10/2021,50067384,"2,285.45",Choice Support,GRANTS & EX GRATIA PAYMENTS,Peoples Services,Supported Living,A56088
London Borough of Sutton,19/10/2021,50067385,446.13,Choice Support,GRANTS & EX GRATIA PAYMENTS,Peoples Services,Supported Living,A56088
London Borough of Sutton,19/10/2021,50067385,"5,728.35",Choice Support,GRANTS & EX GRATIA PAYMENTS,Peoples Services,Supported Living,A56088
London Borough of Sutton,19/10/2021,50067388,"1,688.53",Choice Support,GRANTS & EX GRATIA PAYMENTS,Peoples Services,Supported Living,A56088
London Borough of Sutton,19/10/2021,50067388,"4,068.62",Choice Support,GRANTS & EX GRATIA PAYMENTS,Peoples Services,Supported Living,A56088
London Borough of Sutton,19/10/2021,50067389,872.47,Choice Support,GRANTS & EX GRATIA PAYMENTS,Peoples Services,Supported Living,A56088
London Borough of Sutton,19/10/2021,50067389,"4,068.62",Choice Support,GRANTS & EX GRATIA PAYMENTS,Peoples Services,Supported Living,A56088
London Borough of Sutton,19/10/2021,50067390,"3,437.28",Choice Support,GRANTS & EX GRATIA PAYMENTS,Peoples Services,Supported Living,A56088
London Borough of Sutton,19/10/2021,50067393,"1,697.83",Choice Support,GRANTS & EX GRATIA PAYMENTS,Peoples Services,Supported Living,A56088
London Borough of Sutton,19/10/2021,50067393,"3,156.69",Choice Support,GRANTS & EX GRATIA PAYMENTS,Peoples Services,Supported Living,A56088
London Borough of Sutton,19/10/2021,50067394,"1,688.53",Choice Support,GRANTS & EX GRATIA PAYMENTS,Peoples Services,Supported Living,A56088
London Borough of Sutton,19/10/2021,50067394,"3,402.21",Choice Support,GRANTS & EX GRATIA PAYMENTS,Peoples Services,Supported Living,A56088
London Borough of Sutton,19/10/2021,50067402,"1,688.53",Choice Support,GRANTS & EX GRATIA PAYMENTS,Peoples Services,Supported Living,A56088
London Borough of Sutton,19/10/2021,50067402,"2,951.42",Choice Support,GRANTS & EX GRATIA PAYMENTS,Peoples Services,Supported Living,A56088
London Borough of Sutton,19/10/2021,50067403,484.53,Choice Support,GRANTS & EX GRATIA PAYMENTS,Peoples Services,Supported Living,A56088
London Borough of Sutton,19/10/2021,50067403,117.89,Choice Support,GRANTS & EX GRATIA PAYMENTS,Peoples Services,Supported Living,A56088
London Borough of Sutton,19/10/2021,50067403,"2,400.46",Choice Support,GRANTS & EX GRATIA PAYMENTS,Peoples Services,Supported Living,A56088
London Borough of Sutton,19/10/2021,50067403,"1,830.77",Choice Support,GRANTS & EX GRATIA PAYMENTS,Peoples Services,Supported Living,A56088
London Borough of Sutton,19/10/2021,50067404,872.47,Choice Support,GRANTS & EX GRATIA PAYMENTS,Peoples Services,Supported Living,A56088
London Borough of Sutton,19/10/2021,50067404,"1,431.05",Choice Support,GRANTS & EX GRATIA PAYMENTS,Peoples Services,Supported Living,A56088
London Borough of Sutton,19/10/2021,50067404,"2,791.90",Choice Support,GRANTS & EX GRATIA PAYMENTS,Peoples Services,Supported Living,A56088
London Borough of Sutton,19/10/2021,50067405,484.53,Choice Support,GRANTS & EX GRATIA PAYMENTS,Peoples Services,Supported Living,A56088
London Borough of Sutton,19/10/2021,50067405,117.89,Choice Support,GRANTS & EX GRATIA PAYMENTS,Peoples Services,Supported Living,A56088
London Borough of Sutton,19/10/2021,50067405,"1,881.43",Choice Support,GRANTS & EX GRATIA PAYMENTS,Peoples Services,Supported Living,A56088
London Borough of Sutton,19/10/2021,50067405,"2,112.43",Choice Support,GRANTS & EX GRATIA PAYMENTS,Peoples Services,Supported Living,A56088
London Borough of Sutton,19/10/2021,50067406,"1,697.83",Choice Support,GRANTS & EX GRATIA PAYMENTS,Peoples Services,Supported Living,A56088
London Borough of Sutton,19/10/2021,50067406,"2,665.65",Choice Support,GRANTS & EX GRATIA PAYMENTS,Peoples Services,Supported Living,A56088
London Borough of Sutton,19/10/2021,50067413,484.53,Choice Support,GRANTS & EX GRATIA PAYMENTS,Peoples Services,Supported Living,A56088
London Borough of Sutton,19/10/2021,50067413,128.38,Choice Support,GRANTS & EX GRATIA PAYMENTS,Peoples Services,Supported Living,A56088
London Borough of Sutton,19/10/2021,50067413,"1,626.04",Choice Support,GRANTS & EX GRATIA PAYMENTS,Peoples Services,Supported Living,A56088
London Borough of Sutton,19/10/2021,50067413,"2,314.90",Choice Support,GRANTS & EX GRATIA PAYMENTS,Peoples Services,Supported Living,A56088
London Borough of Sutton,19/10/2021,50067414,"1,697.83",Choice Support,GRANTS & EX GRATIA PAYMENTS,Peoples Services,Supported Living,A56088
London Borough of Sutton,19/10/2021,50067414,"3,156.69",Choice Support,GRANTS & EX GRATIA PAYMENTS,Peoples Services,Supported Living,A56088
London Borough of Sutton,19/10/2021,50067415,484.53,Choice Support,GRANTS & EX GRATIA PAYMENTS,Peoples Services,Supported Living,A56088
London Borough of Sutton,19/10/2021,50067415,128.38,Choice Support,GRANTS & EX GRATIA PAYMENTS,Peoples Services,Supported Living,A56088
London Borough of Sutton,19/10/2021,50067415,"1,599.38",Choice Support,GRANTS & EX GRATIA PAYMENTS,Peoples Services,Supported Living,A56088
London Borough of Sutton,19/10/2021,50067415,"2,069.38",Choice Support,GRANTS & EX GRATIA PAYMENTS,Peoples Services,Supported Living,A56088
London Borough of Sutton,19/10/2021,50069406,"1,688.53",Choice Support,GRANTS & EX GRATIA PAYMENTS,Peoples Services,Supported Living,A56088
London Borough of Sutton,19/10/2021,50069406,"2,420.13",Choice Support,GRANTS & EX GRATIA PAYMENTS,Peoples Services,Supported Living,A56088
London Borough of Sutton,19/10/2021,50069412,"1,192.53",Choice Support,GRANTS & EX GRATIA PAYMENTS,Peoples Services,Supported Living,A56088
London Borough of Sutton,19/10/2021,50069412,"2,946.24",Choice Support,GRANTS & EX GRATIA PAYMENTS,Peoples Services,Supported Living,A56088
London Borough of Sutton,19/10/2021,50069413,"1,697.83",Choice Support,GRANTS & EX GRATIA PAYMENTS,Peoples Services,Supported Living,A56088
London Borough of Sutton,19/10/2021,50069413,"2,665.65",Choice Support,GRANTS & EX GRATIA PAYMENTS,Peoples Services,Supported Living,A56088
London Borough of Sutton,19/10/2021,50069414,"1,697.83",Choice Support,GRANTS & EX GRATIA PAYMENTS,Peoples Services,Supported Living,A56088
London Borough of Sutton,19/10/2021,50069414,"2,490.27",Choice Support,GRANTS & EX GRATIA PAYMENTS,Peoples Services,Supported Living,A56088
London Borough of Sutton,19/10/2021,50069415,"1,697.83",Choice Support,GRANTS & EX GRATIA PAYMENTS,Peoples Services,Supported Living,A56088
London Borough of Sutton,19/10/2021,50069415,"5,190.99",Choice Support,GRANTS & EX GRATIA PAYMENTS,Peoples Services,Supported Living,A56088
London Borough of Sutton,19/10/2021,50069416,574.87,Choice Support,GRANTS & EX GRATIA PAYMENTS,Peoples Services,Supported Living,A56088
London Borough of Sutton,19/10/2021,50069416,"3,675.09",Choice Support,GRANTS & EX GRATIA PAYMENTS,Peoples Services,Supported Living,A56088
London Borough of Sutton,19/10/2021,50069420,"1,697.83",Choice Support,GRANTS & EX GRATIA PAYMENTS,Peoples Services,Supported Living,A56088
London Borough of Sutton,19/10/2021,50069420,"2,490.27",Choice Support,GRANTS & EX GRATIA PAYMENTS,Peoples Services,Supported Living,A56088
London Borough of Sutton,19/10/2021,50069421,"1,697.83",Choice Support,GRANTS & EX GRATIA PAYMENTS,Peoples Services,Supported Living,A56088
London Borough of Sutton,19/10/2021,50069421,"2,735.79",Choice Support,GRANTS & EX GRATIA PAYMENTS,Peoples Services,Supported Living,A56088
London Borough of Sutton,19/10/2021,50069422,484.53,Choice Support,GRANTS & EX GRATIA PAYMENTS,Peoples Services,Supported Living,A56088
London Borough of Sutton,19/10/2021,50069422,128.38,Choice Support,GRANTS & EX GRATIA PAYMENTS,Peoples Services,Supported Living,A56088
London Borough of Sutton,19/10/2021,50069422,"1,651.99",Choice Support,GRANTS & EX GRATIA PAYMENTS,Peoples Services,Supported Living,A56088
London Borough of Sutton,19/10/2021,50069422,"2,349.98",Choice Support,GRANTS & EX GRATIA PAYMENTS,Peoples Services,Supported Living,A56088
London Borough of Sutton,19/10/2021,50069423,949.93,Choice Support,GRANTS & EX GRATIA PAYMENTS,Peoples Services,Supported Living,A56088
London Borough of Sutton,19/10/2021,50069423,"6,281.75",Choice Support,GRANTS & EX GRATIA PAYMENTS,Peoples Services,Supported Living,A56088
London Borough of Sutton,19/10/2021,50069424,484.53,Choice Support,GRANTS & EX GRATIA PAYMENTS,Peoples Services,Supported Living,A56088
London Borough of Sutton,19/10/2021,50069424,128.38,Choice Support,GRANTS & EX GRATIA PAYMENTS,Peoples Services,Supported Living,A56088
London Borough of Sutton,19/10/2021,50069424,"1,616.92",Choice Support,GRANTS & EX GRATIA PAYMENTS,Peoples Services,Supported Living,A56088
London Borough of Sutton,19/10/2021,50069424,"2,285.45",Choice Support,GRANTS & EX GRATIA PAYMENTS,Peoples Services,Supported Living,A56088
London Borough of Sutton,19/10/2021,50069425,446.13,Choice Support,GRANTS & EX GRATIA PAYMENTS,Peoples Services,Supported Living,A56088
London Borough of Sutton,19/10/2021,50069425,"5,728.35",Choice Support,GRANTS & EX GRATIA PAYMENTS,Peoples Services,Supported Living,A56088
London Borough of Sutton,19/10/2021,50069428,"1,688.53",Choice Support,GRANTS & EX GRATIA PAYMENTS,Peoples Services,Supported Living,A56088
London Borough of Sutton,19/10/2021,50069428,"4,068.62",Choice Support,GRANTS & EX GRATIA PAYMENTS,Peoples Services,Supported Living,A56088
London Borough of Sutton,19/10/2021,50069429,872.47,Choice Support,GRANTS & EX GRATIA PAYMENTS,Peoples Services,Supported Living,A56088
London Borough of Sutton,19/10/2021,50069429,"4,068.62",Choice Support,GRANTS & EX GRATIA PAYMENTS,Peoples Services,Supported Living,A56088
London Borough of Sutton,19/10/2021,50069430,"3,437.28",Choice Support,GRANTS & EX GRATIA PAYMENTS,Peoples Services,Supported Living,A56088
London Borough of Sutton,19/10/2021,50069433,"1,697.83",Choice Support,GRANTS & EX GRATIA PAYMENTS,Peoples Services,Supported Living,A56088
London Borough of Sutton,19/10/2021,50069433,"3,156.69",Choice Support,GRANTS & EX GRATIA PAYMENTS,Peoples Services,Supported Living,A56088
London Borough of Sutton,19/10/2021,50069434,"1,688.53",Choice Support,GRANTS & EX GRATIA PAYMENTS,Peoples Services,Supported Living,A56088
London Borough of Sutton,19/10/2021,50069434,"3,402.21",Choice Support,GRANTS & EX GRATIA PAYMENTS,Peoples Services,Supported Living,A56088
London Borough of Sutton,19/10/2021,50069442,"1,688.53",Choice Support,GRANTS & EX GRATIA PAYMENTS,Peoples Services,Supported Living,A56088
London Borough of Sutton,19/10/2021,50069442,"2,951.42",Choice Support,GRANTS & EX GRATIA PAYMENTS,Peoples Services,Supported Living,A56088
London Borough of Sutton,19/10/2021,50069443,484.53,Choice Support,GRANTS & EX GRATIA PAYMENTS,Peoples Services,Supported Living,A56088
London Borough of Sutton,19/10/2021,50069443,117.89,Choice Support,GRANTS & EX GRATIA PAYMENTS,Peoples Services,Supported Living,A56088
London Borough of Sutton,19/10/2021,50069443,"2,400.46",Choice Support,GRANTS & EX GRATIA PAYMENTS,Peoples Services,Supported Living,A56088
London Borough of Sutton,19/10/2021,50069443,"1,830.77",Choice Support,GRANTS & EX GRATIA PAYMENTS,Peoples Services,Supported Living,A56088
London Borough of Sutton,19/10/2021,50069444,872.47,Choice Support,GRANTS & EX GRATIA PAYMENTS,Peoples Services,Supported Living,A56088
London Borough of Sutton,19/10/2021,50069444,"1,431.05",Choice Support,GRANTS & EX GRATIA PAYMENTS,Peoples Services,Supported Living,A56088
London Borough of Sutton,19/10/2021,50069444,"2,791.90",Choice Support,GRANTS & EX GRATIA PAYMENTS,Peoples Services,Supported Living,A56088
London Borough of Sutton,19/10/2021,50069445,484.53,Choice Support,GRANTS & EX GRATIA PAYMENTS,Peoples Services,Supported Living,A56088
London Borough of Sutton,19/10/2021,50069445,117.89,Choice Support,GRANTS & EX GRATIA PAYMENTS,Peoples Services,Supported Living,A56088
London Borough of Sutton,19/10/2021,50069445,"1,881.43",Choice Support,GRANTS & EX GRATIA PAYMENTS,Peoples Services,Supported Living,A56088
London Borough of Sutton,19/10/2021,50069445,"2,112.43",Choice Support,GRANTS & EX GRATIA PAYMENTS,Peoples Services,Supported Living,A56088
London Borough of Sutton,19/10/2021,50069446,"1,697.83",Choice Support,GRANTS & EX GRATIA PAYMENTS,Peoples Services,Supported Living,A56088
London Borough of Sutton,19/10/2021,50069446,"2,665.65",Choice Support,GRANTS & EX GRATIA PAYMENTS,Peoples Services,Supported Living,A56088
London Borough of Sutton,19/10/2021,50069453,484.53,Choice Support,GRANTS & EX GRATIA PAYMENTS,Peoples Services,Supported Living,A56088
London Borough of Sutton,19/10/2021,50069453,128.38,Choice Support,GRANTS & EX GRATIA PAYMENTS,Peoples Services,Supported Living,A56088
London Borough of Sutton,19/10/2021,50069453,"1,626.04",Choice Support,GRANTS & EX GRATIA PAYMENTS,Peoples Services,Supported Living,A56088
London Borough of Sutton,19/10/2021,50069453,"2,314.90",Choice Support,GRANTS & EX GRATIA PAYMENTS,Peoples Services,Supported Living,A56088
London Borough of Sutton,19/10/2021,50069454,"1,697.83",Choice Support,GRANTS & EX GRATIA PAYMENTS,Peoples Services,Supported Living,A56088
London Borough of Sutton,19/10/2021,50069454,"3,156.69",Choice Support,GRANTS & EX GRATIA PAYMENTS,Peoples Services,Supported Living,A56088
London Borough of Sutton,19/10/2021,50069455,484.53,Choice Support,GRANTS & EX GRATIA PAYMENTS,Peoples Services,Supported Living,A56088
London Borough of Sutton,19/10/2021,50069455,128.38,Choice Support,GRANTS & EX GRATIA PAYMENTS,Peoples Services,Supported Living,A56088
London Borough of Sutton,19/10/2021,50069455,"1,599.38",Choice Support,GRANTS & EX GRATIA PAYMENTS,Peoples Services,Supported Living,A56088
London Borough of Sutton,19/10/2021,50069455,"2,069.38",Choice Support,GRANTS & EX GRATIA PAYMENTS,Peoples Services,Supported Living,A56088
London Borough of Sutton,04/10/2021,50062325,700,Christchurch Fledgelings Pre-School,GRANTS & EX GRATIA PAYMENTS,Peoples Services,SEND Inclusion funding,A60038
London Borough of Sutton,12/10/2021,50062358,"1,864.80",Christchurch Fledgelings Pre-School,GRANTS & EX GRATIA PAYMENTS,Peoples Services,Place Funding,A56110
London Borough of Sutton,12/10/2021,50062428,"4,914.00",Christchurch Fledgelings Pre-School,GRANTS & EX GRATIA PAYMENTS,Peoples Services,Place Funding,A56110
London Borough of Sutton,04/10/2021,50062605,"2,100.00",Christchurch Fledgelings Pre-School,GRANTS & EX GRATIA PAYMENTS,Peoples Services,SEND Inclusion funding,A60038
London Borough of Sutton,25/08/2021,20010282,922,Chroma Vision Limited,AGRICULTURAL & ESTATE SERVICES,Environment Housing and Neighbourhoods,Equipment Purchases,C17000
London Borough of Sutton,01/10/2021,20010324,"331,306.20",Chroma Vision Limited,AGRICULTURAL & ESTATE SERVICES,Environment Housing and Neighbourhoods,Equipment Purchases,C17000
London Borough of Sutton,14/10/2021,20011264,"28,275.00",CIPFA Business Limited,CONFERENCES,Resources,Legal Services,A44025
London Borough of Sutton,14/10/2021,20011265,"2,925.00",CIPFA Business Limited,CONFERENCES,Resources,Legal Services,A44025
London Borough of Sutton,12/10/2021,50063644,"11,954.25",Cirrus Primary Academy Trust ,GRANTS & EX GRATIA PAYMENTS,Peoples Services,Place Funding,A56110
London Borough of Sutton,12/10/2021,50063774,"1,500.00",Cirrus Primary Academy Trust ,GRANTS & EX GRATIA PAYMENTS,Peoples Services,Pupil Growth,A51014
London Borough of Sutton,12/10/2021,50063848,"4,134.00",Cirrus Primary Academy Trust ,GRANTS & EX GRATIA PAYMENTS,Resources,"Grants, Contributions & Donations",A47005
London Borough of Sutton,12/10/2021,50063902,"2,009.00",Cirrus Primary Academy Trust ,GRANTS & EX GRATIA PAYMENTS,Peoples Services,Payments to Schools,A51013
London Borough of Sutton,01/10/2021,20010381,"120,245.75",Citizens Advice Bureau,GRANTS & EX GRATIA PAYMENTS,Resources,Provider Contract Payments,A44290
London Borough of Sutton,26/09/2021,20009895,"20,000.00",City of London Corporation,CENTRAL & LOCAL GOVERNMENT,Environment Housing and Neighbourhoods,Other Supplies & Services,A44291
London Borough of Sutton,17/09/2021,20009880,"4,583.33",City Of Westminster,FINANCIAL / INSURANCE INSTNS,Peoples Services,Fees,A44040
London Borough of Sutton,17/09/2021,20009881,"5,500.00",City Of Westminster,FINANCIAL / INSURANCE INSTNS,Peoples Services,Fees,A44040
London Borough of Sutton,17/09/2021,20009944,"-4,583.33",City Of Westminster,FINANCIAL / INSURANCE INSTNS,Peoples Services,Fees,A44040
London Borough of Sutton,30/09/2021,20010522,"1,939.25",City Sprint UK (Excel) Ltd,DELIVERY AND COURIER SERVICES,Health and Wellbeing,Hire of Transport - Non Staff,A32000
London Borough of Sutton,01/10/2021,50061003,"3,515.04",Claremont Care Svs Ltd,SOCIAL SERVICES RESIDENTIAL,Peoples Services,Nursing Care - Ext Provider,A56025
London Borough of Sutton,01/10/2021,50061003,-632.64,Claremont Care Svs Ltd,SOCIAL SERVICES RESIDENTIAL,Peoples Services,Nursing Care - 3rd party top up payment,A56023
London Borough of Sutton,01/10/2021,50061139,-974,Claremont Care Svs Ltd,SOCIAL SERVICES RESIDENTIAL,Peoples Services,Nursing Care - 3rd party top up payment,A56023
London Borough of Sutton,01/10/2021,50061139,"4,374.00",Claremont Care Svs Ltd,SOCIAL SERVICES RESIDENTIAL,Peoples Services,Nursing Care - Ext Provider,A56025
London Borough of Sutton,01/10/2021,50061139,-632.64,Claremont Care Svs Ltd,SOCIAL SERVICES RESIDENTIAL,Peoples Services,Nursing Care - 3rd party top up payment,A56023
London Borough of Sutton,01/10/2021,50061187,-735.68,Claremont Care Svs Ltd,SOCIAL SERVICES RESIDENTIAL,Peoples Services,Nursing Care - 3rd party top up payment,A56023
London Borough of Sutton,01/10/2021,50061187,"5,200.00",Claremont Care Svs Ltd,SOCIAL SERVICES RESIDENTIAL,Peoples Services,Nursing Care - Ext Provider,A56025
London Borough of Sutton,01/10/2021,50061202,"4,388.56",Claremont Care Svs Ltd,SOCIAL SERVICES RESIDENTIAL,Peoples Services,Nursing Care - Ext Provider,A56025
London Borough of Sutton,21/10/2021,50070235,689.58,Clarion Housing Association Ltd,ACCOMMODATION BED & BREAKFAST,Peoples Services,Approved Lodgings,A61000
London Borough of Sutton,29/09/2021,50061901,750,Classroom Teachers Ltd,ACADEMIC INSTNS - OTHER,Peoples Services,Independent School Fees,A56002
London Borough of Sutton,06/10/2021,50065859,750,Classroom Teachers Ltd,ACADEMIC INSTNS - OTHER,Peoples Services,Independent School Fees,A56002
London Borough of Sutton,13/10/2021,50069386,750,Classroom Teachers Ltd,ACADEMIC INSTNS - OTHER,Peoples Services,Independent School Fees,A56002
London Borough of Sutton,20/10/2021,50071767,750,Classroom Teachers Ltd,ACADEMIC INSTNS - OTHER,Peoples Services,Independent School Fees,A56002
London Borough of Sutton,27/08/2021,50061364,834.5,Clovecare Ltd,SOCIAL SERVICES RESIDENTIAL,Peoples Services,Home Care Services,A56019
London Borough of Sutton,14/10/2021,50067003,651.64,Clovecare Ltd,SOCIAL SERVICES RESIDENTIAL,Peoples Services,Home Care Services,A56019
London Borough of Sutton,14/10/2021,50067007,813.75,Clovecare Ltd,SOCIAL SERVICES RESIDENTIAL,Peoples Services,Home Care Services,A56019
London Borough of Sutton,14/10/2021,50067020,510.24,Clovecare Ltd,SOCIAL SERVICES RESIDENTIAL,Peoples Services,Home Care Services,A56019
London Borough of Sutton,14/10/2021,50067027,813.32,Clovecare Ltd,SOCIAL SERVICES RESIDENTIAL,Peoples Services,Home Care Services,A56019
London Borough of Sutton,14/10/2021,50067041,509.99,Clovecare Ltd,SOCIAL SERVICES RESIDENTIAL,Peoples Services,Home Care Services,A56019
London Borough of Sutton,14/10/2021,50067044,646.69,Clovecare Ltd,SOCIAL SERVICES RESIDENTIAL,Peoples Services,Home Care Services,A56019
London Borough of Sutton,14/10/2021,50067049,845.99,Clovecare Ltd,SOCIAL SERVICES RESIDENTIAL,Peoples Services,Home Care Services,A56019
London Borough of Sutton,14/10/2021,50067063,510.86,Clovecare Ltd,SOCIAL SERVICES RESIDENTIAL,Peoples Services,Home Care Services,A56019
London Borough of Sutton,14/10/2021,50067066,627.66,Clovecare Ltd,SOCIAL SERVICES RESIDENTIAL,Peoples Services,Home Care Services,A56019
London Borough of Sutton,14/10/2021,50067088,631.47,Clovecare Ltd,SOCIAL SERVICES RESIDENTIAL,Peoples Services,Home Care Services,A56019
London Borough of Sutton,14/10/2021,50067092,802.58,Clovecare Ltd,SOCIAL SERVICES RESIDENTIAL,Peoples Services,Home Care Services,A56019
London Borough of Sutton,14/10/2021,50067092,36.99,Clovecare Ltd,SOCIAL SERVICES RESIDENTIAL,Peoples Services,Home Care Services,A56019
London Borough of Sutton,19/10/2021,50071555,839.75,Clovecare Ltd,SOCIAL SERVICES RESIDENTIAL,Peoples Services,Home Care Services,A56019
London Borough of Sutton,19/10/2021,50071555,42.75,Clovecare Ltd,SOCIAL SERVICES RESIDENTIAL,Peoples Services,Home Care Services,A56019
London Borough of Sutton,01/10/2021,50061012,"3,094.00",Cloyda Limited,SOCIAL SERVICES RESIDENTIAL,Peoples Services,Residential Care - Ext Provider,A56114
London Borough of Sutton,19/10/2021,19000371,"-3,162.00",Cmg Homes Ltd,SOCIAL SERVICES RESIDENTIAL,Peoples Services,Supported Living,A56088
London Borough of Sutton,19/10/2021,19000373,"-3,662.43",Cmg Homes Ltd,SOCIAL SERVICES RESIDENTIAL,Peoples Services,Supported Living,A56088
London Borough of Sutton,19/10/2021,19000389,"-4,592.43",Cmg Homes Ltd,SOCIAL SERVICES RESIDENTIAL,Peoples Services,Supported Living,A56088
London Borough of Sutton,19/10/2021,19000411,"-3,465.58",Cmg Homes Ltd,SOCIAL SERVICES RESIDENTIAL,Peoples Services,Supported Living,A56088
London Borough of Sutton,01/10/2021,50060994,"5,416.92",Cmg Homes Ltd,SOCIAL SERVICES RESIDENTIAL,Peoples Services,Residential Care - Ext Provider,A56114
London Borough of Sutton,01/10/2021,50060994,-425.6,Cmg Homes Ltd,SOCIAL SERVICES RESIDENTIAL,Peoples Services,Residential Care - Client Cont ( Net Paymt ),A56113
London Borough of Sutton,01/10/2021,50061212,"10,647.52",Cmg Homes Ltd,SOCIAL SERVICES RESIDENTIAL,Peoples Services,Residential Care - Ext Provider,A56114
London Borough of Sutton,01/10/2021,50061271,"7,036.00",Cmg Homes Ltd,SOCIAL SERVICES RESIDENTIAL,Peoples Services,Residential Care - Ext Provider,A56114
London Borough of Sutton,01/10/2021,50061271,-611,Cmg Homes Ltd,SOCIAL SERVICES RESIDENTIAL,Peoples Services,Residential Care - Client Cont ( Net Paymt ),A56113
London Borough of Sutton,19/10/2021,50067377,"3,162.00",Cmg Homes Ltd,SOCIAL SERVICES RESIDENTIAL,Peoples Services,Supported Living,A56088
London Borough of Sutton,19/10/2021,50067379,"3,662.43",Cmg Homes Ltd,SOCIAL SERVICES RESIDENTIAL,Peoples Services,Supported Living,A56088
London Borough of Sutton,19/10/2021,50067395,"4,592.43",Cmg Homes Ltd,SOCIAL SERVICES RESIDENTIAL,Peoples Services,Supported Living,A56088
London Borough of Sutton,19/10/2021,50067417,"3,465.58",Cmg Homes Ltd,SOCIAL SERVICES RESIDENTIAL,Peoples Services,Supported Living,A56088
London Borough of Sutton,19/10/2021,50069417,"3,162.00",Cmg Homes Ltd,SOCIAL SERVICES RESIDENTIAL,Peoples Services,Supported Living,A56088
London Borough of Sutton,19/10/2021,50069419,"3,662.43",Cmg Homes Ltd,SOCIAL SERVICES RESIDENTIAL,Peoples Services,Supported Living,A56088
London Borough of Sutton,19/10/2021,50069435,"4,592.43",Cmg Homes Ltd,SOCIAL SERVICES RESIDENTIAL,Peoples Services,Supported Living,A56088
London Borough of Sutton,19/10/2021,50069457,"3,465.58",Cmg Homes Ltd,SOCIAL SERVICES RESIDENTIAL,Peoples Services,Supported Living,A56088
London Borough of Sutton,01/10/2021,50060903,"4,080.72",Coast Care Homes Ltd,SOCIAL SERVICES RESIDENTIAL,Peoples Services,Residential Care - Ext Provider,A56114
London Borough of Sutton,01/10/2021,50060915,"5,045.80",Cognithan Ltd,SOCIAL SERVICES RESIDENTIAL,Peoples Services,Residential Care - Ext Provider,A56114
London Borough of Sutton,28/08/2021,50070600,"1,748.70",Cognithan Ltd,SOCIAL SERVICES RESIDENTIAL,Peoples Services,Supported Living,A56088
London Borough of Sutton,28/07/2021,50070601,"1,806.99",Cognithan Ltd,SOCIAL SERVICES RESIDENTIAL,Peoples Services,Supported Living,A56088
London Borough of Sutton,08/10/2021,20010880,"267,791.67",Cognus Ltd,LEGAL & PROFESSIONAL SERVICES,Peoples Services,Special Educational Needs,A51015
London Borough of Sutton,08/10/2021,20010881,"207,361.31",Cognus Ltd,LEGAL & PROFESSIONAL SERVICES,Peoples Services,Consultancy Services,A56007
London Borough of Sutton,08/10/2021,20010881,"213,735.89",Cognus Ltd,LEGAL & PROFESSIONAL SERVICES,Peoples Services,Consultancy Services,A56007
London Borough of Sutton,14/10/2021,20011213,900,Cognus Ltd,LEGAL & PROFESSIONAL SERVICES,Peoples Services,Predictable Needs funding,A56125
London Borough of Sutton,12/10/2021,50062429,"11,174.63",Collingwood School Ltd,GRANTS & EX GRATIA PAYMENTS,Peoples Services,Place Funding,A56110
London Borough of Sutton,08/10/2021,20010971,"33,800.00",Community Action Sutton,GRANTS & EX GRATIA PAYMENTS,Peoples Services,Resid Cont Residential Care,A92130
London Borough of Sutton,12/10/2021,20011048,"65,000.00",Community Action Sutton,GRANTS & EX GRATIA PAYMENTS,Health and Wellbeing,Provider Contract Payments,A44290
London Borough of Sutton,01/09/2021,50062895,"3,214.20",Compass Fostering London Ltd,CHILDREN'S SERVICES - FOSTERING & ADOPTION SERVICES,Peoples Services,Foster Parents Support,A44110
London Borough of Sutton,01/09/2021,50062897,"3,064.20",Compass Fostering London Ltd,CHILDREN'S SERVICES - FOSTERING & ADOPTION SERVICES,Peoples Services,Foster Parents Support,A44110
London Borough of Sutton,01/09/2021,50062976,"3,385.50",Compass Fostering London Ltd,CHILDREN'S SERVICES - FOSTERING & ADOPTION SERVICES,Peoples Services,Foster Parents Support,A44110
London Borough of Sutton,01/09/2021,50062977,"3,299.70",Compass Fostering London Ltd,CHILDREN'S SERVICES - FOSTERING & ADOPTION SERVICES,Peoples Services,Foster Parents Support,A44110
London Borough of Sutton,01/09/2021,50062978,"3,385.50",Compass Fostering London Ltd,CHILDREN'S SERVICES - FOSTERING & ADOPTION SERVICES,Peoples Services,Foster Parents Support,A44110
London Borough of Sutton,01/09/2021,50063007,"3,199.50",Compass Fostering London Ltd,CHILDREN'S SERVICES - FOSTERING & ADOPTION SERVICES,Peoples Services,Foster Parents Support,A44110
London Borough of Sutton,01/09/2021,50063016,"2,635.80",Compass Fostering London Ltd,CHILDREN'S SERVICES - FOSTERING & ADOPTION SERVICES,Peoples Services,Foster Parents Support,A44110
London Borough of Sutton,01/09/2021,50063017,"5,166.00",Compass Fostering London Ltd,CHILDREN'S SERVICES - FOSTERING & ADOPTION SERVICES,Peoples Services,Foster Parents Support,A44110
London Borough of Sutton,01/09/2021,50062893,"3,880.80",Compass Fostering South Ltd,CHILDREN'S SERVICES - FOSTERING & ADOPTION SERVICES,Peoples Services,Foster Parents Support,A44110
London Borough of Sutton,01/09/2021,50062921,"3,102.60",Compass Fostering South Ltd,CHILDREN'S SERVICES - FOSTERING & ADOPTION SERVICES,Peoples Services,Foster Parents Support,A44110
London Borough of Sutton,15/10/2021,50070589,"2,797.72",Compass Fostering West Ltd,CHILDREN'S SERVICES - FOSTERING & ADOPTION SERVICES,Peoples Services,Foster Parents Support,A44110
London Borough of Sutton,12/10/2021,50062379,"1,864.80",Co-operative Childcare,GRANTS & EX GRATIA PAYMENTS,Peoples Services,Place Funding,A56110
London Borough of Sutton,12/10/2021,50062459,"15,561.00",Co-operative Childcare,GRANTS & EX GRATIA PAYMENTS,Peoples Services,Place Funding,A56110
London Borough of Sutton,04/10/2021,50062614,910,Co-operative Childcare,GRANTS & EX GRATIA PAYMENTS,Peoples Services,SEND Inclusion funding,A60038
London Borough of Sutton,24/08/2021,50062896,"17,528.44",Cornerways Childrens Services Ltd,CHILDREN'S SERVICES - FOSTERING & ADOPTION SERVICES,Peoples Services,Residential Care-Children,A56115
London Borough of Sutton,20/09/2021,20010479,705.36,Corona Energy,UTILITIES,Resources,Gas,A21003
London Borough of Sutton,01/10/2021,50060943,"2,849.57",Country Court Care Homes 2 Ltd,SOCIAL SERVICES RESIDENTIAL,Peoples Services,Respite Care,A56116
London Borough of Sutton,06/10/2021,20010727,"1,521.00",CPCAB,TEMP STAFF & CONSULTANCY,Health and Wellbeing,Examination Fees,A44200
London Borough of Sutton,10/09/2021,50062957,"6,732.86",Credo Care Limited,CHILDREN'S SERVICE - OTHER,Peoples Services,Foster Parents Support,A44110
London Borough of Sutton,30/09/2021,50061567,"2,720.00",CRM Students Ltd,CARE LEAVERS,Peoples Services,Education Allowance,A60008
London Borough of Sutton,01/10/2021,50060953,-735.68,CRNH Ltd ,SOCIAL SERVICES RESIDENTIAL,Peoples Services,Nursing Care - 3rd party top up payment,A56023
London Borough of Sutton,01/10/2021,50060953,"3,612.00",CRNH Ltd ,SOCIAL SERVICES RESIDENTIAL,Peoples Services,Nursing Care - Ext Provider,A56025
London Borough of Sutton,01/10/2021,50061029,"3,612.00",CRNH Ltd ,SOCIAL SERVICES RESIDENTIAL,Peoples Services,Nursing Care - Ext Provider,A56025
London Borough of Sutton,01/10/2021,50061029,-735.68,CRNH Ltd ,SOCIAL SERVICES RESIDENTIAL,Peoples Services,Nursing Care - 3rd party top up payment,A56023
London Borough of Sutton,01/10/2021,50061117,667.14,CRNH Ltd ,SOCIAL SERVICES RESIDENTIAL,Peoples Services,Nursing Care Short Term,A56026
London Borough of Sutton,01/10/2021,50061117,-134,CRNH Ltd ,SOCIAL SERVICES RESIDENTIAL,Peoples Services,Nursing Care - 3rd party top up payment,A56023
London Borough of Sutton,01/10/2021,50061118,"3,556.00",CRNH Ltd ,SOCIAL SERVICES RESIDENTIAL,Peoples Services,Nursing Care - Ext Provider,A56025
London Borough of Sutton,01/10/2021,50061119,"4,070.40",CRNH Ltd ,SOCIAL SERVICES RESIDENTIAL,Peoples Services,Nursing Care - Ext Provider,A56025
London Borough of Sutton,01/10/2021,50061119,-662.24,CRNH Ltd ,SOCIAL SERVICES RESIDENTIAL,Peoples Services,Nursing Care - 3rd party top up payment,A56023
London Borough of Sutton,01/10/2021,50061134,-632.64,CRNH Ltd ,SOCIAL SERVICES RESIDENTIAL,Peoples Services,Nursing Care - 3rd party top up payment,A56023
London Borough of Sutton,01/10/2021,50061148,"3,502.08",CRNH Ltd ,SOCIAL SERVICES RESIDENTIAL,Peoples Services,Nursing Care - Ext Provider,A56025
London Borough of Sutton,01/10/2021,50061148,-632.64,CRNH Ltd ,SOCIAL SERVICES RESIDENTIAL,Peoples Services,Nursing Care - 3rd party top up payment,A56023
London Borough of Sutton,01/10/2021,50061149,"3,555.32",CRNH Ltd ,SOCIAL SERVICES RESIDENTIAL,Peoples Services,Nursing Care - Ext Provider,A56025
London Borough of Sutton,01/10/2021,50061149,-662.24,CRNH Ltd ,SOCIAL SERVICES RESIDENTIAL,Peoples Services,Nursing Care - 3rd party top up payment,A56023
London Borough of Sutton,01/10/2021,50061259,-735.68,CRNH Ltd ,SOCIAL SERVICES RESIDENTIAL,Peoples Services,Nursing Care - 3rd party top up payment,A56023
London Borough of Sutton,01/10/2021,50061259,"3,612.00",CRNH Ltd ,SOCIAL SERVICES RESIDENTIAL,Peoples Services,Nursing Care Short Term,A56026
London Borough of Sutton,01/10/2021,50061300,"3,612.00",CRNH Ltd ,SOCIAL SERVICES RESIDENTIAL,Peoples Services,Nursing Care - Ext Provider,A56025
London Borough of Sutton,01/10/2021,50061300,-735.68,CRNH Ltd ,SOCIAL SERVICES RESIDENTIAL,Peoples Services,Nursing Care - 3rd party top up payment,A56023
London Borough of Sutton,01/10/2021,50061328,881.61,CRNH Ltd ,SOCIAL SERVICES RESIDENTIAL,Peoples Services,Nursing Care - Ext Provider,A56025
London Borough of Sutton,01/10/2021,50061328,-78.82,CRNH Ltd ,SOCIAL SERVICES RESIDENTIAL,Peoples Services,Nursing Care - 3rd party top up payment,A56023
London Borough of Sutton,01/10/2021,50061017,"3,611.68",Cross Care Services Ltd,SOCIAL SERVICES RESIDENTIAL,Peoples Services,Nursing Care - Ext Provider,A56025
London Borough of Sutton,01/10/2021,50061017,-735.68,Cross Care Services Ltd,SOCIAL SERVICES RESIDENTIAL,Peoples Services,Nursing Care - 3rd party top up payment,A56023
London Borough of Sutton,01/10/2021,50061066,"3,612.00",Cross Care Services Ltd,SOCIAL SERVICES RESIDENTIAL,Peoples Services,Nursing Care - Ext Provider,A56025
London Borough of Sutton,01/10/2021,50061066,-735.68,Cross Care Services Ltd,SOCIAL SERVICES RESIDENTIAL,Peoples Services,Nursing Care - 3rd party top up payment,A56023
London Borough of Sutton,01/10/2021,50061067,"3,612.00",Cross Care Services Ltd,SOCIAL SERVICES RESIDENTIAL,Peoples Services,Nursing Care - Ext Provider,A56025
London Borough of Sutton,01/10/2021,50061067,-735.68,Cross Care Services Ltd,SOCIAL SERVICES RESIDENTIAL,Peoples Services,Nursing Care - 3rd party top up payment,A56023
London Borough of Sutton,01/10/2021,50061166,"3,171.44",Cross Care Services Ltd,SOCIAL SERVICES RESIDENTIAL,Peoples Services,Nursing Care - Ext Provider,A56025
London Borough of Sutton,01/10/2021,50061166,-662.24,Cross Care Services Ltd,SOCIAL SERVICES RESIDENTIAL,Peoples Services,Nursing Care - 3rd party top up payment,A56023
London Borough of Sutton,01/10/2021,50061325,"3,612.00",Cross Care Services Ltd,SOCIAL SERVICES RESIDENTIAL,Peoples Services,Nursing Care - Ext Provider,A56025
London Borough of Sutton,01/10/2021,50061325,-735.68,Cross Care Services Ltd,SOCIAL SERVICES RESIDENTIAL,Peoples Services,Nursing Care - 3rd party top up payment,A56023
London Borough of Sutton,01/10/2021,50061348,"3,502.08",Cross Care Services Ltd,SOCIAL SERVICES RESIDENTIAL,Peoples Services,Nursing Care - Ext Provider,A56025
London Borough of Sutton,01/10/2021,50060981,"-2,042.44",Crossways Community,SOCIAL SERVICES RESIDENTIAL,Peoples Services,Nursing Care - 3rd party top up payment,A56023
London Borough of Sutton,01/10/2021,50060981,"4,168.24",Crossways Community,SOCIAL SERVICES RESIDENTIAL,Peoples Services,Residential Care - Ext Provider,A56114
London Borough of Sutton,01/10/2021,50061330,"2,634.68",Crossways Community,SOCIAL SERVICES RESIDENTIAL,Peoples Services,Residential Care - Ext Provider,A56114
London Borough of Sutton,13/10/2021,20011171,"3,525.00",Croydon Orthodontics Ltd,SUNDRY SUPPLIER - EDUCATION,Peoples Services,Miscellaneous Expenses,A49000
London Borough of Sutton,19/10/2021,20011502,"5,000.00",Cruse Bereavement Care,CHARITIES & VOLUNTARY ORGNS,Health and Wellbeing,"Grants, Contributions & Donations",A47005
London Borough of Sutton,01/10/2021,50061200,"7,200.00",CSS Ltd ,SOCIAL SERVICES RESIDENTIAL,Peoples Services,Residential Care - Ext Provider,A56114
London Borough of Sutton,04/10/2021,50071873,600,CSS Ltd ,SOCIAL SERVICES RESIDENTIAL,Peoples Services,Day Care Services,A56021
London Borough of Sutton,12/10/2021,50063610,"161,839.44",Culvers House Primary School,GRANTS & EX GRATIA PAYMENTS,Peoples Services,Payments to Schools,A51013
London Borough of Sutton,12/10/2021,50063651,"6,496.88",Culvers House Primary School,GRANTS & EX GRATIA PAYMENTS,Peoples Services,Place Funding,A56110
London Borough of Sutton,12/10/2021,50063691,"39,005.00",Culvers House Primary School,GRANTS & EX GRATIA PAYMENTS,Peoples Services,Payments to Schools,A51013
London Borough of Sutton,12/10/2021,50063715,586.25,Culvers House Primary School,GRANTS & EX GRATIA PAYMENTS,Peoples Services,Payments to Schools,A51013
London Borough of Sutton,12/10/2021,50063785,"1,500.00",Culvers House Primary School,GRANTS & EX GRATIA PAYMENTS,Peoples Services,Pupil Growth,A51014
London Borough of Sutton,12/10/2021,50063833,"11,466.00",Culvers House Primary School,GRANTS & EX GRATIA PAYMENTS,Resources,"Grants, Contributions & Donations",A47005
London Borough of Sutton,12/10/2021,50063891,"1,703.00",Culvers House Primary School,GRANTS & EX GRATIA PAYMENTS,Peoples Services,Payments to Schools,A51013
London Borough of Sutton,31/07/2021,20008993,"2,077.00",Cyberstyle Letting Limited,ACCOMMODATION BED & BREAKFAST,Environment Housing and Neighbourhoods,Bed & Breakfast,A56000
London Borough of Sutton,16/09/2021,20009455,"2,077.00",Cyberstyle Letting Limited,ACCOMMODATION BED & BREAKFAST,Environment Housing and Neighbourhoods,Bed & Breakfast,A56000
London Borough of Sutton,30/09/2021,20010316,"6,252.24",Darwin Group Ltd,CONSTRUCTION INDUSTRY,Peoples Services,Payments to Contractors,C14000
London Borough of Sutton,10/10/2021,19000800,-672,Day and Nite Services,SOCIAL SERVICES DAY CARE,Peoples Services,Home Care Services,A56019
London Borough of Sutton,10/10/2021,19000800,-96,Day and Nite Services,SOCIAL SERVICES DAY CARE,Peoples Services,Home Care Services,A56019
London Borough of Sutton,17/10/2021,19000801,-672,Day and Nite Services,SOCIAL SERVICES DAY CARE,Peoples Services,Home Care Services,A56019
London Borough of Sutton,17/10/2021,19000801,-96,Day and Nite Services,SOCIAL SERVICES DAY CARE,Peoples Services,Home Care Services,A56019
London Borough of Sutton,03/10/2021,19000802,-672,Day and Nite Services,SOCIAL SERVICES DAY CARE,Peoples Services,Home Care Services,A56019
London Borough of Sutton,03/10/2021,19000802,-96,Day and Nite Services,SOCIAL SERVICES DAY CARE,Peoples Services,Home Care Services,A56019
London Borough of Sutton,03/10/2021,19000824,-560,Day and Nite Services,SOCIAL SERVICES DAY CARE,Peoples Services,Home Care Services,A56019
London Borough of Sutton,10/10/2021,19000828,-560,Day and Nite Services,SOCIAL SERVICES DAY CARE,Peoples Services,Home Care Services,A56019
London Borough of Sutton,17/10/2021,19000829,-560,Day and Nite Services,SOCIAL SERVICES DAY CARE,Peoples Services,Home Care Services,A56019
London Borough of Sutton,10/10/2021,19000870,-504,Day and Nite Services,SOCIAL SERVICES DAY CARE,Peoples Services,Home Care Services,A56019
London Borough of Sutton,17/10/2021,19000871,-504,Day and Nite Services,SOCIAL SERVICES DAY CARE,Peoples Services,Home Care Services,A56019
London Borough of Sutton,03/10/2021,19000872,-504,Day and Nite Services,SOCIAL SERVICES DAY CARE,Peoples Services,Home Care Services,A56019
London Borough of Sutton,26/09/2021,50061424,672,Day and Nite Services,SOCIAL SERVICES DAY CARE,Peoples Services,Home Care Services,A56019
London Borough of Sutton,26/09/2021,50061424,96,Day and Nite Services,SOCIAL SERVICES DAY CARE,Peoples Services,Home Care Services,A56019
London Borough of Sutton,26/09/2021,50061430,560,Day and Nite Services,SOCIAL SERVICES DAY CARE,Peoples Services,Home Care Services,A56019
London Borough of Sutton,26/09/2021,50061453,504,Day and Nite Services,SOCIAL SERVICES DAY CARE,Peoples Services,Home Care Services,A56019
London Borough of Sutton,10/10/2021,50067806,672,Day and Nite Services,SOCIAL SERVICES DAY CARE,Peoples Services,Home Care Services,A56019
London Borough of Sutton,10/10/2021,50067806,96,Day and Nite Services,SOCIAL SERVICES DAY CARE,Peoples Services,Home Care Services,A56019
London Borough of Sutton,17/10/2021,50067807,672,Day and Nite Services,SOCIAL SERVICES DAY CARE,Peoples Services,Home Care Services,A56019
London Borough of Sutton,17/10/2021,50067807,96,Day and Nite Services,SOCIAL SERVICES DAY CARE,Peoples Services,Home Care Services,A56019
London Borough of Sutton,03/10/2021,50067808,672,Day and Nite Services,SOCIAL SERVICES DAY CARE,Peoples Services,Home Care Services,A56019
London Borough of Sutton,03/10/2021,50067808,96,Day and Nite Services,SOCIAL SERVICES DAY CARE,Peoples Services,Home Care Services,A56019
London Borough of Sutton,03/10/2021,50067830,560,Day and Nite Services,SOCIAL SERVICES DAY CARE,Peoples Services,Home Care Services,A56019
London Borough of Sutton,10/10/2021,50067834,560,Day and Nite Services,SOCIAL SERVICES DAY CARE,Peoples Services,Home Care Services,A56019
London Borough of Sutton,17/10/2021,50067835,560,Day and Nite Services,SOCIAL SERVICES DAY CARE,Peoples Services,Home Care Services,A56019
London Borough of Sutton,10/10/2021,50067876,504,Day and Nite Services,SOCIAL SERVICES DAY CARE,Peoples Services,Home Care Services,A56019
London Borough of Sutton,17/10/2021,50067877,504,Day and Nite Services,SOCIAL SERVICES DAY CARE,Peoples Services,Home Care Services,A56019
London Borough of Sutton,03/10/2021,50067878,504,Day and Nite Services,SOCIAL SERVICES DAY CARE,Peoples Services,Home Care Services,A56019
London Borough of Sutton,10/10/2021,50069846,672,Day and Nite Services,SOCIAL SERVICES DAY CARE,Peoples Services,Home Care Services,A56019
London Borough of Sutton,10/10/2021,50069846,96,Day and Nite Services,SOCIAL SERVICES DAY CARE,Peoples Services,Home Care Services,A56019
London Borough of Sutton,17/10/2021,50069847,672,Day and Nite Services,SOCIAL SERVICES DAY CARE,Peoples Services,Home Care Services,A56019
London Borough of Sutton,17/10/2021,50069847,96,Day and Nite Services,SOCIAL SERVICES DAY CARE,Peoples Services,Home Care Services,A56019
London Borough of Sutton,03/10/2021,50069848,672,Day and Nite Services,SOCIAL SERVICES DAY CARE,Peoples Services,Home Care Services,A56019
London Borough of Sutton,03/10/2021,50069848,96,Day and Nite Services,SOCIAL SERVICES DAY CARE,Peoples Services,Home Care Services,A56019
London Borough of Sutton,03/10/2021,50069870,560,Day and Nite Services,SOCIAL SERVICES DAY CARE,Peoples Services,Home Care Services,A56019
London Borough of Sutton,10/10/2021,50069874,560,Day and Nite Services,SOCIAL SERVICES DAY CARE,Peoples Services,Home Care Services,A56019
London Borough of Sutton,17/10/2021,50069875,560,Day and Nite Services,SOCIAL SERVICES DAY CARE,Peoples Services,Home Care Services,A56019
London Borough of Sutton,10/10/2021,50069916,504,Day and Nite Services,SOCIAL SERVICES DAY CARE,Peoples Services,Home Care Services,A56019
London Borough of Sutton,17/10/2021,50069917,504,Day and Nite Services,SOCIAL SERVICES DAY CARE,Peoples Services,Home Care Services,A56019
London Borough of Sutton,03/10/2021,50069918,504,Day and Nite Services,SOCIAL SERVICES DAY CARE,Peoples Services,Home Care Services,A56019
London Borough of Sutton,05/10/2021,20010563,846,DCC Interactive Ltd,CONFERENCES,Peoples Services,Staff Development And Training,A15022
London Borough of Sutton,12/10/2021,20011155,"2,010.00",Denhan Property Services,ACCOMMODATION BED & BREAKFAST,Environment Housing and Neighbourhoods,Bed & Breakfast,A56000
London Borough of Sutton,16/09/2021,20011156,"2,077.00",Denhan Property Services,ACCOMMODATION BED & BREAKFAST,Environment Housing and Neighbourhoods,Bed & Breakfast,A56000
London Borough of Sutton,01/10/2021,50061247,"2,918.00",Denville Hall 2012,SOCIAL SERVICES RESIDENTIAL,Peoples Services,Residential Care - Ext Provider,A56114
London Borough of Sutton,01/10/2021,50060932,"3,060.00",Devaglade Trading Limited ,SOCIAL SERVICES RESIDENTIAL,Peoples Services,Residential Care - Ext Provider,A56114
London Borough of Sutton,12/10/2021,50063603,"249,204.61",Devonshire Primary School,GRANTS & EX GRATIA PAYMENTS,Peoples Services,Payments to Schools,A51013
London Borough of Sutton,12/10/2021,50063652,"14,196.00",Devonshire Primary School,GRANTS & EX GRATIA PAYMENTS,Peoples Services,Place Funding,A56110
London Borough of Sutton,12/10/2021,50063684,"59,516.25",Devonshire Primary School,GRANTS & EX GRATIA PAYMENTS,Peoples Services,Payments to Schools,A51013
London Borough of Sutton,12/10/2021,50063710,586.25,Devonshire Primary School,GRANTS & EX GRATIA PAYMENTS,Peoples Services,Payments to Schools,A51013
London Borough of Sutton,12/10/2021,50063786,"1,500.00",Devonshire Primary School,GRANTS & EX GRATIA PAYMENTS,Peoples Services,Pupil Growth,A51014
London Borough of Sutton,12/10/2021,50063873,"14,820.00",Devonshire Primary School,GRANTS & EX GRATIA PAYMENTS,Resources,"Grants, Contributions & Donations",A47005
London Borough of Sutton,12/10/2021,50063885,"5,690.00",Devonshire Primary School,GRANTS & EX GRATIA PAYMENTS,Peoples Services,Payments to Schools,A51013
London Borough of Sutton,29/04/2021,50066818,"7,669.20",Direct Care And Support Services,ACCOMMODATION - OTHER,Peoples Services,Supported Living,A56088
London Borough of Sutton,02/09/2021,50066819,"7,669.20",Direct Care And Support Services,ACCOMMODATION - OTHER,Peoples Services,Supported Living,A56088
London Borough of Sutton,02/08/2021,50066824,"7,669.20",Direct Care And Support Services,ACCOMMODATION - OTHER,Peoples Services,Supported Living,A56088
London Borough of Sutton,28/07/2021,50066830,"2,490.00",Direct Care And Support Services,ACCOMMODATION - OTHER,Peoples Services,Supported Living,A56088
London Borough of Sutton,28/08/2021,50066831,"2,490.00",Direct Care And Support Services,ACCOMMODATION - OTHER,Peoples Services,Supported Living,A56088
London Borough of Sutton,28/05/2021,50066832,"2,490.00",Direct Care And Support Services,ACCOMMODATION - OTHER,Peoples Services,Supported Living,A56088
London Borough of Sutton,28/06/2021,50066833,"2,490.00",Direct Care And Support Services,ACCOMMODATION - OTHER,Peoples Services,Supported Living,A56088
London Borough of Sutton,10/09/2021,50066838,"2,290.24",Direct Care And Support Services,ACCOMMODATION - OTHER,Peoples Services,Supported Living,A56088
London Borough of Sutton,17/09/2021,50066839,"2,271.20",Direct Care And Support Services,ACCOMMODATION - OTHER,Peoples Services,Supported Living,A56088
London Borough of Sutton,12/09/2021,50066840,"5,514.48",Direct Care And Support Services,ACCOMMODATION - OTHER,Peoples Services,Supported Living,A56088
London Borough of Sutton,13/09/2021,50066867,"4,101.44",Direct Care And Support Services,ACCOMMODATION - OTHER,Peoples Services,Supported Living,A56088
London Borough of Sutton,13/07/2021,50066868,"4,101.44",Direct Care And Support Services,ACCOMMODATION - OTHER,Peoples Services,Supported Living,A56088
London Borough of Sutton,13/08/2021,50066869,"4,101.40",Direct Care And Support Services,ACCOMMODATION - OTHER,Peoples Services,Supported Living,A56088
London Borough of Sutton,10/07/2021,50066870,"4,101.44",Direct Care And Support Services,ACCOMMODATION - OTHER,Peoples Services,Supported Living,A56088
London Borough of Sutton,13/09/2021,50066872,"2,232.44",Direct Care And Support Services,ACCOMMODATION - OTHER,Peoples Services,Supported Living,A56088
London Borough of Sutton,06/01/2021,50066873,"2,232.44",Direct Care And Support Services,ACCOMMODATION - OTHER,Peoples Services,Supported Living,A56088
London Borough of Sutton,01/10/2021,50066874,"1,156.24",Direct Care And Support Services,ACCOMMODATION - OTHER,Peoples Services,Home Care Services,A56019
London Borough of Sutton,01/08/2021,50066875,"1,156.24",Direct Care And Support Services,ACCOMMODATION - OTHER,Peoples Services,Home Care Services,A56019
London Borough of Sutton,01/09/2021,50066876,"1,156.24",Direct Care And Support Services,ACCOMMODATION - OTHER,Peoples Services,Home Care Services,A56019
London Borough of Sutton,10/06/2021,50066886,"2,149.00",Direct Care And Support Services,ACCOMMODATION - OTHER,Peoples Services,Supported Living,A56088
London Borough of Sutton,10/09/2021,50066887,"2,161.00",Direct Care And Support Services,ACCOMMODATION - OTHER,Peoples Services,Supported Living,A56088
London Borough of Sutton,06/07/2021,50066888,"1,315.40",Direct Care And Support Services,ACCOMMODATION - OTHER,Peoples Services,Supported Living,A56088
London Borough of Sutton,10/07/2021,50066889,"2,149.00",Direct Care And Support Services,ACCOMMODATION - OTHER,Peoples Services,Supported Living,A56088
London Borough of Sutton,06/09/2021,50066890,"1,315.40",Direct Care And Support Services,ACCOMMODATION - OTHER,Peoples Services,Supported Living,A56088
London Borough of Sutton,10/09/2021,50066891,"2,149.00",Direct Care And Support Services,ACCOMMODATION - OTHER,Peoples Services,Supported Living,A56088
London Borough of Sutton,13/07/2021,50066892,"3,178.80",Direct Care And Support Services,ACCOMMODATION - OTHER,Peoples Services,Supported Living,A56088
London Borough of Sutton,13/09/2021,50066893,"3,178.80",Direct Care And Support Services,ACCOMMODATION - OTHER,Peoples Services,Supported Living,A56088
London Borough of Sutton,02/07/2021,50066894,"3,178.80",Direct Care And Support Services,ACCOMMODATION - OTHER,Peoples Services,Supported Living,A56088
London Borough of Sutton,13/08/2021,50066895,"3,178.80",Direct Care And Support Services,ACCOMMODATION - OTHER,Peoples Services,Supported Living,A56088
London Borough of Sutton,15/10/2021,20011321,"1,662.00",Disability Challengers Ltd,SUNDRY SUPPLIER - EDUCATION,Peoples Services,Play Groups,A56111
London Borough of Sutton,12/10/2021,50062360,621.6,Dolphin Day Nursery,GRANTS & EX GRATIA PAYMENTS,Peoples Services,Place Funding,A56110
London Borough of Sutton,12/10/2021,50062432,"2,184.00",Dolphin Day Nursery,GRANTS & EX GRATIA PAYMENTS,Peoples Services,Place Funding,A56110
London Borough of Sutton,12/10/2021,50063605,"194,534.43",Dorchester Primary School,GRANTS & EX GRATIA PAYMENTS,Peoples Services,Payments to Schools,A51013
London Borough of Sutton,12/10/2021,50063653,"13,377.00",Dorchester Primary School,GRANTS & EX GRATIA PAYMENTS,Peoples Services,Place Funding,A56110
London Borough of Sutton,12/10/2021,50063686,"23,873.75",Dorchester Primary School,GRANTS & EX GRATIA PAYMENTS,Peoples Services,Payments to Schools,A51013
London Borough of Sutton,12/10/2021,50063787,"1,500.00",Dorchester Primary School,GRANTS & EX GRATIA PAYMENTS,Peoples Services,Pupil Growth,A51014
London Borough of Sutton,12/10/2021,50063842,"7,410.00",Dorchester Primary School,GRANTS & EX GRATIA PAYMENTS,Resources,"Grants, Contributions & Donations",A47005
London Borough of Sutton,12/10/2021,50063900,"2,293.00",Dorchester Primary School,GRANTS & EX GRATIA PAYMENTS,Peoples Services,Payments to Schools,A51013
London Borough of Sutton,11/10/2021,50065841,"4,283.33",Dorchester Primary School,GRANTS & EX GRATIA PAYMENTS,Peoples Services,Top-up Funding,A51016
London Borough of Sutton,11/10/2021,50065877,"22,406.68",Dorchester Primary School,GRANTS & EX GRATIA PAYMENTS,Peoples Services,Top-up Funding,A51016
London Borough of Sutton,01/10/2021,20010509,"2,560.89",Dreamlettings,ACCOMMODATION BED & BREAKFAST,Environment Housing and Neighbourhoods,Temporary Protection - Homeless Persons,A62028
London Borough of Sutton,05/10/2021,20010574,373.07,DSI Billing Services Ltd,OFFICE SERVICES,Resources,Postage & Couriers,A45015
London Borough of Sutton,05/10/2021,20010574,373.08,DSI Billing Services Ltd,OFFICE SERVICES,Resources,Postage & Couriers,A45015
London Borough of Sutton,01/09/2021,20010109,"1,714.28",Dunfield & Mead Ltd,CHILDREN'S SERVICES - RESIDENTIAL,Peoples Services,Approved Lodgings,A61000
London Borough of Sutton,01/09/2021,20010110,"3,889.28",Dunfield & Mead Ltd,CHILDREN'S SERVICES - RESIDENTIAL,Peoples Services,Approved Lodgings,A61000
London Borough of Sutton,01/09/2021,20010111,"3,085.71",Dunfield & Mead Ltd,CHILDREN'S SERVICES - RESIDENTIAL,Peoples Services,Approved Lodgings,A61000
London Borough of Sutton,01/09/2021,20010112,"3,889.28",Dunfield & Mead Ltd,CHILDREN'S SERVICES - RESIDENTIAL,Peoples Services,Approved Lodgings,A61000
London Borough of Sutton,01/09/2021,20010122,"2,660.71",Dunfield & Mead Ltd,CHILDREN'S SERVICES - RESIDENTIAL,Peoples Services,Approved Lodgings,A61000
London Borough of Sutton,01/09/2021,20010123,"2,357.14",Dunfield & Mead Ltd,CHILDREN'S SERVICES - RESIDENTIAL,Peoples Services,Approved Lodgings,A61000
London Borough of Sutton,01/09/2021,20010124,839.28,Dunfield & Mead Ltd,CHILDREN'S SERVICES - RESIDENTIAL,Peoples Services,Approved Lodgings,A61000
London Borough of Sutton,01/09/2021,20010125,"1,396.42",Dunfield & Mead Ltd,CHILDREN'S SERVICES - RESIDENTIAL,Peoples Services,Approved Lodgings,A61000
London Borough of Sutton,01/09/2021,20010126,"3,535.71",Dunfield & Mead Ltd,CHILDREN'S SERVICES - RESIDENTIAL,Peoples Services,Approved Lodgings,A61000
London Borough of Sutton,01/09/2021,20010283,"2,500.00",Dunfield & Mead Ltd,CHILDREN'S SERVICES - RESIDENTIAL,Peoples Services,Approved Lodgings,A61000
London Borough of Sutton,01/09/2021,20010423,"2,660.71",Dunfield & Mead Ltd,CHILDREN'S SERVICES - RESIDENTIAL,Peoples Services,Approved Lodgings,A61000
London Borough of Sutton,01/09/2021,50062923,"3,889.28",Dunfield & Mead Ltd,CHILDREN'S SERVICES - RESIDENTIAL,Peoples Services,Accommodation - Supported Living,A62001
London Borough of Sutton,01/09/2021,50062925,"2,852.14",Dunfield & Mead Ltd,CHILDREN'S SERVICES - RESIDENTIAL,Peoples Services,Accommodation - Supported Living,A62001
London Borough of Sutton,01/09/2021,50062930,"4,210.71",Dunfield & Mead Ltd,CHILDREN'S SERVICES - RESIDENTIAL,Peoples Services,Approved Lodgings,A61000
London Borough of Sutton,01/09/2021,50062985,"4,532.14",Dunfield & Mead Ltd,CHILDREN'S SERVICES - RESIDENTIAL,Peoples Services,Accommodation - Supported Living,A62001
London Borough of Sutton,01/09/2021,50062987,"3,889.28",Dunfield & Mead Ltd,CHILDREN'S SERVICES - RESIDENTIAL,Peoples Services,Accommodation - Supported Living,A62001
London Borough of Sutton,01/09/2021,50062994,"3,889.29",Dunfield & Mead Ltd,CHILDREN'S SERVICES - RESIDENTIAL,Peoples Services,Accommodation - Supported Living,A62001
London Borough of Sutton,31/03/2021,20009821,"6,479.00",Dunheved Hotel Ltd,ACCOMMODATION BED & BREAKFAST,Environment Housing and Neighbourhoods,Bed & Breakfast,A56000
London Borough of Sutton,30/09/2021,20010464,"1,110.00",Dunheved Hotel Ltd,ACCOMMODATION BED & BREAKFAST,Environment Housing and Neighbourhoods,Bed & Breakfast,A56000
London Borough of Sutton,01/10/2021,50061018,"3,071.92",Dunheved Lodge,SOCIAL SERVICES RESIDENTIAL,Peoples Services,Residential Care - Ext Provider,A56114
London Borough of Sutton,01/10/2021,50061018,"3,016.00",Dunheved Lodge,SOCIAL SERVICES RESIDENTIAL,Peoples Services,One to One Care,A56108
London Borough of Sutton,20/09/2021,20009852,"5,515.34",Dynamic Care Ltd,SOCIAL SERVICES RESIDENTIAL,Peoples Services,Living Allowance,A56016
London Borough of Sutton,20/09/2021,20009853,"3,598.20",Dynamic Care Ltd,SOCIAL SERVICES RESIDENTIAL,Peoples Services,Living Allowance,A56016
London Borough of Sutton,20/09/2021,20009888,"2,657.14",Dynamic Care Ltd,SOCIAL SERVICES RESIDENTIAL,Peoples Services,Living Allowance,A56016
London Borough of Sutton,01/10/2021,50062998,"5,924.99",Dynamic Care Ltd,SOCIAL SERVICES RESIDENTIAL,Peoples Services,Approved Lodgings,A61000
